{"text_format":"1","workbook":"xlsx","n_sheets":4,"sheets":["Capacitors","Resistors","All Other Items","For Sal's Use Only"],"not_rendered":{"charts":0,"images":0,"macros":1,"external_links":0,"defined_names":0,"comments":0,"pivot_tables":0},"unopened":[],"bounds":{"document_bytes":16777216,"sheet_cells":100000,"rows_first":2000,"rows_last":500,"rows_between":2000,"halvings":0,"cell_chars":16384,"cell_head_chars":4096},"cells_cut":0,"cells_raw":0,"read":"whole","date_system":"1900"}

{"sheet":"Capacitors","index":0,"n_rows":221,"n_cols":34,"rows_kept":221,"cut":false,"hidden":false,"merged":[[14,1,14,3],[9,1,9,3],[10,1,10,3],[11,1,11,3],[12,1,12,3],[13,1,13,3]]}
["Sal's Capacitor Corner"]
[]
["Please note: If you pay with Paypal, I will ship to the mailing",null,null,null,null,"revision 03/16/2023"]
["address on Paypal unless you specifically tell me not to use the"]
["address on Paypal. I will no longer be responsible for lost"]
["orders sent to your old address. Update your mailing address"]
["on Paypal before placing your order."]
[]
["Ship To:",null,null,null,null,"Capacitor Page Total:",null,{"$f":"+H215","v":0}]
["Name",null,null,null,null,"Resistor Page Total:",null,{"$f":"+Resistors!H2","v":0}]
["Addess",null,null,null,null,"All Other Items Total:",null,{"$f":"+'All Other Items'!H2","v":0}]
["City",null,null,null,null,"Total Without Shipping:",null,{"$f":"SUM(H9:H11)","v":0}]
["State"]
["Zip"]
["email",null,null,null,null,null,null,null,null,null,null,null,null,null,null,null,null,null,null,null,null,null,null,null,null,"Column1","Column2","Column3","Column4","Column5","Column6","Column7","Column8","Column9"]
[null,null,null,null,null,null,null,null,null,null,null,null,null,null,null,null,null,null,null,null,null,null,null,null,null,null,{"$f":"+A16","v":0},{"$f":"+B16","v":0},{"$f":"+C16","v":0},{"$f":"+D16","v":0},{"$f":"+E16","v":0},{"$f":"+F16","v":0},{"$f":"+G16","v":0},{"$f":"+H16","v":0}]
[null,null,null,null,null,null,null,null,null,null,null,null,null,null,null,null,null,null,null,null,null,null,null,null,null,null,0,0,{"$f":"+C17","v":0},{"$f":"+D17","v":0},{"$f":"+E17","v":0},{"$f":"+F17","v":0},{"$f":"+G17","v":0},{"$f":"+H17","v":0}]
["Axial Film Capacitors",null,null,null,null,null,null,null,null,null,null,null,null,null,null,null,null,null,null,null,null,null,null,null,null,null,"Axial Film Capacitors",0,0,0,0,0,0,0]
[null,"Bag of 25",null,"Bag of 10",null,"Each",null,"Total",null,null,null,null,null,null,null,null,null,null,null,null,null,null,null,null,null,null,0,"Bag of 25",0,"Bag of 10",0,"Each",0,"Total"]
[".001uf @ 630v",null,5.5,null,2.5,null,0.28000000000000003,{"$f":"(B20*C20)+(D20*E20)+(F20*G20)","v":0},1,null,null,null,null,null,null,null,null,null,null,null,null,null,null,null,null,1,".001uf @ 630v",0,5.5,0,2.5,0,0.28000000000000003,0]
[".0015uf @ 630v",null,5.5,null,2.5,null,0.28000000000000003,{"$f":"(B21*C21)+(D21*E21)+(F21*G21)","v":0},2,null,null,null,null,null,null,null,null,null,null,null,null,null,null,null,null,2,".0015uf @ 630v",0,5.5,0,2.5,0,0.28000000000000003,0]
[".0022uf @ 630v",null,5.5,null,2.5,null,0.28000000000000003,0,3,null,null,null,null,null,null,null,null,null,null,null,null,null,null,null,null,3,".0022uf @ 630v",0,5.5,0,2.5,0,0.28000000000000003,0]
[".0033uf @ 630v",null,5.5,null,2.5,null,0.28000000000000003,0,4,null,null,null,null,null,null,null,null,null,null,null,null,null,null,null,null,4,".0033uf @ 630v",0,5.5,0,2.5,0,0.28000000000000003,0]
[".0039uf @ 630v",null,5.5,null,2.5,null,0.28000000000000003,0,5,null,null,null,null,null,null,null,null,null,null,null,null,null,null,null,null,5,".0039uf @ 630v",0,5.5,0,2.5,0,0.28000000000000003,0]
[".0047uf @ 630v",null,5.75,null,2.6,null,0.28999999999999998,0,6,null,null,null,null,null,null,null,null,null,null,null,null,null,null,null,null,6,".0047uf @ 630v",0,5.75,0,2.6,0,0.28999999999999998,0]
[".0056uf @ 630v",null,5.75,null,2.6,null,0.28999999999999998,0,7,null,null,null,null,null,null,null,null,null,null,null,null,null,null,null,null,7,".0056uf @ 630v",0,5.75,0,2.6,0,0.28999999999999998,0]
[".0068uf @ 630v",null,5.75,null,2.6,null,0.28999999999999998,0,8,null,null,null,null,null,null,null,null,null,null,null,null,null,null,null,null,8,".0068uf @ 630v",0,5.75,0,2.6,0,0.28999999999999998,0]
["No Longer Available",null,null,null,null,null,null,0,9,null,null,null,null,null,null,null,null,null,null,null,null,null,null,null,null,9,"No Longer Available",0,0,0,0,0,0,0]
[".0082uf @ 630v",null,5.75,null,2.6,null,0.28999999999999998,0,10,null,null,null,null,null,null,null,null,null,null,null,null,null,null,null,null,10,".0082uf @ 630v",0,5.75,0,2.6,0,0.28999999999999998,0]
[".01uf @ 630v",null,6.25,null,2.75,null,0.3,0,11,null,null,null,null,null,null,null,null,null,null,null,null,null,null,null,null,11,".01uf @ 630v",0,6.25,0,2.75,0,0.3,0]
[".015uf @ 630v",null,6.25,null,2.75,null,0.3,0,12,null,null,null,null,null,null,null,null,null,null,null,null,null,null,null,null,12,".015uf @ 630v",0,6.25,0,2.75,0,0.3,0]
[".022uf @ 630v",null,6.5,null,2.8,null,0.3,0,13,null,null,null,null,null,null,null,null,null,null,null,null,null,null,null,null,13,".022uf @ 630v",0,6.5,0,2.8,0,0.3,0]
[".033uf @ 630v",null,6.5,null,2.8,null,0.3,0,14,null,null,null,null,null,null,null,null,null,null,null,null,null,null,null,null,14,".033uf @ 630v",0,6.5,0,2.8,0,0.3,0]
[".047uf @ 630v",null,7.25,null,3,null,0.32,0,15,null,null,null,null,null,null,null,null,null,null,null,null,null,null,null,null,15,".047uf @ 630v",0,7.25,0,3,0,0.32,0]
[".056uf @ 630v",null,7.25,null,3,null,0.32,0,16,null,null,null,null,null,null,null,null,null,null,null,null,null,null,null,null,16,".056uf @ 630v",0,7.25,0,3,0,0.32,0]
[".068uf @ 630v",null,7.5,null,3.15,null,0.33,0,17,null,null,null,null,null,null,null,null,null,null,null,null,null,null,null,null,17,".068uf @ 630v",0,7.5,0,3.15,0,0.33,0]
[".082uf @ 630v",null,7.5,null,3.15,null,0.33,0,18,null,null,null,null,null,null,null,null,null,null,null,null,null,null,null,null,18,".082uf @ 630v",0,7.5,0,3.15,0,0.33,0]
[".1uf @ 630v",null,8,null,3.5,null,0.38,0,19,null,null,null,null,null,null,null,null,null,null,null,null,null,null,null,null,19,".1uf @ 630v",0,8,0,3.5,0,0.38,0]
[".15uf @ 630v",null,8.25,null,3.75,null,0.4,0,20,null,null,null,null,null,null,null,null,null,null,null,null,null,null,null,null,20,".15uf @ 630v",0,8.25,0,3.75,0,0.4,0]
[".22uf @ 630v",null,12,null,5.5,null,0.6,0,21,null,null,null,null,null,null,null,null,null,null,null,null,null,null,null,null,21,".22uf @ 630v",0,12,0,5.5,0,0.6,0]
["No Longer Available",null,12,null,5.5,null,0.6,0,22,null,null,null,null,null,null,null,null,null,null,null,null,null,null,null,null,22,"No Longer Available",0,12,0,5.5,0,0.6,0]
[".33uf @ 630v",null,13.5,null,6,null,0.65,0,23,null,null,null,null,null,null,null,null,null,null,null,null,null,null,null,null,23,".33uf @ 630v",0,13.5,0,6,0,0.65,0]
[".47uf @ 630v",null,15,null,6.5,null,0.7,0,24,null,null,null,null,null,null,null,null,null,null,null,null,null,null,null,null,24,".47uf @ 630v",0,15,0,6.5,0,0.7,0]
["1uf @ 630v",null,17,null,7.5,null,0.8,0,25,null,null,null,null,null,null,null,null,null,null,null,null,null,null,null,null,25,"1uf @ 630v",0,17,0,7.5,0,0.8,0]
[null,null,null,null,null,null,null,null,null,null,null,null,null,null,null,null,null,null,null,null,null,null,null,null,null,null,0,0,0,0,0,0,0,0]
["Axial Capacitor Kit #1 (250)",null,66.75,{"$f":"B46*C46","v":0},null,null,null,null,26,null,null,null,null,null,null,null,null,null,null,null,null,null,null,null,null,26,"Axial Capacitor Kit #1 (250)",0,66.75,0,0,0,0,0]
["Axial Capacitor Kit #2 (325)",null,101.75,{"$f":"B47*C47","v":0},null,null,null,null,27,null,null,null,null,null,null,null,null,null,null,null,null,null,null,null,null,27,"Axial Capacitor Kit #2 (325)",0,101.75,0,0,0,0,0]
["Axial Capacitor Kit #3 (100)",null,32,0,null,null,null,null,28,null,null,null,null,null,null,null,null,null,null,null,null,null,null,null,null,28,{"$f":"+A48","v":"Axial Capacitor Kit #3 (100)"},{"$f":"+B48","v":0},32,0,0,0,0,0]
["Axial Capacitor Kit #4 (130)",null,46.25,0,null,null,null,null,29,null,null,null,null,null,null,null,null,null,null,null,null,null,null,null,null,29,"Axial Capacitor Kit #4 (130)",0,46.25,0,0,0,0,0]
["Axial Capacitor Kit #5 (200)",null,71.5,0,null,null,null,null,30,null,null,null,null,null,null,null,null,null,null,null,null,null,null,null,null,30,"Axial Capacitor Kit #5 (200)",0,71.5,0,0,0,0,0]
[null,null,null,null,null,null,null,null,null,null,null,null,null,null,null,null,null,null,null,null,null,null,null,null,null,null,0,0,0,0,0,0,0,0]
[null,null,"Total Kits:",{"$f":"SUM(D46:D50)","v":0},null,null,null,null,null,null,null,null,null,null,null,null,null,null,null,null,null,null,null,null,null,null,0,0,"Total Kits:",0,0,0,0,0]
[null,null,null,null,null,"Total Axials:",null,{"$f":"SUM(H20:H44)+D52","v":0},null,null,null,null,null,null,null,null,null,null,null,null,null,null,null,null,null,null,0,0,0,0,0,"Total Axials:",0,0]
[null,null,null,null,null,null,null,null,null,null,null,null,null,null,null,null,null,null,null,null,null,null,null,null,null,null,0,0,0,0,0,0,0,0]
["630v Metalized Polypropylene Radial Capacitors",null,null,null,null,null,null,null,null,null,null,null,null,null,null,null,null,null,null,null,null,null,null,null,null,null,"630v Metalized Polypropylene Radial Capacitors",0,0,0,0,0,0,0]
[null,"Bag of 25",null,"Bag of 10",null,"Each",null,"Total",null,null,null,null,null,null,null,null,null,null,null,null,null,null,null,null,null,null,0,"Bag of 25",0,"Bag of 10",0,"Each",0,"Total"]
[".001uf @ 630v",null,4.75,null,2.25,null,0.25,{"$f":"(B57*C57)+(D57*E57)+(F57*G57)","v":0},31,null,null,null,null,null,null,null,null,null,null,null,null,null,null,null,null,31,".001uf @ 630v",0,4.75,0,2.25,0,0.25,0]
[".0022uf @ 630v",null,4.75,null,2.25,null,0.25,{"$f":"(B58*C58)+(D58*E58)+(F58*G58)","v":0},32,null,null,null,null,null,null,null,null,null,null,null,null,null,null,null,null,32,".0022uf @ 630v",0,4.75,0,2.25,0,0.25,0]
[".0033uf @ 630v",null,5,null,2.5,null,0.27,0,33,null,null,null,null,null,null,null,null,null,null,null,null,null,null,null,null,33,".0033uf @ 630v",0,5,0,2.5,0,0.27,0]
[".0047uf @ 630v",null,5,null,2.5,null,0.27,0,34,null,null,null,null,null,null,null,null,null,null,null,null,null,null,null,null,34,".0047uf @ 630v",0,5,0,2.5,0,0.27,0]
[".0068uf @ 630v",null,5.75,null,2.6,null,0.28000000000000003,0,35,null,null,null,null,null,null,null,null,null,null,null,null,null,null,null,null,35,".0068uf @ 630v",0,5.75,0,2.6,0,0.28000000000000003,0]
[".01uf @ 630v",null,5.75,null,2.6,null,0.28000000000000003,0,36,null,null,null,null,null,null,null,null,null,null,null,null,null,null,null,null,36,".01uf @ 630v",0,5.75,0,2.6,0,0.28000000000000003,0]
[".022uf @ 630v",null,5.75,null,2.6,null,0.28000000000000003,0,37,null,null,null,null,null,null,null,null,null,null,null,null,null,null,null,null,37,".022uf @ 630v",0,5.75,0,2.6,0,0.28000000000000003,0]
[".033uf @ 630v",null,5.75,null,2.6,null,0.28000000000000003,0,38,null,null,null,null,null,null,null,null,null,null,null,null,null,null,null,null,38,".033uf @ 630v",0,5.75,0,2.6,0,0.28000000000000003,0]
[".047uf @ 630v",null,6.5,null,2.75,null,0.28999999999999998,0,39,null,null,null,null,null,null,null,null,null,null,null,null,null,null,null,null,39,".047uf @ 630v",0,6.5,0,2.75,0,0.28999999999999998,0]
[".082uf @ 630v",null,6.5,null,2.75,null,0.28999999999999998,0,40,null,null,null,null,null,null,null,null,null,null,null,null,null,null,null,null,40,".082uf @ 630v",0,6.5,0,2.75,0,0.28999999999999998,0]
[".1uf @ 630v",null,7,null,3,null,0.32,0,41,null,null,null,null,null,null,null,null,null,null,null,null,null,null,null,null,41,".1uf @ 630v",0,7,0,3,0,0.32,0]
[".22uf @ 630v",null,8.5,null,3.75,null,0.4,0,42,null,null,null,null,null,null,null,null,null,null,null,null,null,null,null,null,42,".22uf @ 630v",0,8.5,0,3.75,0,0.4,0]
[".33uf @ 630v",null,11,null,4.75,null,0.5,0,43,null,null,null,null,null,null,null,null,null,null,null,null,null,null,null,null,43,".33uf @ 630v",0,11,0,4.75,0,0.5,0]
[".47uf @ 630v",null,12.75,null,5.5,null,0.6,0,44,null,null,null,null,null,null,null,null,null,null,null,null,null,null,null,null,44,".47uf @ 630v",0,12.75,0,5.5,0,0.6,0]
["1uf @ 630v",null,14,null,6.3,null,0.7,0,45,null,null,null,null,null,null,null,null,null,null,null,null,null,null,null,null,45,"1uf @ 630v",0,14,0,6.3,0,0.7,0]
[null,null,null,null,null,null,null,null,null,null,null,null,null,null,null,null,null,null,null,null,null,null,null,null,null,null,0,0,0,0,0,0,0,0]
[null,null,null,null,null,null,null,null,null,null,null,null,null,null,null,null,null,null,null,null,null,null,null,null,null,null,0,0,0,0,0,0,0,0]
["Poly Kit #1 (250)",null,45.5,{"$f":"B74*C74","v":0},null,null,null,null,46,null,null,null,null,null,null,null,null,null,null,null,null,null,null,null,null,46,"Poly Kit #1 (250)",0,45.5,0,0,0,0,0]
["Poly Kit #2 (100)",null,22.5,{"$f":"B75*C75","v":0},null,null,null,null,47,null,null,null,null,null,null,null,null,null,null,null,null,null,null,null,null,47,"Poly Kit #2 (100)",0,22.5,0,0,0,0,0]
[null,null,null,null,null,null,null,null,null,null,null,null,null,null,null,null,null,null,null,null,null,null,null,null,null,null,0,0,0,0,0,0,0,0]
[null,null,"Total Kits:",{"$f":"SUM(D74:D75)","v":0},null,null,null,null,null,null,null,null,null,null,null,null,null,null,null,null,null,null,null,null,null,null,0,0,"Total Kits:",0,0,0,0,0]
[null,null,null,null,null,"Total Poly:",null,{"$f":"SUM(H57:H71)+D77","v":0},null,null,null,null,null,null,null,null,null,null,null,null,null,null,null,null,null,null,0,0,0,0,0,"Total Poly:",0,0]
[null,null,null,null,null,null,null,null,null,null,null,null,null,null,null,null,null,null,null,null,null,null,null,null,null,null,0,0,0,0,0,0,0,0]
[null,null,null,null,null,"Each",null,"Total",null,null,null,null,null,null,null,null,null,null,null,null,null,null,null,null,null,null,{"$f":"+A80","v":0},{"$f":"+B80","v":0},0,0,0,"Each",0,"Total"]
["100pf @500v  Orange Color",null,null,null,null,null,0.6,{"$f":"SUM(G81*F81)","v":0},48,null,null,null,null,null,null,null,null,null,null,null,null,null,null,null,null,48,{"$f":"+A81","v":"100pf @500v  Orange Color"},{"$f":"+B81","v":0},{"$f":"+C81","v":0},{"$f":"+D81","v":0},{"$f":"+E81","v":0},{"$f":"+F81","v":0},{"$f":"+G81","v":0.6},{"$f":"+H81","v":0}]
["120pf @500v  Blue Color",null,null,null,null,null,0.6,{"$f":"SUM(G82*F82)","v":0},49,null,null,null,null,null,null,null,null,null,null,null,null,null,null,null,null,49,"120pf @500v  Blue Color",0,0,0,0,0,0.6,0]
[null,null,null,null,null,null,null,0,50,null,null,null,null,null,null,null,null,null,null,null,null,null,null,null,null,50,0,0,0,0,0,0,0,0]
[null,null,null,null,null,null,0.6,0,51,null,null,null,null,null,null,null,null,null,null,null,null,null,null,null,null,51,{"$f":"+A84","v":0},0,0,0,0,0,0.6,0]
[null,null,null,null,null,null,null,null,null,null,null,null,null,null,null,null,null,null,null,null,null,null,null,null,null,null,0,0,0,0,0,0,0,0]
[".0005uf @630v Capacitor",null,null,null,null,null,0.3,{"$f":"(F86*G86)","v":0},52,null,null,null,null,null,null,null,null,null,null,null,null,null,null,null,null,52,".0005uf @630v Capacitor",0,{"$f":"+C86","v":0},{"$f":"+D86","v":0},{"$f":"+E86","v":0},{"$f":"+F86","v":0},{"$f":"+G86","v":0.3},{"$f":"+H86","v":0}]
[null,null,null,null,null,null,null,null,null,null,null,null,null,null,null,null,null,null,null,null,null,null,null,null,null,null,0,0,0,0,0,0,0,0]
[null,null,null,null,null,"Total:",null,{"$f":"SUM(H81:H84,H86)","v":0},null,null,null,null,null,null,null,null,null,null,null,null,null,null,null,null,null,null,0,0,0,0,0,"Total:",0,0]
[null,null,null,null,null,null,null,null,null,null,null,null,null,null,null,null,null,null,null,null,null,null,null,null,null,null,0,0,0,0,0,0,0,0]
["Ceramic Disk Capacitors",null,null,null,null,"Each",null,"Total",null,null,null,null,null,null,null,null,null,null,null,null,null,null,null,null,null,null,"Ceramic Disk Capacitors",0,0,0,0,"Each",0,"Total"]
[".00022uf @1000v",null,null,null,null,null,0.2,{"$f":"(F91*G91)","v":0},53,null,null,null,null,null,null,null,null,null,null,null,null,null,null,null,null,53,".00022uf @1000v",0,0,0,0,0,0.2,0]
[".00047uf @1000v",null,null,null,null,null,0.2,{"$f":"(F92*G92)","v":0},54,null,null,null,null,null,null,null,null,null,null,null,null,null,null,null,null,54,".00047uf @1000v",0,0,0,0,0,0.2,0]
[".0022uf @1000v",null,null,null,null,null,0.2,0,55,null,null,null,null,null,null,null,null,null,null,null,null,null,null,null,null,55,".0022uf @1000v",0,0,0,0,0,0.2,0]
[".0033uf @1000v",null,null,null,null,null,0.2,0,56,null,null,null,null,null,null,null,null,null,null,null,null,null,null,null,null,56,".0033uf @1000v",0,0,0,0,0,0.2,0]
[".001uf @1000v",null,null,null,null,null,0.2,0,57,null,null,null,null,null,null,null,null,null,null,null,null,null,null,null,null,57,".001uf @1000v",0,0,0,0,0,0.2,0]
[".01uf @1000v",null,null,null,null,null,0.2,0,58,null,null,null,null,null,null,null,null,null,null,null,null,null,null,null,null,58,".01uf @1000v",0,0,0,0,0,0.2,0]
[".1uf @1000v",null,null,null,null,null,0.2,0,59,null,null,null,null,null,null,null,null,null,null,null,null,null,null,null,null,59,{"$f":"+A97","v":".1uf @1000v"},0,0,0,0,0,0.2,0]
[null,null,null,null,null,null,null,0,60,null,null,null,null,null,null,null,null,null,null,null,null,null,null,null,null,60,0,0,0,0,0,0,0,0]
[null,null,null,null,null,null,null,null,null,null,null,null,null,null,null,null,null,null,null,null,null,null,null,null,null,null,0,0,0,0,0,0,0,0]
[null,null,null,null,null,"Total Ceramic:",null,{"$f":"SUM(H91:H98)","v":0},null,null,null,null,null,null,null,null,null,null,null,null,null,null,null,null,null,null,0,0,0,0,0,"Total Ceramic:",0,0]
[null,null,null,null,null,null,null,null,null,null,null,null,null,null,null,null,null,null,null,null,null,null,null,null,null,null,0,0,0,0,0,0,0,0]
["1600v Metalized Polypropylene Radial Capacitors",null,null,null,null,null,null,null,null,null,null,null,null,null,null,null,null,null,null,null,null,null,null,null,null,null,"1600v Metalized Polypropylene Radial Capacitors",0,0,0,0,0,0,0]
[null,"Bag of 25",null,"Bag of 10",null,"Each",null,"Total",null,null,null,null,null,null,null,null,null,null,null,null,null,null,null,null,null,null,0,"Bag of 25",0,"Bag of 10",0,"Each",0,"Total"]
[".001uf @ 2000v",null,10.35,null,4.05,null,0.45,{"$f":"(B104*C104)+(D104*E104)+(F104*G104)","v":0},61,null,null,null,null,null,null,null,null,null,null,null,null,null,null,null,null,61,".001uf @ 2000v",0,10.35,0,4.05,0,0.45,0]
[".0022uf @ 1600v",null,10.35,null,4.05,null,0.45,{"$f":"(B105*C105)+(D105*E105)+(F105*G105)","v":0},62,null,null,null,null,null,null,null,null,null,null,null,null,null,null,null,null,62,".0022uf @ 1600v",0,10.35,0,4.05,0,0.45,0]
[".0033uf @ 1600v",null,10.35,null,4.05,null,0.45,0,63,null,null,null,null,null,null,null,null,null,null,null,null,null,null,null,null,63,".0033uf @ 1600v",0,10.35,0,4.05,0,0.45,0]
[".0047uf @ 1600v",null,10.35,null,4.05,null,0.45,0,64,null,null,null,null,null,null,null,null,null,null,null,null,null,null,null,null,64,".0047uf @ 1600v",0,10.35,0,4.05,0,0.45,0]
[".0068uf @ 1600v",null,10.65,null,4.2,null,0.47,0,65,null,null,null,null,null,null,null,null,null,null,null,null,null,null,null,null,65,".0068uf @ 1600v",0,10.65,0,4.2,0,0.47,0]
[".01uf @ 1600v",null,10.65,null,4.2,null,0.47,0,66,null,null,null,null,null,null,null,null,null,null,null,null,null,null,null,null,66,".01uf @ 1600v",0,10.65,0,4.2,0,0.47,0]
[".022uf @ 1600v",null,11.25,null,4.3499999999999996,null,0.49,0,67,null,null,null,null,null,null,null,null,null,null,null,null,null,null,null,null,67,".022uf @ 1600v",0,11.25,0,4.3499999999999996,0,0.49,0]
[".033uf @ 1600v",null,12,null,4.75,null,0.53,0,68,null,null,null,null,null,null,null,null,null,null,null,null,null,null,null,null,68,".033uf @ 1600v",0,12,0,4.75,0,0.53,0]
[".047uf @ 2000v",null,12.9,null,5,null,0.56000000000000005,0,69,null,null,null,null,null,null,null,null,null,null,null,null,null,null,null,null,69,".047uf @ 2000v",0,12.9,0,5,0,0.56000000000000005,0]
[".1uf @ 1600v",null,14.6,null,5.7,null,0.64,0,70,null,null,null,null,null,null,null,null,null,null,null,null,null,null,null,null,70,".1uf @ 1600v",0,14.6,0,5.7,0,0.64,0]
[null,null,null,null,null,null,null,null,null,null,null,null,null,null,null,null,null,null,null,null,null,null,null,null,null,null,0,0,0,0,0,0,0,0]
["1600v Poly Kit #1 (100)",null,43,{"$f":"(B115*C115)","v":0},null,null,null,null,71,null,null,null,null,null,null,null,null,null,null,null,null,null,null,null,null,71,"1600v Poly Kit #1 (100)",0,43,0,0,0,0,0]
["1600v Poly Kit #2 (250)",null,101.75,{"$f":"(B116*C116)","v":0},null,null,null,null,72,null,null,null,null,null,null,null,null,null,null,null,null,null,null,null,null,72,"1600v Poly Kit #2 (250)",0,101.75,0,0,0,0,0]
[null,null,null,null,null,null,null,null,null,null,null,null,null,null,null,null,null,null,null,null,null,null,null,null,null,null,0,0,0,0,0,0,0,0]
[null,null,"Total Kits:",{"$f":"SUM(D115:D116)","v":0},null,null,null,null,null,null,null,null,null,null,null,null,null,null,null,null,null,null,null,null,null,null,{"$f":"+A118","v":0},{"$f":"+B118","v":0},"Total Kits:",0,0,0,0,0]
[null,null,null,null,null,"Total 1600V Poly:",null,{"$f":"SUM(H104:H113)+D118","v":0},null,null,null,null,null,null,null,null,null,null,null,null,null,null,null,null,null,null,0,0,0,0,0,"Total 1600V Poly:",0,0]
[null,null,null,null,null,null,null,null,null,null,null,null,null,null,null,null,null,null,null,null,null,null,null,null,null,null,0,0,0,0,0,0,0,0]
["X2 & Y2 Safety Capacitors",null,null,null,null,null,null,null,null,null,null,null,null,null,null,null,null,null,null,null,null,null,null,null,null,null,"X2 & Y2 Safety Capacitors",0,0,0,0,0,0,0]
[null,null,null,null,null,"Each",null,"Total",null,null,null,null,null,null,null,null,null,null,null,null,null,null,null,null,null,null,0,0,0,0,0,"Each",0,"Total"]
[".001uf @ 275vac","X2 (Yellow)",null,null,null,null,0.25,{"$f":"(F123*G123)","v":0},73,null,null,null,null,null,null,null,null,null,null,null,null,null,null,null,null,73,".001uf @ 275vac","X2 (Yellow)",0,0,0,0,0.25,0]
[".0033uf @ 275vac","X2 (Yellow)",null,null,null,null,0.25,{"$f":"(F124*G124)","v":0},74,null,null,null,null,null,null,null,null,null,null,null,null,null,null,null,null,74,".0033uf @ 275vac","X2 (Yellow)",0,0,0,0,0.25,0]
[".0047uf @ 275vac","X2 (Yellow)",null,null,null,null,0.25,0,75,null,null,null,null,null,null,null,null,null,null,null,null,null,null,null,null,75,".0047uf @ 275vac","X2 (Yellow)",0,0,0,0,0.25,0]
[".01uf  @ 275vac","X2 (Yellow)",null,null,null,null,0.25,0,76,null,null,null,null,null,null,null,null,null,null,null,null,null,null,null,null,76,".01uf  @ 275vac","X2 (Yellow)",0,0,0,0,0.25,0]
[".022uf @ 275vac","X2 (Yellow)",null,null,null,null,0.25,0,77,null,null,null,null,null,null,null,null,null,null,null,null,null,null,null,null,77,".022uf @ 275vac","X2 (Yellow)",0,0,0,0,0.25,0]
[".047uf @ 275vac ","X2 (Yellow)",null,null,null,null,0.25,0,78,null,null,null,null,null,null,null,null,null,null,null,null,null,null,null,null,78,".047uf @ 275vac ","X2 (Yellow)",0,0,0,0,0.25,0]
[".1uf @ 275vac","X2 (Yellow)",null,null,null,null,0.25,0,79,null,null,null,null,null,null,null,null,null,null,null,null,null,null,null,null,79,".1uf @ 275vac","X2 (Yellow)",0,0,0,0,0.25,0]
[".0022uf @ 250vac","Y2 (Blue)",null,null,null,null,0.3,0,80,null,null,null,null,null,null,null,null,null,null,null,null,null,null,null,null,80,".0022uf @ 250vac","Y2 (Blue)",0,0,0,0,0.3,0]
[".0033uf @ 250vac","Y2 (Blue)",null,null,null,null,0.3,0,81,null,null,null,null,null,null,null,null,null,null,null,null,null,null,null,null,81,".0033uf @ 250vac","Y2 (Blue)",0,0,0,0,0.3,0]
[".0047uf @ 250vac","Y2 (Blue)",null,null,null,null,0.3,0,82,null,null,null,null,null,null,null,null,null,null,null,null,null,null,null,null,82,".0047uf @ 250vac","Y2 (Blue)",0,0,0,0,0.3,0]
[".01uf @ 250vac","Y2 (Blue)",null,null,null,null,0.3,0,83,null,null,null,null,null,null,null,null,null,null,null,null,null,null,null,null,83,".01uf @ 250vac","Y2 (Blue)",0,0,0,0,0.3,0]
[null,null,null,null,null,null,null,null,null,null,null,null,null,null,null,null,null,null,null,null,null,null,null,null,null,null,0,0,0,0,0,0,0,0]
[null,null,null,null,null,"Total Safety:",null,{"$f":"SUM(H123:H133)","v":0},null,null,null,null,null,null,null,null,null,null,null,null,null,null,null,null,null,null,0,0,0,0,0,"Total Safety:",0,0]
[null,null,null,null,null,null,null,null,null,null,null,null,null,null,null,null,null,null,null,null,null,null,null,null,null,null,0,0,0,0,0,0,0,0]
["Axial Electrolytic Capacitors",null,null,null,null,null,null,null,null,null,null,null,null,null,null,null,null,null,null,null,null,null,null,null,null,null,"Axial Electrolytic Capacitors",0,0,0,0,0,0,0]
[null,"Bag of 25",null,"Bag of 10",null,"Each",null,"Total",null,null,null,null,null,null,null,null,null,null,null,null,null,null,null,null,null,null,0,"Bag of 25",0,"Bag of 10",0,"Each",0,"Total"]
["10uf@50v",null,3.25,null,1.35,null,0.15,{"$f":"(B139*C139)+(D139*E139)+(F139*G139)","v":0},84,null,null,null,null,null,null,null,null,null,null,null,null,null,null,null,null,84,"10uf@50v",0,3.25,0,1.35,0,0.15,0]
["22uf@50v",null,4,null,1.65,null,0.18,{"$f":"(B140*C140)+(D140*E140)+(F140*G140)","v":0},85,null,null,null,null,null,null,null,null,null,null,null,null,null,null,null,null,85,"22uf@50v",0,4,0,1.65,0,0.18,0]
["33uf@50v",null,4.6500000000000004,null,1.98,null,0.22,0,86,null,null,null,null,null,null,null,null,null,null,null,null,null,null,null,null,86,"33uf@50v",0,4.6500000000000004,0,1.98,0,0.22,0]
["47uf@50v",null,5.25,null,2.25,null,0.25,0,87,null,null,null,null,null,null,null,null,null,null,null,null,null,null,null,null,87,"47uf@50v",0,5.25,0,2.25,0,0.25,0]
["10uf@160v",null,11,null,4.5,null,0.5,0,88,null,null,null,null,null,null,null,null,null,null,null,null,null,null,null,null,88,"10uf@160v",0,11,0,4.5,0,0.5,0]
["22uf@160v",null,14,null,6,null,0.65,0,89,null,null,null,null,null,null,null,null,null,null,null,null,null,null,null,null,89,"22uf@160v",0,14,0,6,0,0.65,0]
["33uf@160v",null,16,null,7,null,0.75,0,90,null,null,null,null,null,null,null,null,null,null,null,null,null,null,null,null,90,"33uf@160v",0,16,0,7,0,0.75,0]
[" 47uf@160v",null,18.5,null,8,null,0.85,0,91,null,null,null,null,null,null,null,null,null,null,null,null,null,null,null,null,91," 47uf@160v",0,18.5,0,8,0,0.85,0]
["4.7uf@450v",null,14,null,7.5,null,0.8,0,92,null,null,null,null,null,null,null,null,null,null,null,null,null,null,null,null,92,"4.7uf@450v",0,14,0,7.5,0,0.8,0]
["10uf@450v",null,21,null,9,null,1,0,93,null,null,null,null,null,null,null,null,null,null,null,null,null,null,null,null,93,"10uf@450v",0,21,0,9,0,1,0]
["22uf@450v",null,26.5,null,12.25,null,1.35,0,94,null,null,null,null,null,null,null,null,null,null,null,null,null,null,null,null,94,"22uf@450v",0,26.5,0,12.25,0,1.35,0]
["33uf@450v",null,33.5,null,14.5,null,1.6,0,95,null,null,null,null,null,null,null,null,null,null,null,null,null,null,null,null,95,{"$f":"+A150","v":"33uf@450v"},{"$f":"+B150","v":0},33.5,0,14.5,0,1.6,0]
["47uf@450v",null,38,null,17.5,null,1.85,0,96,null,null,null,null,null,null,null,null,null,null,null,null,null,null,null,null,96,"47uf@450v",0,{"$f":"+C151","v":38},{"$f":"+D151","v":0},{"$f":"+E151","v":17.5},{"$f":"+F151","v":0},{"$f":"+G151","v":1.85},{"$f":"+H151","v":0}]
[null,null,null,null,null,null,null,null,null,null,null,null,null,null,null,null,null,null,null,null,null,null,null,null,null,null,0,0,0,0,0,0,0,0]
["Axial Electrolytic Kit #1 (45)",null,47.5,{"$f":"(B153*C153)","v":0},null,null,null,null,97,null,null,null,null,null,null,null,null,null,null,null,null,null,null,null,null,97,"Axial Electrolytic Kit #1 (45)",0,47.5,0,0,0,0,0]
["Axial Electrolytic Kit #2 (90)",null,85.75,{"$f":"(B154*C154)","v":0},null,null,null,null,98,null,null,null,null,null,null,null,null,null,null,null,null,null,null,null,null,98,"Axial Electrolytic Kit #2 (90)",0,85.75,0,0,0,0,0]
[null,null,null,null,null,null,null,null,null,null,null,null,null,null,null,null,null,null,null,null,null,null,null,null,null,null,0,0,0,0,0,0,0,0]
[null,null,"Total Kits:",{"$f":"SUM(D153:D154)","v":0},null,null,null,null,null,null,null,null,null,null,null,null,null,null,null,null,null,null,null,null,null,null,0,0,"Total Kits:",0,0,0,0,0]
[null,null,null,null,null,"Total Axial Electrolytic:",null,{"$f":"SUM(H139:H151)+D156","v":0},null,null,null,null,null,null,null,null,null,null,null,null,null,null,null,null,null,null,0,0,0,0,0,"Total Axial Electrolytic:",0,0]
[null,null,null,null,null,null,null,null,null,null,null,null,null,null,null,null,null,null,null,null,null,null,null,null,null,null,0,0,0,0,0,0,0,0]
["Radial Electrolytic Capacitors",null,null,null,null,null,null,null,null,null,null,null,null,null,null,null,null,null,null,null,null,null,null,null,null,null,"Radial Electrolytic Capacitors",0,0,0,0,0,0,0]
[null,"Bag of 25",null,"Bag of 10",null,"Each",null,"Total",null,null,null,null,null,null,null,null,null,null,null,null,null,null,null,null,null,null,0,"Bag of 25",0,"Bag of 10",0,"Each",0,"Total"]
["10uf@50v",null,2.15,null,0.9,null,0.1,{"$f":"(B161*C161)+(D161*E161)+(F161*G161)","v":0},99,null,null,null,null,null,null,null,null,null,null,null,null,null,null,null,null,99,"10uf@50v",0,2.15,0,0.9,0,0.1,0]
["22uf@50v",null,2.6,null,1.08,null,0.12,{"$f":"(B162*C162)+(D162*E162)+(F162*G162)","v":0},100,null,null,null,null,null,null,null,null,null,null,null,null,null,null,null,null,100,"22uf@50v",0,2.6,0,1.08,0,0.12,0]
["33uf@50v",null,2.85,null,1.2,null,0.14000000000000001,0,101,null,null,null,null,null,null,null,null,null,null,null,null,null,null,null,null,101,"33uf@50v",0,2.85,0,1.2,0,0.14000000000000001,0]
["47uf@50v",null,3.25,null,1.45,null,0.16,0,102,null,null,null,null,null,null,null,null,null,null,null,null,null,null,null,null,102,"47uf@50v",0,3.25,0,1.45,0,0.16,0]
["  ",null,null,null,null,null,null,null,null,null,null,null,null,null,null,null,null,null,null,null,null,null,null,null,null,null,"  ",0,0,0,0,0,0,0]
["4.7uf@160v",null,3,null,1.4,null,0.15,0,103,null,null,null,null,null,null,null,null,null,null,null,null,null,null,null,null,103,"4.7uf@160v",0,3,0,1.4,0,0.15,0]
["10uf@160v",null,5.5,null,2.25,null,0.25,0,104,null,null,null,null,null,null,null,null,null,null,null,null,null,null,null,null,104,"10uf@160v",0,5.5,0,2.25,0,0.25,0]
["22uf@160v",null,10,null,4,null,0.45,0,105,null,null,null,null,null,null,null,null,null,null,null,null,null,null,null,null,105,"22uf@160v",0,10,0,4,0,0.45,0]
["33uf@160v",null,11.75,null,5,null,0.55000000000000004,0,106,null,null,null,null,null,null,null,null,null,null,null,null,null,null,null,null,106,"33uf@160v",0,11.75,0,5,0,0.55000000000000004,0]
["47uf@160v",null,12.5,null,6,null,0.65,0,107,null,null,null,null,null,null,null,null,null,null,null,null,null,null,null,null,107,"47uf@160v",0,12.5,0,6,0,0.65,0]
["68uf@160v",null,15,null,6.75,null,0.75,0,108,null,null,null,null,null,null,null,null,null,null,null,null,null,null,null,null,108,"68uf@160v",0,15,0,6.75,0,0.75,0]
["82uf@160v",null,16.5,null,7.25,null,0.8,0,109,null,null,null,null,null,null,null,null,null,null,null,null,null,null,null,null,109,"82uf@160v",0,16.5,0,7.25,0,0.8,0]
["100uf@160v",null,17.5,null,8,null,0.85,0,110,null,null,null,null,null,null,null,null,null,null,null,null,null,null,null,null,110,"100uf@160v",0,17.5,0,8,0,0.85,0]
[null,null,null,null,null,null,null,null,null,null,null,null,null,null,null,null,null,null,null,null,null,null,null,null,null,null,0,0,0,0,0,0,0,0]
["10uf@250v",null,9.5,null,4,null,0.45,0,111,null,null,null,null,null,null,null,null,null,null,null,null,null,null,null,null,111,"10uf@250v",0,9.5,0,4,0,0.45,0]
["22uf@250v",null,11,null,5,null,0.55000000000000004,0,112,null,null,null,null,null,null,null,null,null,null,null,null,null,null,null,null,112,"22uf@250v",0,11,0,5,0,0.55000000000000004,0]
["33uf@250v",null,12.75,null,5.5,null,0.6,0,113,null,null,null,null,null,null,null,null,null,null,null,null,null,null,null,null,113,"33uf@250v",0,12.75,0,5.5,0,0.6,0]
["47uf@250v",null,14.5,null,6.5,null,0.7,0,114,null,null,null,null,null,null,null,null,null,null,null,null,null,null,null,null,114,"47uf@250v",0,14.5,0,6.5,0,0.7,0]
["100uf@250v",null,21,null,9,null,0.95,0,115,null,null,null,null,null,null,null,null,null,null,null,null,null,null,null,null,115,"100uf@250v",0,21,0,9,0,0.95,0]
[null,null,null,null,null,null,null,null,null,null,null,null,null,null,null,null,null,null,null,null,null,null,null,null,null,null,0,0,0,0,0,0,0,0]
["100uf@400v",null,25,null,12,null,1.3,0,116,null,null,null,null,null,null,null,null,null,null,null,null,null,null,null,null,116,"100uf@400v",0,25,0,12,0,1.3,0]
[null,null,null,null,null,null,null,null,null,null,null,null,null,null,null,null,null,null,null,null,null,null,null,null,null,null,{"$f":"+A182","v":0},{"$f":"+B182","v":0},0,0,0,0,0,0]
["1uf@450v",null,4,null,1.8,null,0.2,0,117,null,null,null,null,null,null,null,null,null,null,null,null,null,null,null,null,117,"1uf@450v",0,4,0,1.8,0,0.2,0]
["2.2uf@450v",null,5.75,null,2.25,null,0.25,0,118,null,null,null,null,null,null,null,null,null,null,null,null,null,null,null,null,118,"2.2uf@450v",0,5.75,0,2.25,0,0.25,0]
["3.3uf@450v",null,6.5,null,3,null,0.35,0,119,null,null,null,null,null,null,null,null,null,null,null,null,null,null,null,null,119,"3.3uf@450v",0,6.5,0,3,0,0.35,0]
["4.7uf@450v",null,10,null,4.5,null,0.5,0,120,null,null,null,null,null,null,null,null,null,null,null,null,null,null,null,null,120,"4.7uf@450v",0,10,0,4.5,0,0.5,0]
["6.8uf@450v",null,11.5,null,5,null,0.55000000000000004,0,121,null,null,null,null,null,null,null,null,null,null,null,null,null,null,null,null,121,"6.8uf@450v",0,11.5,0,5,0,0.55000000000000004,0]
["10uf@450v",null,15,null,6.5,null,0.7,0,122,null,null,null,null,null,null,null,null,null,null,null,null,null,null,null,null,122,"10uf@450v",0,15,0,6.5,0,0.7,0]
["15uf@450v",null,16,null,7.25,null,0.75,0,123,null,null,null,null,null,null,null,null,null,null,null,null,null,null,null,null,123,"15uf@450v",0,16,0,7.25,0,0.75,0]
["22uf@450v",null,17,null,7.5,null,0.85,0,124,null,null,null,null,null,null,null,null,null,null,null,null,null,null,null,null,124,"22uf@450v",0,17,0,7.5,0,0.85,0]
["33uf@450v",null,18.5,null,8,null,0.9,0,125,null,null,null,null,null,null,null,null,null,null,null,null,null,null,null,null,125,"33uf@450v",0,18.5,0,8,0,0.9,0]
["47uf@450v",null,20,null,9,null,1,0,126,null,null,null,null,null,null,null,null,null,null,null,null,null,null,null,null,126,"47uf@450v",0,20,0,9,0,1,0]
["68uf@450v",null,25,null,11.25,null,1.25,0,127,null,null,null,null,null,null,null,null,null,null,null,null,null,null,null,null,127,"68uf@450v",0,25,0,11.25,0,1.25,0]
["100uf@450v",null,37,null,16.5,null,1.8,0,128,null,null,null,null,null,null,null,null,null,null,null,null,null,null,null,null,128,"100uf@450v",0,37,0,16.5,0,1.8,0]
["120uf@450v",null,42,null,18.5,null,2,0,129,null,null,null,null,null,null,null,null,null,null,null,null,null,null,null,null,129,"120uf@450v",0,42,0,18.5,0,2,0]
[null,null,null,null,null,null,null,null,null,null,null,null,null,null,null,null,null,null,null,null,null,null,null,null,null,null,0,0,0,0,0,0,0,0]
["10uf@500v",null,16.5,null,7.2,null,0.8,0,130,null,null,null,null,null,null,null,null,null,null,null,null,null,null,null,null,130,"10uf@500v",0,16.5,0,7.2,0,0.8,0]
["22uf@500v",null,18.5,null,8.1,null,0.9,0,131,null,null,null,null,null,null,null,null,null,null,null,null,null,null,null,null,131,"22uf@500v",0,18.5,0,8.1,0,0.9,0]
["33uf@500v",null,20,null,9,null,1,0,132,null,null,null,null,null,null,null,null,null,null,null,null,null,null,null,null,132,"33uf@500v",0,20,0,9,0,1,0]
["47uf@500v",null,22.5,null,9.9,null,1.1000000000000001,0,133,null,null,null,null,null,null,null,null,null,null,null,null,null,null,null,null,133,"47uf@500v",0,22.5,0,9.9,0,1.1000000000000001,0]
[null,null,null,null,null,null,null,null,null,null,null,null,null,null,null,null,null,null,null,null,null,null,null,null,null,null,0,0,0,0,0,0,0,0]
["10uf@550v",null,18.5,null,8.1,null,0.9,0,134,null,null,null,null,null,null,null,null,null,null,null,null,null,null,null,null,134,"10uf@550v",0,18.5,0,8.1,0,0.9,0]
["22uf@550v",null,20,null,9,null,1,0,135,null,null,null,null,null,null,null,null,null,null,null,null,null,null,null,null,135,"22uf@550v",0,20,0,9,0,1,0]
[null,null,null,null,null,null,null,0,null,null,null,null,null,null,null,null,null,null,null,null,null,null,null,null,null,null,0,0,0,0,0,0,0,0]
["Snap In Electrolytics",null,null,null,null,null,null,null,null,null,null,null,null,null,null,null,null,null,null,null,null,null,null,null,null,null,"Snap In Electrolytics",0,0,0,0,0,0,0]
[null,null,null,null,null,null,null,null,null,null,null,null,null,null,null,null,null,null,null,null,null,null,null,null,null,null,0,0,0,0,0,0,0,0]
["150uf@450v",null,44,null,19,null,2.2999999999999998,0,136,null,null,null,null,null,null,null,null,null,null,null,null,null,null,null,null,136,"150uf@450v",0,44,0,19,0,2.2999999999999998,0]
["220uf@450v",null,42,null,18,null,2,0,137,null,null,null,null,null,null,null,null,null,null,null,null,null,null,null,null,137,"220uf@450v",0,42,0,18,0,2,0]
[null,null,null,null,null,null,null,null,null,null,null,null,null,null,null,null,null,null,null,null,null,null,null,null,null,null,0,0,0,0,0,0,0,0]
["Radial Electrolytic Kit #1 (50)",null,33,{"$f":"(B210*C210)","v":0},null,null,null,null,138,null,null,null,null,null,null,null,null,null,null,null,null,null,null,null,null,138,"Radial Electrolytic Kit #1 (50)",0,33,0,0,0,0,0]
["Radial Electrolytic Kit #2 (100)",null,63.75,{"$f":"(B211*C211)","v":0},null,null,null,null,139,null,null,null,null,null,null,null,null,null,null,null,null,null,null,null,null,139,"Radial Electrolytic Kit #2 (100)",0,63.75,0,0,0,0,0]
[null,null,null,null,null,null,null,null,null,null,null,null,null,null,null,null,null,null,null,null,null,null,null,null,null,null,0,0,0,0,0,0,0,0]
[null,null,"Total Kits:",{"$f":"SUM(D210:D211)","v":0},null,"Total Radial Electrolytic:",null,{"$f":"SUM(H161:H208)+D213","v":0},null,null,null,null,null,null,null,null,null,null,null,null,null,null,null,null,null,null,0,0,"Total Kits:",0,0,"Total Radial Electrolytic:",0,0]
[null,null,null,null,null,null,null,null,null,null,null,null,null,null,null,null,null,null,null,null,null,null,null,null,null,null,{"$f":"+A214","v":0},{"$f":"+B214","v":0},0,0,0,0,0,0]
[null,null,null,null,null,"Total Capacitors",null,{"$f":"SUM(H213+H157+H135+H119+H100+H88+H78+H53)","v":0},null,null,null,null,null,null,null,null,null,null,null,null,null,null,null,null,null,null,0,0,{"$f":"+C215","v":0},{"$f":"+D215","v":0},{"$f":"+E215","v":0},{"$f":"+F215","v":"Total Capacitors"},{"$f":"+G215","v":0},{"$f":"+H215","v":0}]
[null,null,null,null,null,null,null,null,null,null,null,null,null,null,null,null,null,null,null,null,null,null,null,null,null,null,0,0,0,0,0,0,0,0]
[null,null,null,null,null,null,null,null,null,null,null,null,null,null,null,null,null,null,null,null,null,null,null,null,null,null,0,0,0,0,0,0,0,0]
[null,null,null,null,null,null,null,null,null,null,null,null,null,null,null,null,null,null,null,null,null,null,null,null,null,null,0,0,0,0,0,0,0,0]
[null,null,null,null,null,null,null,null,null,null,null,null,null,null,null,null,null,null,null,null,null,null,null,null,null,null,0,0,0,0,0,0,0,0]
[null,null,null,null,null,null,null,null,null,null,null,null,null,null,null,null,null,null,null,null,null,null,null,null,null,null,0,0,0,0,0,0,0,0]
[null,null,null,null,null,null,null,null,null,null,null,null,null,null,null,null,null,null,null,null,null,null,null,null,null,null,0,0,0,0,0,0,0,0]

{"sheet":"Resistors","index":1,"n_rows":263,"n_cols":34,"rows_kept":263,"cut":false,"hidden":false,"merged":[]}
[]
[null,null,null,null,null,"Resistor Total:",null,{"$f":"+H252","v":0},null,null,null,null,null,null,null,null,null,null,null,null,null,null,null,null,null,"Column1","Column2","Column3","Column4","Column5","Column6","Column7","Column8","Column9"]
[null,null,null,null,null,null,null,null,null,null,null,null,null,null,null,null,null,null,null,null,null,null,null,null,null,{"$f":"+I3","v":0},{"$f":"+A3","v":0},{"$f":"+B3","v":0},{"$f":"+C3","v":0},{"$f":"+D3","v":0},{"$f":"+E3","v":0},{"$f":"+F3","v":0},{"$f":"+G3","v":0},{"$f":"+H3","v":0}]
[null,null,null,null,null,"Each",null,"Total",null,null,null,null,null,null,null,null,null,null,null,null,null,null,null,null,null,{"$f":"+I4","v":0},{"$f":"+A4","v":0},{"$f":"+B4","v":0},{"$f":"+C4","v":0},{"$f":"+D4","v":0},{"$f":"+E4","v":0},{"$f":"+F4","v":"Each"},{"$f":"+G4","v":0},{"$f":"+H4","v":"Total"}]
["1/2 Watt 1000 Piece Resistor Kit",null,null,null,null,null,35,{"$f":"(F5*G5)","v":0},140,null,null,null,null,null,null,null,null,null,null,null,null,null,null,null,null,140,"1/2 Watt 1000 Piece Resistor Kit",0,0,0,0,0,35,0]
[null,null,null,null,null,null,null,null,null,null,null,null,null,null,null,null,null,null,null,null,null,null,null,null,null,{"$f":"+I6","v":0},{"$f":"+A6","v":0}]
["1/2 watt Metal Film Resistors",null,null,null,null,null,null,null,null,null,null,null,null,null,null,null,null,null,null,null,null,null,null,null,null,0,"1/2 watt Metal Film Resistors",0,0,0,0,0,0,0]
[null,"Bag of 25",null,"Bag of 10",null,"Each",null,"Total",null,null,null,null,null,null,null,null,null,null,null,null,null,null,null,null,null,0,0,"Bag of 25",0,"Bag of 10",0,"Each",0,"Total"]
["1 Ω",null,1.85,null,0.75,null,0.1,{"$f":"(B9*C9)+(D9*E9)+(F9*G9)","v":0},141,null,null,null,null,null,null,null,null,null,null,null,null,null,null,null,null,{"$f":"+I9","v":141},{"$f":"+A9","v":"1 Ω"},{"$f":"+B9","v":0},{"$f":"+C9","v":1.85},{"$f":"+D9","v":0},{"$f":"+E9","v":0.75},{"$f":"+F9","v":0},{"$f":"+G9","v":0.1},{"$f":"+H9","v":0}]
["1.5 Ω",null,1.85,null,0.75,null,0.1,{"$f":"(B10*C10)+(D10*E10)+(F10*G10)","v":0},142,null,null,null,null,null,null,null,null,null,null,null,null,null,null,null,null,142,"1.5 Ω",{"$f":"+B10","v":0},{"$f":"+C10","v":1.85},{"$f":"+D10","v":0},{"$f":"+E10","v":0.75},{"$f":"+F10","v":0},{"$f":"+G10","v":0.1},{"$f":"+H10","v":0}]
["1.8 Ω",null,1.85,null,0.75,null,0.1,0,143,null,null,null,null,null,null,null,null,null,null,null,null,null,null,null,null,143,"1.8 Ω",0,1.85,0,0.75,0,0.1,0]
["2.2 Ω",null,1.85,null,0.75,null,0.1,0,144,null,null,null,null,null,null,null,null,null,null,null,null,null,null,null,null,144,"2.2 Ω",0,1.85,0,0.75,0,0.1,0]
["3.3 Ω",null,1.85,null,0.75,null,0.1,0,145,null,null,null,null,null,null,null,null,null,null,null,null,null,null,null,null,145,"3.3 Ω",0,1.85,0,0.75,0,0.1,0]
["4.7 Ω",null,1.85,null,0.75,null,0.1,0,146,null,null,null,null,null,null,null,null,null,null,null,null,null,null,null,null,146,"4.7 Ω",0,1.85,0,0.75,0,0.1,0]
["5.6 Ω",null,1.85,null,0.75,null,0.1,0,147,null,null,null,null,null,null,null,null,null,null,null,null,null,null,null,null,147,"5.6 Ω",0,1.85,0,0.75,0,0.1,0]
["6.8 Ω",null,1.85,null,0.75,null,0.1,0,148,null,null,null,null,null,null,null,null,null,null,null,null,null,null,null,null,148,"6.8 Ω",0,1.85,0,0.75,0,0.1,0]
["8.2 Ω",null,1.85,null,0.75,null,0.1,0,149,null,null,null,null,null,null,null,null,null,null,null,null,null,null,null,null,149,"8.2 Ω",0,1.85,0,0.75,0,0.1,0]
["10 Ω",null,1.85,null,0.75,null,0.1,0,150,null,null,null,null,null,null,null,null,null,null,null,null,null,null,null,null,150,"10 Ω",0,1.85,0,0.75,0,0.1,0]
["12 Ω",null,1.85,null,0.75,null,0.1,0,151,null,null,null,null,null,null,null,null,null,null,null,null,null,null,null,null,151,"12 Ω",0,1.85,0,0.75,0,0.1,0]
["15 Ω",null,1.85,null,0.75,null,0.1,0,152,null,null,null,null,null,null,null,null,null,null,null,null,null,null,null,null,152,"15 Ω",0,1.85,0,0.75,0,0.1,0]
["18 Ω",null,1.85,null,0.75,null,0.1,0,153,null,null,null,null,null,null,null,null,null,null,null,null,null,null,null,null,153,"18 Ω",0,1.85,0,0.75,0,0.1,0]
["22 Ω",null,1.85,null,0.75,null,0.1,0,154,null,null,null,null,null,null,null,null,null,null,null,null,null,null,null,null,154,"22 Ω",0,1.85,0,0.75,0,0.1,0]
["27 Ω",null,1.85,null,0.75,null,0.1,0,155,null,null,null,null,null,null,null,null,null,null,null,null,null,null,null,null,155,"27 Ω",0,1.85,0,0.75,0,0.1,0]
["33 Ω",null,1.85,null,0.75,null,0.1,0,156,null,null,null,null,null,null,null,null,null,null,null,null,null,null,null,null,156,"33 Ω",0,1.85,0,0.75,0,0.1,0]
["39 Ω",null,1.85,null,0.75,null,0.1,0,157,null,null,null,null,null,null,null,null,null,null,null,null,null,null,null,null,157,"39 Ω",0,1.85,0,0.75,0,0.1,0]
["47 Ω",null,1.85,null,0.75,null,0.1,0,158,null,null,null,null,null,null,null,null,null,null,null,null,null,null,null,null,158,"47 Ω",0,1.85,0,0.75,0,0.1,0]
["56 Ω",null,1.85,null,0.75,null,0.1,0,159,null,null,null,null,null,null,null,null,null,null,null,null,null,null,null,null,159,"56 Ω",0,1.85,0,0.75,0,0.1,0]
["68 Ω",null,1.85,null,0.75,null,0.1,0,160,null,null,null,null,null,null,null,null,null,null,null,null,null,null,null,null,160,"68 Ω",0,1.85,0,0.75,0,0.1,0]
["82 Ω",null,1.85,null,0.75,null,0.1,0,161,null,null,null,null,null,null,null,null,null,null,null,null,null,null,null,null,161,"82 Ω",0,1.85,0,0.75,0,0.1,0]
["100 Ω",null,1.85,null,0.75,null,0.1,0,162,null,null,null,null,null,null,null,null,null,null,null,null,null,null,null,null,162,"100 Ω",0,1.85,0,0.75,0,0.1,0]
["120 Ω",null,1.85,null,0.75,null,0.1,0,163,null,null,null,null,null,null,null,null,null,null,null,null,null,null,null,null,163,"120 Ω",0,1.85,0,0.75,0,0.1,0]
["150 Ω",null,1.85,null,0.75,null,0.1,0,164,null,null,null,null,null,null,null,null,null,null,null,null,null,null,null,null,164,"150 Ω",0,1.85,0,0.75,0,0.1,0]
["180 Ω",null,1.85,null,0.75,null,0.1,0,165,null,null,null,null,null,null,null,null,null,null,null,null,null,null,null,null,165,"180 Ω",0,1.85,0,0.75,0,0.1,0]
["220 Ω",null,1.85,null,0.75,null,0.1,0,166,null,null,null,null,null,null,null,null,null,null,null,null,null,null,null,null,166,"220 Ω",0,1.85,0,0.75,0,0.1,0]
["270 Ω",null,1.85,null,0.75,null,0.1,0,167,null,null,null,null,null,null,null,null,null,null,null,null,null,null,null,null,167,"270 Ω",0,1.85,0,0.75,0,0.1,0]
["330 Ω",null,1.85,null,0.75,null,0.1,0,168,null,null,null,null,null,null,null,null,null,null,null,null,null,null,null,null,168,"330 Ω",0,1.85,0,0.75,0,0.1,0]
["390 Ω",null,1.85,null,0.75,null,0.1,0,169,null,null,null,null,null,null,null,null,null,null,null,null,null,null,null,null,169,"390 Ω",0,1.85,0,0.75,0,0.1,0]
["470 Ω",null,1.85,null,0.75,null,0.1,0,170,null,null,null,null,null,null,null,null,null,null,null,null,null,null,null,null,170,"470 Ω",0,1.85,0,0.75,0,0.1,0]
["560 Ω",null,1.85,null,0.75,null,0.1,0,171,null,null,null,null,null,null,null,null,null,null,null,null,null,null,null,null,171,"560 Ω",0,1.85,0,0.75,0,0.1,0]
["680 Ω",null,1.85,null,0.75,null,0.1,0,172,null,null,null,null,null,null,null,null,null,null,null,null,null,null,null,null,172,"680 Ω",0,1.85,0,0.75,0,0.1,0]
["820 Ω",null,1.85,null,0.75,null,0.1,0,173,null,null,null,null,null,null,null,null,null,null,null,null,null,null,null,null,173,"820 Ω",0,1.85,0,0.75,0,0.1,0]
["1K Ω",null,1.85,null,0.75,null,0.1,0,174,null,null,null,null,null,null,null,null,null,null,null,null,null,null,null,null,174,"1K Ω",0,1.85,0,0.75,0,0.1,0]
["1.2K Ω",null,1.85,null,0.75,null,0.1,0,175,null,null,null,null,null,null,null,null,null,null,null,null,null,null,null,null,175,"1.2K Ω",0,1.85,0,0.75,0,0.1,0]
["1.5K Ω",null,1.85,null,0.75,null,0.1,0,176,null,null,null,null,null,null,null,null,null,null,null,null,null,null,null,null,176,"1.5K Ω",0,1.85,0,0.75,0,0.1,0]
["1.8K Ω",null,1.85,null,0.75,null,0.1,0,177,null,null,null,null,null,null,null,null,null,null,null,null,null,null,null,null,177,"1.8K Ω",0,1.85,0,0.75,0,0.1,0]
["2.2K Ω",null,1.85,null,0.75,null,0.1,0,178,null,null,null,null,null,null,null,null,null,null,null,null,null,null,null,null,178,"2.2K Ω",0,1.85,0,0.75,0,0.1,0]
["2.7K Ω",null,1.85,null,0.75,null,0.1,0,179,null,null,null,null,null,null,null,null,null,null,null,null,null,null,null,null,179,"2.7K Ω",0,1.85,0,0.75,0,0.1,0]
["3.3K Ω",null,1.85,null,0.75,null,0.1,0,180,null,null,null,null,null,null,null,null,null,null,null,null,null,null,null,null,180,"3.3K Ω",0,1.85,0,0.75,0,0.1,0]
["3.9K Ω",null,1.85,null,0.75,null,0.1,0,181,null,null,null,null,null,null,null,null,null,null,null,null,null,null,null,null,181,"3.9K Ω",0,1.85,0,0.75,0,0.1,0]
["4.7K Ω",null,1.85,null,0.75,null,0.1,0,182,null,null,null,null,null,null,null,null,null,null,null,null,null,null,null,null,182,"4.7K Ω",0,1.85,0,0.75,0,0.1,0]
["5.6K Ω",null,1.85,null,0.75,null,0.1,0,183,null,null,null,null,null,null,null,null,null,null,null,null,null,null,null,null,183,"5.6K Ω",0,1.85,0,0.75,0,0.1,0]
["6.8K Ω",null,1.85,null,0.75,null,0.1,0,184,null,null,null,null,null,null,null,null,null,null,null,null,null,null,null,null,184,"6.8K Ω",0,1.85,0,0.75,0,0.1,0]
["8.2K Ω",null,1.85,null,0.75,null,0.1,0,185,null,null,null,null,null,null,null,null,null,null,null,null,null,null,null,null,185,"8.2K Ω",0,1.85,0,0.75,0,0.1,0]
["10K Ω",null,1.85,null,0.75,null,0.1,0,186,null,null,null,null,null,null,null,null,null,null,null,null,null,null,null,null,186,"10K Ω",0,1.85,0,0.75,0,0.1,0]
["12K Ω",null,1.85,null,0.75,null,0.1,0,187,null,null,null,null,null,null,null,null,null,null,null,null,null,null,null,null,187,"12K Ω",0,1.85,0,0.75,0,0.1,0]
["15K Ω",null,1.85,null,0.75,null,0.1,0,188,null,null,null,null,null,null,null,null,null,null,null,null,null,null,null,null,188,"15K Ω",0,1.85,0,0.75,0,0.1,0]
["18K Ω",null,1.85,null,0.75,null,0.1,0,189,null,null,null,null,null,null,null,null,null,null,null,null,null,null,null,null,189,"18K Ω",0,1.85,0,0.75,0,0.1,0]
["22K Ω",null,1.85,null,0.75,null,0.1,0,190,null,null,null,null,null,null,null,null,null,null,null,null,null,null,null,null,190,"22K Ω",0,1.85,0,0.75,0,0.1,0]
["27K Ω",null,1.85,null,0.75,null,0.1,0,191,null,null,null,null,null,null,null,null,null,null,null,null,null,null,null,null,191,"27K Ω",0,1.85,0,0.75,0,0.1,0]
["33K Ω",null,1.85,null,0.75,null,0.1,0,192,null,null,null,null,null,null,null,null,null,null,null,null,null,null,null,null,192,"33K Ω",0,1.85,0,0.75,0,0.1,0]
["39K Ω",null,1.85,null,0.75,null,0.1,0,193,null,null,null,null,null,null,null,null,null,null,null,null,null,null,null,null,193,"39K Ω",0,1.85,0,0.75,0,0.1,0]
["47K Ω",null,1.85,null,0.75,null,0.1,0,194,null,null,null,null,null,null,null,null,null,null,null,null,null,null,null,null,194,"47K Ω",0,1.85,0,0.75,0,0.1,0]
["51K Ω",null,1.85,null,0.75,null,0.1,0,195,null,null,null,null,null,null,null,null,null,null,null,null,null,null,null,null,195,"51K Ω",0,1.85,0,0.75,0,0.1,0]
["56K Ω",null,1.85,null,0.75,null,0.1,0,196,null,null,null,null,null,null,null,null,null,null,null,null,null,null,null,null,196,"56K Ω",0,1.85,0,0.75,0,0.1,0]
["68K Ω",null,1.85,null,0.75,null,0.1,0,197,null,null,null,null,null,null,null,null,null,null,null,null,null,null,null,null,197,"68K Ω",0,1.85,0,0.75,0,0.1,0]
["82K Ω",null,1.85,null,0.75,null,0.1,0,198,null,null,null,null,null,null,null,null,null,null,null,null,null,null,null,null,198,"82K Ω",0,1.85,0,0.75,0,0.1,0]
["100K Ω",null,1.85,null,0.75,null,0.1,0,199,null,null,null,null,null,null,null,null,null,null,null,null,null,null,null,null,199,"100K Ω",0,1.85,0,0.75,0,0.1,0]
["120K Ω",null,1.85,null,0.75,null,0.1,0,200,null,null,null,null,null,null,null,null,null,null,null,null,null,null,null,null,200,"120K Ω",0,1.85,0,0.75,0,0.1,0]
["150K Ω",null,1.85,null,0.75,null,0.1,0,201,null,null,null,null,null,null,null,null,null,null,null,null,null,null,null,null,201,"150K Ω",0,1.85,0,0.75,0,0.1,0]
["180K Ω",null,1.85,null,0.75,null,0.1,0,202,null,null,null,null,null,null,null,null,null,null,null,null,null,null,null,null,{"$f":"+I70","v":202},{"$f":"+A70","v":"180K Ω"},0,1.85,0,0.75,0,0.1,0]
["220K Ω",null,1.85,null,0.75,null,0.1,0,203,null,null,null,null,null,null,null,null,null,null,null,null,null,null,null,null,203,"220K Ω",0,1.85,0,0.75,0,0.1,0]
["270K Ω",null,1.85,null,0.75,null,0.1,0,204,null,null,null,null,null,null,null,null,null,null,null,null,null,null,null,null,204,"270K Ω",0,1.85,0,0.75,0,0.1,0]
["330K Ω",null,1.85,null,0.75,null,0.1,0,205,null,null,null,null,null,null,null,null,null,null,null,null,null,null,null,null,205,"330K Ω",0,1.85,0,0.75,0,0.1,0]
["390K Ω",null,1.85,null,0.75,null,0.1,{"$f":"(B74*C74)+(D74*E74)+(F74*G74)","v":0},206,null,null,null,null,null,null,null,null,null,null,null,null,null,null,null,null,206,"390K Ω",{"$f":"+B74","v":0},{"$f":"+C74","v":1.85},{"$f":"+D74","v":0},{"$f":"+E74","v":0.75},{"$f":"+F74","v":0},{"$f":"+G74","v":0.1},{"$f":"+H74","v":0}]
["470K Ω",null,1.85,null,0.75,null,0.1,0,207,null,null,null,null,null,null,null,null,null,null,null,null,null,null,null,null,207,"470K Ω",0,1.85,0,0.75,0,0.1,0]
["560K Ω",null,1.85,null,0.75,null,0.1,0,208,null,null,null,null,null,null,null,null,null,null,null,null,null,null,null,null,208,"560K Ω",0,1.85,0,0.75,0,0.1,0]
["680K Ω",null,1.85,null,0.75,null,0.1,0,209,null,null,null,null,null,null,null,null,null,null,null,null,null,null,null,null,209,"680K Ω",0,1.85,0,0.75,0,0.1,0]
["820K Ω",null,1.85,null,0.75,null,0.1,0,210,null,null,null,null,null,null,null,null,null,null,null,null,null,null,null,null,210,"820K Ω",0,1.85,0,0.75,0,0.1,0]
["1M Ω",null,1.85,null,0.75,null,0.1,0,211,null,null,null,null,null,null,null,null,null,null,null,null,null,null,null,null,211,"1M Ω",0,1.85,0,0.75,0,0.1,0]
["1.2M Ω",null,1.85,null,0.75,null,0.1,0,212,null,null,null,null,null,null,null,null,null,null,null,null,null,null,null,null,212,"1.2M Ω",0,1.85,0,0.75,0,0.1,0]
["2.2M Ω",null,1.85,null,0.75,null,0.1,0,213,null,null,null,null,null,null,null,null,null,null,null,null,null,null,null,null,213,"2.2M Ω",0,1.85,0,0.75,0,0.1,0]
["2.7M Ω",null,1.85,null,0.75,null,0.1,0,214,null,null,null,null,null,null,null,null,null,null,null,null,null,null,null,null,214,"2.7M Ω",0,1.85,0,0.75,0,0.1,0]
["3.3M Ω",null,1.85,null,0.75,null,0.1,0,215,null,null,null,null,null,null,null,null,null,null,null,null,null,null,null,null,215,"3.3M Ω",0,1.85,0,0.75,0,0.1,0]
["3.9M Ω",null,1.85,null,0.75,null,0.1,0,216,null,null,null,null,null,null,null,null,null,null,null,null,null,null,null,null,216,"3.9M Ω",0,1.85,0,0.75,0,0.1,0]
["4.7M Ω",null,1.85,null,0.75,null,0.1,0,217,null,null,null,null,null,null,null,null,null,null,null,null,null,null,null,null,217,"4.7M Ω",0,1.85,0,0.75,0,0.1,0]
["5.6M Ω",null,1.85,null,0.75,null,0.1,0,218,null,null,null,null,null,null,null,null,null,null,null,null,null,null,null,null,218,"5.6M Ω",0,1.85,0,0.75,0,0.1,0]
["6.8M Ω",null,1.85,null,0.75,null,0.1,0,219,null,null,null,null,null,null,null,null,null,null,null,null,null,null,null,null,219,"6.8M Ω",0,1.85,0,0.75,0,0.1,0]
["8.2M Ω",null,1.85,null,0.75,null,0.1,0,220,null,null,null,null,null,null,null,null,null,null,null,null,null,null,null,null,220,"8.2M Ω",0,1.85,0,0.75,0,0.1,0]
["10M Ω",null,1.85,null,0.75,null,0.1,0,221,null,null,null,null,null,null,null,null,null,null,null,null,null,null,null,null,221,"10M Ω",0,1.85,0,0.75,0,0.1,0]
[null,null,null,null,null,null,null,null,null,null,null,null,null,null,null,null,null,null,null,null,null,null,null,null,null,0,0,0,0,0,0,0,0,0]
[null,null,null,"Total 1/2 Watt Metal Film Resistors",null,null,null,{"$f":"SUM(H9:H89)","v":0},null,null,null,null,null,null,null,null,null,null,null,null,null,null,null,null,null,0,0,0,0,"Total 1/2 Watt Metal Film Resistors",0,0,0,0]
[null,null,null,null,null,null,null,null,null,null,null,null,null,null,null,null,null,null,null,null,null,null,null,null,null,0,0,0,0,0,0,0,0,0]
["1-Watt Metal Film Resistors",null,null,null,null,null,null,null,null,null,null,null,null,null,null,null,null,null,null,null,null,null,null,null,null,0,"1-Watt Metal Film Resistors",0,0,0,0,0,0,0]
[null,"Bag of 25",null,"Bag of 10",null,"Each",null,"Total",null,null,null,null,null,null,null,null,null,null,null,null,null,null,null,null,null,0,0,"Bag of 25",0,"Bag of 10",0,"Each",0,"Total"]
["1.2M Ω",null,2.75,null,1.08,null,0.12,{"$f":"(B95*C95)+(D95*E95)+(F95*G95)","v":0},222,null,null,null,null,null,null,null,null,null,null,null,null,null,null,null,null,222,"1.2M Ω",0,2.75,0,1.08,0,0.12,0]
["1.5M Ω",null,2.75,null,1.08,null,0.12,{"$f":"(B96*C96)+(D96*E96)+(F96*G96)","v":0},223,null,null,null,null,null,null,null,null,null,null,null,null,null,null,null,null,223,"1.5M Ω",0,2.75,0,1.08,0,0.12,0]
["2.2M Ω",null,2.75,null,1.08,null,0.12,0,224,null,null,null,null,null,null,null,null,null,null,null,null,null,null,null,null,224,"2.2M Ω",0,2.75,0,1.08,0,0.12,0]
["3.3M Ω",null,2.75,null,1.08,null,0.12,0,225,null,null,null,null,null,null,null,null,null,null,null,null,null,null,null,null,225,"3.3M Ω",0,2.75,0,1.08,0,0.12,0]
["4.7M Ω",null,2.75,null,1.08,null,0.12,0,226,null,null,null,null,null,null,null,null,null,null,null,null,null,null,null,null,226,"4.7M Ω",0,2.75,0,1.08,0,0.12,0]
["6.8M Ω",null,2.75,null,1.08,null,0.12,0,227,null,null,null,null,null,null,null,null,null,null,null,null,null,null,null,null,227,"6.8M Ω",0,2.75,0,1.08,0,0.12,0]
[null,null,null,null,null,null,null,null,null,null,null,null,null,null,null,null,null,null,null,null,null,null,null,null,null,0,0,0,0,0,0,0,0,0]
[null,null,null,"Total 1-Watt Metal Film Resistors",null,null,null,{"$f":"SUM(H95:H100)","v":0},null,null,null,null,null,null,null,null,null,null,null,null,null,null,null,null,null,0,0,0,0,"Total 1-Watt Metal Film Resistors",0,0,0,0]
[null,null,null,null,null,null,null,null,null,null,null,null,null,null,null,null,null,null,null,null,null,null,null,null,null,0,0,0,0,0,0,0,0,0]
["1-Watt No Longer In Stock, Order 1/2 watt or 2 watt below",null,null,null,null,null,null,null,null,null,null,null,null,null,null,null,null,null,null,null,null,null,null,null,null,0,"1-Watt No Longer In Stock, Order 1/2 watt or 2 watt below",0,0,0,0,0,0,0]
[null,"Bag of 25",null,"Bag of 10",null,"Each",null,"Total",null,null,null,null,null,null,null,null,null,null,null,null,null,null,null,null,null,0,0,"Bag of 25",0,"Bag of 10",0,"Each",0,"Total"]
[" No Longer Available",null,2.2000000000000002,null,0.9,null,0.1,{"$f":"(B106*C106)+(D106*E106)+(F106*G106)","v":0},228,null,null,null,null,null,null,null,null,null,null,null,null,null,null,null,null,228," No Longer Available",0,2.2000000000000002,0,0.9,0,0.1,0]
[" No Longer Available",null,2.2000000000000002,null,0.9,null,0.1,{"$f":"(B107*C107)+(D107*E107)+(F107*G107)","v":0},229,null,null,null,null,null,null,null,null,null,null,null,null,null,null,null,null,229," No Longer Available",0,2.2000000000000002,0,0.9,0,0.1,0]
[" No Longer Available",null,2.2000000000000002,null,0.9,null,0.1,0,230,null,null,null,null,null,null,null,null,null,null,null,null,null,null,null,null,230," No Longer Available",0,2.2000000000000002,0,0.9,0,0.1,0]
[" No Longer Available",null,2.2000000000000002,null,0.9,null,0.1,0,231,null,null,null,null,null,null,null,null,null,null,null,null,null,null,null,null,231," No Longer Available",0,2.2000000000000002,0,0.9,0,0.1,0]
[" No Longer Available",null,2.2000000000000002,null,0.9,null,0.1,0,232,null,null,null,null,null,null,null,null,null,null,null,null,null,null,null,null,232," No Longer Available",0,2.2000000000000002,0,0.9,0,0.1,0]
[" No Longer Available",null,2.2000000000000002,null,0.9,null,0.1,0,233,null,null,null,null,null,null,null,null,null,null,null,null,null,null,null,null,233," No Longer Available",0,2.2000000000000002,0,0.9,0,0.1,0]
[" No Longer Available",null,2.2000000000000002,null,0.9,null,0.1,0,234,null,null,null,null,null,null,null,null,null,null,null,null,null,null,null,null,234," No Longer Available",0,2.2000000000000002,0,0.9,0,0.1,0]
[" No Longer Available",null,2.2000000000000002,null,0.9,null,0.1,0,235,null,null,null,null,null,null,null,null,null,null,null,null,null,null,null,null,235," No Longer Available",0,2.2000000000000002,0,0.9,0,0.1,0]
[" No Longer Available",null,2.2000000000000002,null,0.9,null,0.1,0,236,null,null,null,null,null,null,null,null,null,null,null,null,null,null,null,null,236," No Longer Available",0,2.2000000000000002,0,0.9,0,0.1,0]
[" No Longer Available",null,2.2000000000000002,null,0.9,null,0.1,0,237,null,null,null,null,null,null,null,null,null,null,null,null,null,null,null,null,237," No Longer Available",0,2.2000000000000002,0,0.9,0,0.1,0]
[" No Longer Available",null,2.2000000000000002,null,0.9,null,0.1,0,238,null,null,null,null,null,null,null,null,null,null,null,null,null,null,null,null,238," No Longer Available",0,2.2000000000000002,0,0.9,0,0.1,0]
[" No Longer Available",null,2.2000000000000002,null,0.9,null,0.1,0,239,null,null,null,null,null,null,null,null,null,null,null,null,null,null,null,null,239," No Longer Available",0,2.2000000000000002,0,0.9,0,0.1,0]
[" No Longer Available",null,2.2000000000000002,null,0.9,null,0.1,0,240,null,null,null,null,null,null,null,null,null,null,null,null,null,null,null,null,240," No Longer Available",0,2.2000000000000002,0,0.9,0,0.1,0]
[" No Longer Available",null,2.2000000000000002,null,0.9,null,0.1,0,241,null,null,null,null,null,null,null,null,null,null,null,null,null,null,null,null,241," No Longer Available",0,2.2000000000000002,0,0.9,0,0.1,0]
[" No Longer Available",null,2.2000000000000002,null,0.9,null,0.1,0,242,null,null,null,null,null,null,null,null,null,null,null,null,null,null,null,null,242," No Longer Available",0,2.2000000000000002,0,0.9,0,0.1,0]
[" No Longer Available",null,2.2000000000000002,null,0.9,null,0.1,0,243,null,null,null,null,null,null,null,null,null,null,null,null,null,null,null,null,243," No Longer Available",0,2.2000000000000002,0,0.9,0,0.1,0]
[" No Longer Available",null,2.2000000000000002,null,0.9,null,0.1,0,244,null,null,null,null,null,null,null,null,null,null,null,null,null,null,null,null,244," No Longer Available",0,2.2000000000000002,0,0.9,0,0.1,0]
[" No Longer Available",null,2.2000000000000002,null,0.9,null,0.1,0,245,null,null,null,null,null,null,null,null,null,null,null,null,null,null,null,null,245," No Longer Available",0,2.2000000000000002,0,0.9,0,0.1,0]
[" No Longer Available",null,2.2000000000000002,null,0.9,null,0.1,0,246,null,null,null,null,null,null,null,null,null,null,null,null,null,null,null,null,246," No Longer Available",0,2.2000000000000002,0,0.9,0,0.1,0]
[" No Longer Available",null,2.2000000000000002,null,0.9,null,0.1,0,247,null,null,null,null,null,null,null,null,null,null,null,null,null,null,null,null,247," No Longer Available",0,2.2000000000000002,0,0.9,0,0.1,0]
[" No Longer Available",null,2.2000000000000002,null,0.9,null,0.1,0,248,null,null,null,null,null,null,null,null,null,null,null,null,null,null,null,null,248," No Longer Available",0,2.2000000000000002,0,0.9,0,0.1,0]
[" No Longer Available",null,2.2000000000000002,null,0.9,null,0.1,0,249,null,null,null,null,null,null,null,null,null,null,null,null,null,null,null,null,249," No Longer Available",0,2.2000000000000002,0,0.9,0,0.1,0]
[" No Longer Available",null,2.2000000000000002,null,0.9,null,0.1,0,250,null,null,null,null,null,null,null,null,null,null,null,null,null,null,null,null,250," No Longer Available",0,2.2000000000000002,0,0.9,0,0.1,0]
[" No Longer Available",null,2.2000000000000002,null,0.9,null,0.1,0,251,null,null,null,null,null,null,null,null,null,null,null,null,null,null,null,null,251," No Longer Available",0,2.2000000000000002,0,0.9,0,0.1,0]
[" No Longer Available",null,2.2000000000000002,null,0.9,null,0.1,0,252,null,null,null,null,null,null,null,null,null,null,null,null,null,null,null,null,252," No Longer Available",0,2.2000000000000002,0,0.9,0,0.1,0]
[" No Longer Available",null,2.2000000000000002,null,0.9,null,0.1,0,253,null,null,null,null,null,null,null,null,null,null,null,null,null,null,null,null,253," No Longer Available",0,2.2000000000000002,0,0.9,0,0.1,0]
[" No Longer Available",null,2.2000000000000002,null,0.9,null,0.1,0,254,null,null,null,null,null,null,null,null,null,null,null,null,null,null,null,null,254," No Longer Available",0,2.2000000000000002,0,0.9,0,0.1,0]
[" No Longer Available",null,2.2000000000000002,null,0.9,null,0.1,0,255,null,null,null,null,null,null,null,null,null,null,null,null,null,null,null,null,255," No Longer Available",0,2.2000000000000002,0,0.9,0,0.1,0]
[" No Longer Available",null,2.2000000000000002,null,0.9,null,0.1,0,256,null,null,null,null,null,null,null,null,null,null,null,null,null,null,null,null,{"$f":"+I134","v":256},{"$f":"+A134","v":" No Longer Available"},0,2.2000000000000002,0,0.9,0,0.1,0]
[" No Longer Available",null,2.2000000000000002,null,0.9,null,0.1,0,257,null,null,null,null,null,null,null,null,null,null,null,null,null,null,null,null,257," No Longer Available",0,2.2000000000000002,0,0.9,0,0.1,0]
[" No Longer Available",null,2.2000000000000002,null,0.9,null,0.1,0,258,null,null,null,null,null,null,null,null,null,null,null,null,null,null,null,null,258," No Longer Available",0,2.2000000000000002,0,0.9,0,0.1,0]
[" No Longer Available",null,2.2000000000000002,null,0.9,null,0.1,0,259,null,null,null,null,null,null,null,null,null,null,null,null,null,null,null,null,259," No Longer Available",0,2.2000000000000002,0,0.9,0,0.1,0]
[" No Longer Available",null,2.2000000000000002,null,0.9,null,0.1,0,260,null,null,null,null,null,null,null,null,null,null,null,null,null,null,null,null,260," No Longer Available",{"$f":"+B138","v":0},{"$f":"+C138","v":2.2000000000000002},{"$f":"+D138","v":0},{"$f":"+E138","v":0.9},{"$f":"+F138","v":0},{"$f":"+G138","v":0.1},{"$f":"+H138","v":0}]
[" No Longer Available",null,2.2000000000000002,null,0.9,null,0.1,0,261,null,null,null,null,null,null,null,null,null,null,null,null,null,null,null,null,261," No Longer Available",0,2.2000000000000002,0,0.9,0,0.1,0]
[" No Longer Available",null,2.2000000000000002,null,0.9,null,0.1,0,262,null,null,null,null,null,null,null,null,null,null,null,null,null,null,null,null,262," No Longer Available",0,2.2000000000000002,0,0.9,0,0.1,0]
[" No Longer Available",null,2.2000000000000002,null,0.9,null,0.1,0,263,null,null,null,null,null,null,null,null,null,null,null,null,null,null,null,null,263," No Longer Available",0,2.2000000000000002,0,0.9,0,0.1,0]
[" No Longer Available",null,2.2000000000000002,null,0.9,null,0.1,0,264,null,null,null,null,null,null,null,null,null,null,null,null,null,null,null,null,264," No Longer Available",0,2.2000000000000002,0,0.9,0,0.1,0]
[" No Longer Available",null,2.2000000000000002,null,0.9,null,0.1,0,265,null,null,null,null,null,null,null,null,null,null,null,null,null,null,null,null,265," No Longer Available",0,2.2000000000000002,0,0.9,0,0.1,0]
[" No Longer Available",null,2.2000000000000002,null,0.9,null,0.1,0,266,null,null,null,null,null,null,null,null,null,null,null,null,null,null,null,null,266," No Longer Available",0,2.2000000000000002,0,0.9,0,0.1,0]
[" No Longer Available",null,2.2000000000000002,null,0.9,null,0.1,0,267,null,null,null,null,null,null,null,null,null,null,null,null,null,null,null,null,267," No Longer Available",0,2.2000000000000002,0,0.9,0,0.1,0]
[" No Longer Available",null,2.2000000000000002,null,0.9,null,0.1,0,268,null,null,null,null,null,null,null,null,null,null,null,null,null,null,null,null,268," No Longer Available",0,2.2000000000000002,0,0.9,0,0.1,0]
[" No Longer Available",null,2.2000000000000002,null,0.9,null,0.1,0,269,null,null,null,null,null,null,null,null,null,null,null,null,null,null,null,null,269," No Longer Available",0,2.2000000000000002,0,0.9,0,0.1,0]
[" No Longer Available",null,2.2000000000000002,null,0.9,null,0.1,0,270,null,null,null,null,null,null,null,null,null,null,null,null,null,null,null,null,270," No Longer Available",0,2.2000000000000002,0,0.9,0,0.1,0]
[" No Longer Available",null,2.2000000000000002,null,0.9,null,0.1,0,271,null,null,null,null,null,null,null,null,null,null,null,null,null,null,null,null,271," No Longer Available",0,2.2000000000000002,0,0.9,0,0.1,0]
[" No Longer Available",null,2.2000000000000002,null,0.9,null,0.1,0,272,null,null,null,null,null,null,null,null,null,null,null,null,null,null,null,null,272," No Longer Available",0,2.2000000000000002,0,0.9,0,0.1,0]
[" No Longer Available",null,2.2000000000000002,null,0.9,null,0.1,0,273,null,null,null,null,null,null,null,null,null,null,null,null,null,null,null,null,273," No Longer Available",0,2.2000000000000002,0,0.9,0,0.1,0]
[" No Longer Available",null,2.2000000000000002,null,0.9,null,0.1,0,274,null,null,null,null,null,null,null,null,null,null,null,null,null,null,null,null,274," No Longer Available",0,2.2000000000000002,0,0.9,0,0.1,0]
[" No Longer Available",null,2.2000000000000002,null,0.9,null,0.1,0,275,null,null,null,null,null,null,null,null,null,null,null,null,null,null,null,null,275," No Longer Available",0,2.2000000000000002,0,0.9,0,0.1,0]
[" No Longer Available",null,2.2000000000000002,null,0.9,null,0.1,0,276,null,null,null,null,null,null,null,null,null,null,null,null,null,null,null,null,276," No Longer Available",0,2.2000000000000002,0,0.9,0,0.1,0]
[" No Longer Available",null,2.2000000000000002,null,0.9,null,0.1,0,277,null,null,null,null,null,null,null,null,null,null,null,null,null,null,null,null,277," No Longer Available",0,2.2000000000000002,0,0.9,0,0.1,0]
[" No Longer Available",null,2.2000000000000002,null,0.9,null,0.1,0,278,null,null,null,null,null,null,null,null,null,null,null,null,null,null,null,null,278," No Longer Available",0,2.2000000000000002,0,0.9,0,0.1,0]
[" No Longer Available",null,2.2000000000000002,null,0.9,null,0.1,0,279,null,null,null,null,null,null,null,null,null,null,null,null,null,null,null,null,279," No Longer Available",0,2.2000000000000002,0,0.9,0,0.1,0]
[" No Longer Available",null,2.2000000000000002,null,0.9,null,0.1,0,280,null,null,null,null,null,null,null,null,null,null,null,null,null,null,null,null,280," No Longer Available",0,2.2000000000000002,0,0.9,0,0.1,0]
[" No Longer Available",null,2.2000000000000002,null,0.9,null,0.1,0,281,null,null,null,null,null,null,null,null,null,null,null,null,null,null,null,null,281," No Longer Available",0,2.2000000000000002,0,0.9,0,0.1,0]
[" No Longer Available",null,2.2000000000000002,null,0.9,null,0.1,0,282,null,null,null,null,null,null,null,null,null,null,null,null,null,null,null,null,282," No Longer Available",0,2.2000000000000002,0,0.9,0,0.1,0]
[" No Longer Available",null,2.2000000000000002,null,0.9,null,0.1,0,283,null,null,null,null,null,null,null,null,null,null,null,null,null,null,null,null,283," No Longer Available",0,2.2000000000000002,0,0.9,0,0.1,0]
[" No Longer Available",null,2.2000000000000002,null,0.9,null,0.1,0,284,null,null,null,null,null,null,null,null,null,null,null,null,null,null,null,null,284," No Longer Available",0,2.2000000000000002,0,0.9,0,0.1,0]
[" No Longer Available",null,2.2000000000000002,null,0.9,null,0.1,0,285,null,null,null,null,null,null,null,null,null,null,null,null,null,null,null,null,285," No Longer Available",0,2.2000000000000002,0,0.9,0,0.1,0]
[" No Longer Available",null,2.2000000000000002,null,0.9,null,0.1,0,286,null,null,null,null,null,null,null,null,null,null,null,null,null,null,null,null,286," No Longer Available",0,2.2000000000000002,0,0.9,0,0.1,0]
[" No Longer Available",null,2.2000000000000002,null,0.9,null,0.1,0,287,null,null,null,null,null,null,null,null,null,null,null,null,null,null,null,null,287," No Longer Available",0,2.2000000000000002,0,0.9,0,0.1,0]
[" No Longer Available",null,2.2000000000000002,null,0.9,null,0.1,0,288,null,null,null,null,null,null,null,null,null,null,null,null,null,null,null,null,288," No Longer Available",0,2.2000000000000002,0,0.9,0,0.1,0]
[" No Longer Available",null,2.2000000000000002,null,0.9,null,0.1,0,289,null,null,null,null,null,null,null,null,null,null,null,null,null,null,null,null,289," No Longer Available",0,2.2000000000000002,0,0.9,0,0.1,0]
[" No Longer Available",null,2.2000000000000002,null,0.9,null,0.1,0,290,null,null,null,null,null,null,null,null,null,null,null,null,null,null,null,null,290," No Longer Available",0,2.2000000000000002,0,0.9,0,0.1,0]
[" No Longer Available",null,2.2000000000000002,null,0.9,null,0.1,0,291,null,null,null,null,null,null,null,null,null,null,null,null,null,null,null,null,291," No Longer Available",0,2.2000000000000002,0,0.9,0,0.1,0]
[" No Longer Available",null,2.2000000000000002,null,0.9,null,0.1,0,292,null,null,null,null,null,null,null,null,null,null,null,null,null,null,null,null,292," No Longer Available",0,2.2000000000000002,0,0.9,0,0.1,0]
[" No Longer Available",null,2.2000000000000002,null,0.9,null,0.1,{"$f":"(B171*C171)+(D171*E171)+(F171*G171)","v":0},293,null,null,null,null,null,null,null,null,null,null,null,null,null,null,null,null,293," No Longer Available",0,2.2000000000000002,0,0.9,0,0.1,0]
[" No Longer Available",null,2.2000000000000002,null,0.9,null,0.1,0,294,null,null,null,null,null,null,null,null,null,null,null,null,null,null,null,null,294," No Longer Available",0,2.2000000000000002,0,0.9,0,0.1,0]
[" No Longer Available",null,2.2000000000000002,null,0.9,null,0.1,0,295,null,null,null,null,null,null,null,null,null,null,null,null,null,null,null,null,295," No Longer Available",0,2.2000000000000002,0,0.9,0,0.1,0]
[" No Longer Available",null,2.2000000000000002,null,0.9,null,0.1,0,296,null,null,null,null,null,null,null,null,null,null,null,null,null,null,null,null,296," No Longer Available",0,2.2000000000000002,0,0.9,0,0.1,0]
[null,null,null,null,null,null,null,null,null,null,null,null,null,null,null,null,null,null,null,null,null,null,null,null,null,0,0,0,0,0,0,0,0,0]
[null,null,null,"Total 1-Watt Metal Oxide",null,null,null,{"$f":"SUM(H106:H174)","v":0},null,null,null,null,null,null,null,null,null,null,null,null,null,null,null,null,null,0,0,0,0,"Total 1-Watt Metal Oxide",0,0,0,0]
[null,null,null,null,null,null,null,null,null,null,null,null,null,null,null,null,null,null,null,null,null,null,null,null,null,0,0,0,0,0,0,0,0,0]
["2-Watt Metal Film Resistors",null,null,null,null,null,null,null,null,null,null,null,null,null,null,null,null,null,null,null,null,null,null,null,null,0,"2-Watt Metal Film Resistors",0,0,0,0,0,0,0]
[null,"Bag of 25",null,"Bag of 10",null,"Each",null,"Total",null,null,null,null,null,null,null,null,null,null,null,null,null,null,null,null,null,0,0,"Bag of 25",0,"Bag of 10",0,"Each",0,"Total"]
["2.2 Ω",null,4,null,1.7,null,0.18,{"$f":"(B180*C180)+(D180*E180)+(F180*G180)","v":0},297,null,null,null,null,null,null,null,null,null,null,null,null,null,null,null,null,297,"2.2 Ω",0,4,0,1.7,0,0.18,0]
["3.3 Ω",null,4,null,1.7,null,0.18,{"$f":"(B181*C181)+(D181*E181)+(F181*G181)","v":0},298,null,null,null,null,null,null,null,null,null,null,null,null,null,null,null,null,298,"3.3 Ω",0,4,0,1.7,0,0.18,0]
["4.7 Ω",null,4,null,1.7,null,0.18,0,299,null,null,null,null,null,null,null,null,null,null,null,null,null,null,null,null,299,"4.7 Ω",0,4,0,1.7,0,0.18,0]
["5.6 Ω",null,4,null,1.7,null,0.18,0,300,null,null,null,null,null,null,null,null,null,null,null,null,null,null,null,null,300,"5.6 Ω",0,4,0,1.7,0,0.18,0]
["6.8 Ω",null,4,null,1.7,null,0.18,0,301,null,null,null,null,null,null,null,null,null,null,null,null,null,null,null,null,301,"6.8 Ω",0,4,0,1.7,0,0.18,0]
["8.2 Ω",null,4,null,1.7,null,0.18,0,302,null,null,null,null,null,null,null,null,null,null,null,null,null,null,null,null,302,"8.2 Ω",0,4,0,1.7,0,0.18,0]
["10 Ω",null,4,null,1.7,null,0.18,0,303,null,null,null,null,null,null,null,null,null,null,null,null,null,null,null,null,303,"10 Ω",0,4,0,1.7,0,0.18,0]
["12 Ω",null,4,null,1.7,null,0.18,0,304,null,null,null,null,null,null,null,null,null,null,null,null,null,null,null,null,304,"12 Ω",0,4,0,1.7,0,0.18,0]
["15 Ω",null,4,null,1.7,null,0.18,0,305,null,null,null,null,null,null,null,null,null,null,null,null,null,null,null,null,305,"15 Ω",0,4,0,1.7,0,0.18,0]
["18 Ω",null,4,null,1.7,null,0.18,0,306,null,null,null,null,null,null,null,null,null,null,null,null,null,null,null,null,306,"18 Ω",0,4,0,1.7,0,0.18,0]
["22 Ω",null,4,null,1.7,null,0.18,0,307,null,null,null,null,null,null,null,null,null,null,null,null,null,null,null,null,307,"22 Ω",0,4,0,1.7,0,0.18,0]
["27 Ω",null,4,null,1.7,null,0.18,0,308,null,null,null,null,null,null,null,null,null,null,null,null,null,null,null,null,308,"27 Ω",0,4,0,1.7,0,0.18,0]
["33 Ω",null,4,null,1.7,null,0.18,0,309,null,null,null,null,null,null,null,null,null,null,null,null,null,null,null,null,309,"33 Ω",0,4,0,1.7,0,0.18,0]
["39 Ω",null,4,null,1.7,null,0.18,0,310,null,null,null,null,null,null,null,null,null,null,null,null,null,null,null,null,310,"39 Ω",0,4,0,1.7,0,0.18,0]
["47 Ω",null,4,null,1.7,null,0.18,0,311,null,null,null,null,null,null,null,null,null,null,null,null,null,null,null,null,311,"47 Ω",0,4,0,1.7,0,0.18,0]
["56 Ω",null,4,null,1.7,null,0.18,0,312,null,null,null,null,null,null,null,null,null,null,null,null,null,null,null,null,312,"56 Ω",0,4,0,1.7,0,0.18,0]
["68 Ω",null,4,null,1.7,null,0.18,0,313,null,null,null,null,null,null,null,null,null,null,null,null,null,null,null,null,313,"68 Ω",0,4,0,1.7,0,0.18,0]
["82 Ω",null,4,null,1.7,null,0.18,0,314,null,null,null,null,null,null,null,null,null,null,null,null,null,null,null,null,{"$f":"+I197","v":314},{"$f":"+A197","v":"82 Ω"},0,4,0,1.7,0,0.18,0]
["100 Ω",null,4,null,1.7,null,0.18,0,315,null,null,null,null,null,null,null,null,null,null,null,null,null,null,null,null,315,"100 Ω",0,4,0,1.7,0,0.18,0]
["120 Ω",null,4,null,1.7,null,0.18,0,316,null,null,null,null,null,null,null,null,null,null,null,null,null,null,null,null,316,"120 Ω",0,4,0,1.7,0,0.18,0]
["150 Ω",null,4,null,1.7,null,0.18,0,317,null,null,null,null,null,null,null,null,null,null,null,null,null,null,null,null,317,"150 Ω",0,4,0,1.7,0,0.18,0]
["180 Ω",null,4,null,1.7,null,0.18,0,318,null,null,null,null,null,null,null,null,null,null,null,null,null,null,null,null,318,"180 Ω",{"$f":"+B201","v":0},{"$f":"+C201","v":4},{"$f":"+D201","v":0},{"$f":"+E201","v":1.7},{"$f":"+F201","v":0},{"$f":"+G201","v":0.18},{"$f":"+H201","v":0}]
["220 Ω",null,4,null,1.7,null,0.18,0,319,null,null,null,null,null,null,null,null,null,null,null,null,null,null,null,null,319,"220 Ω",0,4,0,1.7,0,0.18,0]
["270 Ω",null,4,null,1.7,null,0.18,0,320,null,null,null,null,null,null,null,null,null,null,null,null,null,null,null,null,320,"270 Ω",0,4,0,1.7,0,0.18,0]
["330 Ω",null,4,null,1.7,null,0.18,0,321,null,null,null,null,null,null,null,null,null,null,null,null,null,null,null,null,321,"330 Ω",0,4,0,1.7,0,0.18,0]
["390 Ω",null,4,null,1.7,null,0.18,0,322,null,null,null,null,null,null,null,null,null,null,null,null,null,null,null,null,322,"390 Ω",0,4,0,1.7,0,0.18,0]
["470 Ω",null,4,null,1.7,null,0.18,0,323,null,null,null,null,null,null,null,null,null,null,null,null,null,null,null,null,323,"470 Ω",0,4,0,1.7,0,0.18,0]
["560 Ω",null,4,null,1.7,null,0.18,0,324,null,null,null,null,null,null,null,null,null,null,null,null,null,null,null,null,324,"560 Ω",0,4,0,1.7,0,0.18,0]
["680 Ω",null,4,null,1.7,null,0.18,0,325,null,null,null,null,null,null,null,null,null,null,null,null,null,null,null,null,325,"680 Ω",0,4,0,1.7,0,0.18,0]
["820 Ω",null,4,null,1.7,null,0.18,0,326,null,null,null,null,null,null,null,null,null,null,null,null,null,null,null,null,326,"820 Ω",0,4,0,1.7,0,0.18,0]
["1K Ω",null,4,null,1.7,null,0.18,0,327,null,null,null,null,null,null,null,null,null,null,null,null,null,null,null,null,327,"1K Ω",0,4,0,1.7,0,0.18,0]
["1.2K Ω",null,4,null,1.7,null,0.18,0,328,null,null,null,null,null,null,null,null,null,null,null,null,null,null,null,null,328,"1.2K Ω",0,4,0,1.7,0,0.18,0]
["1.5K Ω",null,4,null,1.7,null,0.18,0,329,null,null,null,null,null,null,null,null,null,null,null,null,null,null,null,null,329,"1.5K Ω",0,4,0,1.7,0,0.18,0]
["1.8K Ω",null,4,null,1.7,null,0.18,0,330,null,null,null,null,null,null,null,null,null,null,null,null,null,null,null,null,330,"1.8K Ω",0,4,0,1.7,0,0.18,0]
["2.2K Ω",null,4,null,1.7,null,0.18,0,331,null,null,null,null,null,null,null,null,null,null,null,null,null,null,null,null,331,"2.2K Ω",0,4,0,1.7,0,0.18,0]
["2.7K Ω",null,4,null,1.7,null,0.18,0,332,null,null,null,null,null,null,null,null,null,null,null,null,null,null,null,null,332,"2.7K Ω",0,4,0,1.7,0,0.18,0]
["3.3K Ω",null,4,null,1.7,null,0.18,0,333,null,null,null,null,null,null,null,null,null,null,null,null,null,null,null,null,333,"3.3K Ω",0,4,0,1.7,0,0.18,0]
["3.9K Ω",null,4,null,1.7,null,0.18,0,334,null,null,null,null,null,null,null,null,null,null,null,null,null,null,null,null,334,"3.9K Ω",0,4,0,1.7,0,0.18,0]
["4.7K Ω",null,4,null,1.7,null,0.18,0,335,null,null,null,null,null,null,null,null,null,null,null,null,null,null,null,null,335,"4.7K Ω",0,4,0,1.7,0,0.18,0]
["5.6K Ω",null,4,null,1.7,null,0.18,0,336,null,null,null,null,null,null,null,null,null,null,null,null,null,null,null,null,336,"5.6K Ω",0,4,0,1.7,0,0.18,0]
["6.8K Ω",null,4,null,1.7,null,0.18,0,337,null,null,null,null,null,null,null,null,null,null,null,null,null,null,null,null,337,"6.8K Ω",0,4,0,1.7,0,0.18,0]
["8.2K Ω",null,4,null,1.7,null,0.18,0,338,null,null,null,null,null,null,null,null,null,null,null,null,null,null,null,null,338,"8.2K Ω",0,4,0,1.7,0,0.18,0]
["10K Ω",null,4,null,1.7,null,0.18,0,339,null,null,null,null,null,null,null,null,null,null,null,null,null,null,null,null,339,"10K Ω",0,4,0,1.7,0,0.18,0]
["12K Ω",null,4,null,1.7,null,0.18,0,340,null,null,null,null,null,null,null,null,null,null,null,null,null,null,null,null,340,"12K Ω",0,4,0,1.7,0,0.18,0]
["15K Ω",null,4,null,1.7,null,0.18,0,341,null,null,null,null,null,null,null,null,null,null,null,null,null,null,null,null,341,"15K Ω",0,4,0,1.7,0,0.18,0]
["18K Ω",null,4,null,1.7,null,0.18,0,342,null,null,null,null,null,null,null,null,null,null,null,null,null,null,null,null,342,"18K Ω",0,4,0,1.7,0,0.18,0]
["22K Ω",null,4,null,1.7,null,0.18,0,343,null,null,null,null,null,null,null,null,null,null,null,null,null,null,null,null,343,"22K Ω",0,4,0,1.7,0,0.18,0]
["27K Ω",null,4,null,1.7,null,0.18,0,344,null,null,null,null,null,null,null,null,null,null,null,null,null,null,null,null,344,"27K Ω",0,4,0,1.7,0,0.18,0]
["33K Ω",null,4,null,1.7,null,0.18,0,345,null,null,null,null,null,null,null,null,null,null,null,null,null,null,null,null,345,"33K Ω",0,4,0,1.7,0,0.18,0]
["39K Ω",null,4,null,1.7,null,0.18,0,346,null,null,null,null,null,null,null,null,null,null,null,null,null,null,null,null,346,"39K Ω",0,4,0,1.7,0,0.18,0]
["47K Ω",null,4,null,1.7,null,0.18,0,347,null,null,null,null,null,null,null,null,null,null,null,null,null,null,null,null,347,"47K Ω",0,4,0,1.7,0,0.18,0]
["51K Ω",null,4,null,1.7,null,0.18,0,348,null,null,null,null,null,null,null,null,null,null,null,null,null,null,null,null,348,"51K Ω",0,4,0,1.7,0,0.18,0]
["56K Ω",null,4,null,1.7,null,0.18,0,349,null,null,null,null,null,null,null,null,null,null,null,null,null,null,null,null,349,"56K Ω",0,4,0,1.7,0,0.18,0]
["68K Ω",null,4,null,1.7,null,0.18,0,350,null,null,null,null,null,null,null,null,null,null,null,null,null,null,null,null,350,"68K Ω",0,4,0,1.7,0,0.18,0]
["82K Ω",null,4,null,1.7,null,0.18,0,351,null,null,null,null,null,null,null,null,null,null,null,null,null,null,null,null,351,"82K Ω",0,4,0,1.7,0,0.18,0]
["100K Ω",null,4,null,1.7,null,0.18,0,352,null,null,null,null,null,null,null,null,null,null,null,null,null,null,null,null,352,"100K Ω",0,4,0,1.7,0,0.18,0]
["120K Ω",null,4,null,1.7,null,0.18,0,353,null,null,null,null,null,null,null,null,null,null,null,null,null,null,null,null,353,"120K Ω",0,4,0,1.7,0,0.18,0]
["150K Ω",null,4,null,1.7,null,0.18,0,354,null,null,null,null,null,null,null,null,null,null,null,null,null,null,null,null,354,"150K Ω",0,4,0,1.7,0,0.18,0]
["180K Ω",null,4,null,1.7,null,0.18,0,355,null,null,null,null,null,null,null,null,null,null,null,null,null,null,null,null,355,"180K Ω",0,4,0,1.7,0,0.18,0]
["220K Ω",null,4,null,1.7,null,0.18,0,356,null,null,null,null,null,null,null,null,null,null,null,null,null,null,null,null,356,"220K Ω",0,4,0,1.7,0,0.18,0]
["270K Ω",null,4,null,1.7,null,0.18,0,357,null,null,null,null,null,null,null,null,null,null,null,null,null,null,null,null,357,"270K Ω",0,4,0,1.7,0,0.18,0]
["330K Ω",null,4,null,1.7,null,0.18,0,358,null,null,null,null,null,null,null,null,null,null,null,null,null,null,null,null,358,"330K Ω",0,4,0,1.7,0,0.18,0]
["390K Ω",null,4,null,1.7,null,0.18,0,359,null,null,null,null,null,null,null,null,null,null,null,null,null,null,null,null,359,"390K Ω",0,4,0,1.7,0,0.18,0]
["470K Ω",null,4,null,1.7,null,0.18,0,360,null,null,null,null,null,null,null,null,null,null,null,null,null,null,null,null,360,"470K Ω",0,4,0,1.7,0,0.18,0]
["560K Ω",null,4,null,1.7,null,0.18,0,361,null,null,null,null,null,null,null,null,null,null,null,null,null,null,null,null,361,"560K Ω",0,4,0,1.7,0,0.18,0]
["680K Ω",null,4,null,1.7,null,0.18,{"$f":"(B245*C245)+(D245*E245)+(F245*G245)","v":0},362,null,null,null,null,null,null,null,null,null,null,null,null,null,null,null,null,362,"680K Ω",0,4,0,1.7,0,0.18,0]
["820K Ω",null,4,null,1.7,null,0.18,0,363,null,null,null,null,null,null,null,null,null,null,null,null,null,null,null,null,363,"820K Ω",0,4,0,1.7,0,0.18,0]
["1M Ω",null,4,null,1.7,null,0.18,0,364,null,null,null,null,null,null,null,null,null,null,null,null,null,null,null,null,364,"1M Ω",0,4,0,1.7,0,0.18,0]
["1.2M Ω",null,4,null,1.7,null,0.18,0,365,null,null,null,null,null,null,null,null,null,null,null,null,null,null,null,null,365,"1.2M Ω",0,4,0,1.7,0,0.18,0]
[null,null,null,null,null,null,null,null,null,null,null,null,null,null,null,null,null,null,null,null,null,null,null,null,null,0,0,0,0,0,0,0,0,0]
[null,null,null,"Total 2-Watt Metal Film Resistors",null,null,null,{"$f":"SUM(H180:H248)","v":0},null,null,null,null,null,null,null,null,null,null,null,null,null,null,null,null,null,0,0,0,0,"Total 2-Watt Metal Film Resistors",0,0,0,0]
[null,null,null,null,null,null,null,null,null,null,null,null,null,null,null,null,null,null,null,null,null,null,null,null,null,0,0,0,0,0,0,0,0,0]
[null,null,null,"Resistors Total",null,null,null,{"$f":"SUM(H250+H176+H102+H91+H5)","v":0},null,null,null,null,null,null,null,null,null,null,null,null,null,null,null,null,null,0,0,0,0,"Resistors Total",0,0,0,0]
[null,null,null,null,null,null,null,null,null,null,null,null,null,null,null,null,null,null,null,null,null,null,null,null,null,0,0,0,0,0,0,0,0,0]
[null,null,null,null,null,null,null,null,null,null,null,null,null,null,null,null,null,null,null,null,null,null,null,null,null,0,0,0,0,0,0,0,0,0]
[null,null,null,null,null,null,null,null,null,null,null,null,null,null,null,null,null,null,null,null,null,null,null,null,null,0,0,0,0,0,0,0,0,0]
[null,null,null,null,null,null,null,null,null,null,null,null,null,null,null,null,null,null,null,null,null,null,null,null,null,0,0,0,0,0,0,0,0,0]
[null,null,null,null,null,null,null,null,null,null,null,null,null,null,null,null,null,null,null,null,null,null,null,null,null,0,0,0,0,0,0,0,0,0]
[null,null,null,null,null,null,null,null,null,null,null,null,null,null,null,null,null,null,null,null,null,null,null,null,null,0,0,0,0,0,0,0,0,0]
[null,null,null,null,null,null,null,null,null,null,null,null,null,null,null,null,null,null,null,null,null,null,null,null,null,0,0,0,0,0,0,0,0,0]
[null,null,null,null,null,null,null,null,null,null,null,null,null,null,null,null,null,null,null,null,null,null,null,null,null,0,0,0,0,0,0,0,0,0]
[null,null,null,null,null,null,null,null,null,null,null,null,null,null,null,null,null,null,null,null,null,null,null,null,null,0,0,0,0,0,0,0,0,0]
[null,null,null,null,null,null,null,null,null,null,null,null,null,null,null,null,null,null,null,null,null,null,null,null,null,0,0,0,0,0,0,0,0,0]
[null,null,null,null,null,null,null,null,null,null,null,null,null,null,null,null,null,null,null,null,null,null,null,null,null,0,0,0,0,0,0,0,0,0]

{"sheet":"All Other Items","index":2,"n_rows":187,"n_cols":34,"rows_kept":187,"cut":false,"hidden":false,"merged":[]}
[null,null,null,null,null,null,null,null,null,null,null,null,null,null,null,null,null,null,null,null,null,null,null,null,null,"Column1","0","02","03","04","05","06","07","08"]
[null,null,null,null,null,"Total All Other Items:",null,{"$f":"+H182","v":0},null,null,null,null,null,null,null,null,null,null,null,null,null,null,null,null,null,{"$f":"I2","v":0},{"$f":"A2","v":0},{"$f":"B2","v":0},{"$f":"C2","v":0},{"$f":"D2","v":0},{"$f":"E2","v":0},{"$f":"F2","v":"Total All Other Items:"},{"$f":"G2","v":0},{"$f":"H2","v":0}]
[null,null,null,null,null,null,null,null,null,null,null,null,null,null,null,null,null,null,null,null,null,null,null,null,null,0,0,0,0,0,0,0,0,0]
["Stranded and Solid Wire",null,null,null,null,null,null,null,null,null,null,null,null,null,null,null,null,null,null,null,null,null,null,null,null,0,"Stranded and Solid Wire",0,0,0,0,0,0,0]
["Stranded 600V 20 AWG","25'",null,"50'",null,"Total",null,null,null,null,null,null,null,null,null,null,null,null,null,null,null,null,null,null,null,0,"Stranded 600V 20 AWG","25'",0,"50'",0,"Total",0,0]
["Red ",null,3,null,5.5,{"$f":"(B6*C6)+(D6*E6)","v":0},null,null,366,null,null,null,null,null,null,null,null,null,null,null,null,null,null,null,null,366,"Red ",0,3,0,5.5,0,0,0]
["Black",null,3,null,5.5,{"$f":"(B7*C7)+(D7*E7)","v":0},null,null,367,null,null,null,null,null,null,null,null,null,null,null,null,null,null,null,null,367,"Black",0,3,0,5.5,0,0,0]
["Green",null,3,null,5.5,0,null,null,368,null,null,null,null,null,null,null,null,null,null,null,null,null,null,null,null,368,"Green",0,3,0,5.5,0,0,0]
["White",null,3,null,5.5,0,null,null,369,null,null,null,null,null,null,null,null,null,null,null,null,null,null,null,null,369,"White",0,3,0,5.5,0,0,0]
["Stranded 300V 22 AWG",null,null,null,null,null,null,null,null,null,null,null,null,null,null,null,null,null,null,null,null,null,null,null,null,0,"Stranded 300V 22 AWG",0,0,0,0,0,0,0]
["Brown",null,1.75,null,3.25,0,null,null,370,null,null,null,null,null,null,null,null,null,null,null,null,null,null,null,null,370,"Brown",0,1.75,0,3.25,0,0,0]
["Yellow",null,1.75,null,3.25,0,null,null,371,null,null,null,null,null,null,null,null,null,null,null,null,null,null,null,null,371,"Yellow",0,1.75,0,3.25,0,0,0]
["Red",null,1.75,null,3.25,0,null,null,372,null,null,null,null,null,null,null,null,null,null,null,null,null,null,null,null,372,"Red",0,1.75,0,3.25,0,0,0]
["Black",null,1.75,null,3.25,0,null,null,373,null,null,null,null,null,null,null,null,null,null,null,null,null,null,null,null,373,"Black",0,1.75,0,3.25,0,0,0]
["Solid 600V",null,null,null,null,null,null,null,null,null,null,null,null,null,null,null,null,null,null,null,null,null,null,null,null,0,"Solid 600V",0,0,0,0,0,0,0]
["Red 22 AWG",null,3,null,5.5,0,null,null,374,null,null,null,null,null,null,null,null,null,null,null,null,null,null,null,null,374,"Red 22 AWG",0,3,0,5.5,0,0,0]
["Black 22 AWG",null,3,null,5.5,0,null,null,375,null,null,null,null,null,null,null,null,null,null,null,null,null,null,null,null,375,"Black 22 AWG",0,3,0,5.5,0,0,0]
["Red 20 AWG",null,3.5,null,6,0,null,null,376,null,null,null,null,null,null,null,null,null,null,null,null,null,null,null,null,376,"Red 20 AWG",0,3.5,0,6,0,0,0]
["Black 20 AWG",null,3.5,null,6,0,null,null,377,null,null,null,null,null,null,null,null,null,null,null,null,null,null,null,null,377,"Black 20 AWG",0,3.5,0,6,0,0,0]
["Solid 300V",null,null,null,null,null,null,null,null,null,null,null,null,null,null,null,null,null,null,null,null,null,null,null,null,0,"Solid 300V",0,0,0,0,0,0,0]
["Red 22 AWG",null,2.5,null,4.5,0,null,null,378,null,null,null,null,null,null,null,null,null,null,null,null,null,null,null,null,378,"Red 22 AWG",0,2.5,0,4.5,0,0,0]
["Black 22 AWG",null,2.5,null,4.5,0,null,null,379,null,null,null,null,null,null,null,null,null,null,null,null,null,null,null,null,379,"Black 22 AWG",0,2.5,0,4.5,0,0,0]
[null,null,null,null,"+",null,null,null,null,null,null,null,null,null,null,null,null,null,null,null,null,null,null,null,null,0,0,0,0,0,"+",0,0,0]
[null,null,null,null,"Total Wire:",null,{"$f":"SUM(F6:F22)","v":0},null,null,null,null,null,null,null,null,null,null,null,null,null,null,null,null,null,null,0,0,0,0,0,"Total Wire:",0,0,0]
[null,null,null,null,null,null,null,null,null,null,null,null,null,null,null,null,null,null,null,null,null,null,null,null,null,0,0,0,0,0,0,0,0,0]
["Spaghetti Tubing",null,null,null,null,null,null,null,null,null,null,null,null,null,null,null,null,null,null,null,null,null,null,null,null,0,"Spaghetti Tubing",0,0,0,0,0,0,0]
[null,"8'",null,null,"Total",null,null,null,null,null,null,null,null,null,null,null,null,null,null,null,null,null,null,null,null,0,0,"8'",0,0,"Total",0,0,0]
["300V Teflon 18 gauge",null,3.5,null,{"$f":"(B28*C28)","v":0},null,null,null,380,null,null,null,null,null,null,null,null,null,null,null,null,null,null,null,null,380,"300V Teflon 18 gauge",0,3.5,0,0,0,0,0]
["300V Black PVC 17 gauge",null,2,null,{"$f":"(B29*C29)","v":0},null,null,null,381,null,null,null,null,null,null,null,null,null,null,null,null,null,null,null,null,381,"300V Black PVC 17 gauge",0,2,0,0,0,0,0]
["300V White PVC 16 gauge",null,2,null,0,null,null,null,382,null,null,null,null,null,null,null,null,null,null,null,null,null,null,null,null,382,"300V White PVC 16 gauge",0,2,0,0,0,0,0]
["300V Red PVC 18 gauge",null,2,null,0,null,null,null,383,null,null,null,null,null,null,null,null,null,null,null,null,null,null,null,null,383,"300V Red PVC 18 gauge",0,2,0,0,0,0,0]
[null,null,null,null,null,null,null,null,null,null,null,null,null,null,null,null,null,null,null,null,null,null,null,null,null,0,0,0,0,0,0,0,0,0]
[null,null,null,null,"Total Tubing:",null,{"$f":"SUM(E28:E31)","v":0},null,null,null,null,null,null,null,null,null,null,null,null,null,null,null,null,null,null,0,0,0,0,0,"Total Tubing:",0,0,0]
[null,null,null,null,null,null,null,null,null,null,null,null,null,null,null,null,null,null,null,null,null,null,null,null,null,{"$f":"I34","v":0},{"$f":"A34","v":0},0,0,0,0,0,0,0]
["Dial Cord",null,null,null,null,null,null,null,null,null,null,null,null,null,null,null,null,null,null,null,null,null,null,null,null,0,"Dial Cord",0,0,0,0,0,0,0]
[null,"12'",null,"24'",null,"Total",null,null,null,null,null,null,null,null,null,null,null,null,null,null,null,null,null,null,null,0,0,"12'",0,"24'",0,"Total",0,0]
[null,null,null,null,null,null,null,null,null,null,null,null,null,null,null,null,null,null,null,null,null,null,null,null,null,0,0,0,0,0,0,0,0,0]
["0.028\" diameter",null,1.7,null,3,{"$f":"(B38*C38)+(D38*E38)","v":0},null,null,384,null,null,null,null,null,null,null,null,null,null,null,null,null,null,null,null,384,"0.028\" diameter",0,1.7,0,3,0,0,0]
["0.040\" diameter",null,1.7,null,3,0,null,null,385,null,null,null,null,null,null,null,null,null,null,null,null,null,null,null,null,385,"0.040\" diameter",0,1.7,0,3,0,0,0]
["0.062\" diameter",null,1.7,null,3,0,null,null,386,null,null,null,null,null,null,null,null,null,null,null,null,null,null,null,null,386,"0.062\" diameter",0,1.7,0,3,0,0,0]
[null,null,null,null,null,null,null,null,null,null,null,null,null,null,null,null,null,null,null,null,null,null,null,null,null,0,0,0,0,0,0,0,0,0]
[null,null,null,null,"Total Dial Cord:",null,{"$f":"SUM(F37:F40)","v":0},null,null,null,null,null,null,null,null,null,null,null,null,null,null,null,null,null,null,0,0,0,0,0,"Total Dial Cord:",0,0,0]
[null,null,null,null,null,null,null,null,null,null,null,null,null,null,null,null,null,null,null,null,null,null,null,null,null,0,0,0,0,0,0,0,0,0]
["Line Cord  SPT-1 18 AWG 10'",null,null,null,null,null,null,null,null,null,null,null,null,null,null,null,null,null,null,null,null,null,null,null,null,0,"Line Cord  SPT-1 18 AWG 10'",0,0,0,0,0,0,0]
[null,10,null,"Each",null,"Total",null,null,null,null,null,null,null,null,null,null,null,null,null,null,null,null,null,null,null,0,0,10,0,"Each",0,"Total",0,0]
["Brown",null,27,null,2.85,{"$f":"(B46*C46)+(D46*E46)","v":0},null,null,387,null,null,null,null,null,null,null,null,null,null,null,null,null,null,null,null,387,"Brown",0,27,0,2.85,0,0,0]
["Black",null,27,null,2.85,{"$f":"(B47*C47)+(D47*E47)","v":0},null,null,388,null,null,null,null,null,null,null,null,null,null,null,null,null,null,null,null,388,"Black",0,27,0,2.85,0,0,0]
["White",null,27,null,2.85,{"$f":"(B48*C48)+(D48*E48)","v":0},null,null,null,null,null,null,null,null,null,null,null,null,null,null,null,null,null,null,null,0,"White",0,27,0,2.85,0,0,0]
[null,null,null,null,"Total Line Cord:",null,{"$f":"SUM(F46:F48)","v":0},null,null,null,null,null,null,null,null,null,null,null,null,null,null,null,null,null,null,0,0,0,0,0,"Total Line Cord:",0,0,0]
[null,null,null,null,null,null,null,null,null,null,null,null,null,null,null,null,null,null,null,null,null,null,null,null,null,0,0,0,0,0,0,0,0,0]
["Diodes",null,null,null,null,null,null,null,null,null,null,null,null,null,null,null,null,null,null,null,null,null,null,null,null,0,"Diodes",0,0,0,0,0,0,0]
[null,100,null,25,null,"Total",null,null,null,null,null,null,null,null,null,null,null,null,null,null,null,null,null,null,null,0,0,100,0,25,0,"Total",0,0]
["1N4007  1000V  1A",null,3.5,null,1,{"$f":"(B53*C53)+(D53*E53)","v":0},null,null,389,null,null,null,null,null,null,null,null,null,null,null,null,null,null,null,null,389,"1N4007  1000V  1A",0,3.5,0,1,0,0,0]
["UF4007  1000V  1A  Fast",null,6,null,2,{"$f":"(B54*C54)+(D54*E54)","v":0},null,null,390,null,null,null,null,null,null,null,null,null,null,null,null,null,null,null,null,390,"UF4007  1000V  1A  Fast",0,6,0,2,0,0,0]
["1N5408  1000V  3A",null,12,null,3.5,0,null,null,391,null,null,null,null,null,null,null,null,null,null,null,null,null,null,null,null,391,"1N5408  1000V  3A",0,12,0,3.5,0,0,0]
["1N914",null,3.5,null,1,0,null,null,392,null,null,null,null,null,null,null,null,null,null,null,null,null,null,null,null,392,"1N914",0,3.5,0,1,0,0,0]
[null,null,null,null,null,null,null,null,null,null,null,null,null,null,null,null,null,null,null,null,null,null,null,null,null,0,0,0,0,0,0,0,0,0]
[null,null,null,null,"Total Diodes:",null,{"$f":"SUM(F53:F56)","v":0},null,null,null,null,null,null,null,null,null,null,null,null,null,null,null,null,null,null,0,0,0,0,0,"Total Diodes:",0,0,0]
[null,null,null,null,null,null,null,null,null,null,null,null,null,null,null,null,null,null,null,null,null,null,null,null,null,0,0,0,0,0,0,0,0,0]
["Bulbs",null,null,null,null,null,null,null,null,null,null,null,null,null,null,null,null,null,null,null,null,null,null,null,null,0,"Bulbs",0,0,0,0,0,0,0]
[null,"Box of 10",null,null,null,"Total",null,null,null,null,null,null,null,null,null,null,null,null,null,null,null,null,null,null,null,0,0,"Box of 10",0,0,0,"Total",0,0]
["#44  6.3V Bayonet 250 mA",null,2.75,null,null,{"$f":"(B62*C62)","v":0},null,null,393,null,null,null,null,null,null,null,null,null,null,null,null,null,null,null,null,393,"#44  6.3V Bayonet 250 mA",0,2.75,0,0,0,0,0]
["#46  6.3V Screw 250 mA",null,3.5,null,null,{"$f":"(B63*C63)","v":0},null,null,394,null,null,null,null,null,null,null,null,null,null,null,null,null,null,null,null,394,"#46  6.3V Screw 250 mA",0,3.5,0,0,0,0,0]
["#47  6.3V Bayonet 150 mA",null,2.75,null,null,0,null,null,395,null,null,null,null,null,null,null,null,null,null,null,null,null,null,null,null,395,"#47  6.3V Bayonet 150 mA",0,2.75,0,0,0,0,0]
[null,null,null,null,null,0,null,null,396,null,null,null,null,null,null,null,null,null,null,null,null,null,null,null,null,396,0,0,0,0,0,0,0,0]
[null,null,null,null,null,null,null,null,null,null,null,null,null,null,null,null,null,null,null,null,null,null,null,null,null,{"$f":"I66","v":0},{"$f":"A66","v":0},0,0,0,0,0,0,0]
[null,null,null,null,"Total Bulbs:",null,{"$f":"SUM(F62:F65)","v":0},null,null,null,null,null,null,null,null,null,null,null,null,null,null,null,null,null,null,0,0,0,0,0,"Total Bulbs:",0,0,0]
[null,null,null,null,null,null,null,null,null,null,null,null,null,null,null,null,null,null,null,null,null,null,null,null,null,0,0,0,0,0,0,0,0,0]
["NE-2 Neon bulbs",null,null,null,null,null,null,null,null,null,null,null,null,null,null,null,null,null,null,null,null,null,null,null,null,0,"NE-2 Neon bulbs",0,0,0,0,0,0,0]
[null,"Each",null,null,null,"Total",null,null,null,null,null,null,null,null,null,null,null,null,null,null,null,null,null,null,null,0,0,"Each",0,0,0,"Total",0,0]
["w/ Resistor",null,0.3,null,null,{"$f":"(B71*C71)","v":0},null,null,397,null,null,null,null,null,null,null,null,null,null,null,null,null,null,null,null,397,"w/ Resistor",0,0.3,0,0,0,0,0]
["w/o Resistor",null,0.3,null,null,{"$f":"(B72*C72)","v":0},null,null,398,null,null,null,null,null,null,null,null,null,null,null,null,null,null,null,null,398,"w/o Resistor",0,0.3,0,0,0,0,0]
[null,null,null,null,null,null,null,null,null,null,null,null,null,null,null,null,null,null,null,null,null,null,null,null,null,0,0,0,0,0,0,0,0,0]
[null,null,null,null,"Total Neon:",null,{"$f":"SUM(F71:F72)","v":0},null,null,null,null,null,null,null,null,null,null,null,null,null,null,null,null,null,null,0,0,0,0,0,"Total Neon:",0,0,0]
[null,null,null,null,null,null,null,null,null,null,null,null,null,null,null,null,null,null,null,null,null,null,null,null,null,0,0,0,0,0,0,0,0,0]
["Bayonet Sockets",null,null,null,null,null,null,null,null,null,null,null,null,null,null,null,null,null,null,null,null,null,null,null,null,0,"Bayonet Sockets",0,0,0,0,0,0,0]
[null,"Each",null,null,null,"Total",null,null,null,null,null,null,null,null,null,null,null,null,null,null,null,null,null,null,null,0,0,"Each",0,0,0,"Total",0,0]
["Type A",null,1.5,null,null,{"$f":"(B78*C78)","v":0},null,null,399,null,null,null,null,null,null,null,null,null,null,null,null,null,null,null,null,399,"Type A",0,1.5,0,0,0,0,0]
["Type B",null,1.5,null,null,{"$f":"(B79*C79)","v":0},null,null,400,null,null,null,null,null,null,null,null,null,null,null,null,null,null,null,null,400,"Type B",0,1.5,0,0,0,0,0]
["Type C",null,1.5,null,null,0,null,null,401,null,null,null,null,null,null,null,null,null,null,null,null,null,null,null,null,401,"Type C",0,1.5,0,0,0,0,0]
["Type D",null,1.5,null,null,0,null,null,402,null,null,null,null,null,null,null,null,null,null,null,null,null,null,null,null,402,"Type D",0,1.5,0,0,0,0,0]
["Type E",null,2.5,null,null,0,null,null,403,null,null,null,null,null,null,null,null,null,null,null,null,null,null,null,null,403,"Type E",0,2.5,0,0,0,0,0]
[null,null,null,null,null,null,null,null,null,null,null,null,null,null,null,null,null,null,null,null,null,null,null,null,null,0,0,0,0,0,0,0,0,0]
[null,null,null,null,"Total Sockets:",null,{"$f":"SUM(F78:F82)","v":0},null,null,null,null,null,null,null,null,null,null,null,null,null,null,null,null,null,null,0,0,0,0,0,"Total Sockets:",0,0,0]
[null,null,null,null,null,null,null,null,null,null,null,null,null,null,null,null,null,null,null,null,null,null,null,null,null,0,0,0,0,0,0,0,0,0]
["Terminal Strips",null,null,null,null,null,null,null,null,null,null,null,null,null,null,null,null,null,null,null,null,null,null,null,null,0,"Terminal Strips",0,0,0,0,0,0,0]
[null,null,null,"Each",null,"Total",null,null,null,null,null,null,null,null,null,null,null,null,null,null,null,null,null,null,null,0,0,0,0,"Each",0,"Total",0,0]
["A - One Hole Mount",null,null,null,0.35,{"$f":"(D88*E88)","v":0},null,null,404,null,null,null,null,null,null,null,null,null,null,null,null,null,null,null,null,404,"A - One Hole Mount",0,0,0,0.35,0,0,0]
["B - 2 Terminal 2 Hole Mount",null,null,null,0.4,{"$f":"(D89*E89)","v":0},null,null,405,null,null,null,null,null,null,null,null,null,null,null,null,null,null,null,null,405,"B - 2 Terminal 2 Hole Mount",0,0,0,0.4,0,0,0]
["C - 3 Terminal One Hole Mount",null,null,null,0.65,0,null,null,406,null,null,null,null,null,null,null,null,null,null,null,null,null,null,null,null,406,"C - 3 Terminal One Hole Mount",0,0,0,0.65,0,0,0]
["D - Out of Stock",null,null,null,0,0,null,null,407,null,null,null,null,null,null,null,null,null,null,null,null,null,null,null,null,407,"D - Out of Stock",0,0,0,0,0,0,0]
["E - Out of Stock",null,null,null,0,0,null,null,408,null,null,null,null,null,null,null,null,null,null,null,null,null,null,null,null,408,"E - Out of Stock",0,0,0,0,0,0,0]
[null,null,null,null,null,null,null,null,null,null,null,null,null,null,null,null,null,null,null,null,null,null,null,null,null,0,0,0,0,0,0,0,0,0]
[null,null,null,null,"Total Terminal Strips:",null,{"$f":"SUM(F88:F92)","v":0},null,null,null,null,null,null,null,null,null,null,null,null,null,null,null,null,null,null,0,0,0,0,0,"Total Terminal Strips:",0,0,0]
[null,null,null,null,null,null,null,null,null,null,null,null,null,null,null,null,null,null,null,null,null,null,null,null,null,0,0,0,0,0,0,0,0,0]
["Fuse Holders",null,null,null,null,null,null,null,null,null,null,null,null,null,null,null,null,null,null,null,null,null,null,null,null,0,"Fuse Holders",0,0,0,0,0,0,0]
[null,"Each",null,null,null,"Total",null,null,null,null,null,null,null,null,null,null,null,null,null,null,null,null,null,null,null,0,0,"Each",0,0,0,"Total",0,{"$f":"H97","v":0}]
["A - Panel Mount",null,1,null,null,{"$f":"(B98*C98)","v":0},null,null,409,null,null,null,null,null,null,null,null,null,null,null,null,null,null,null,null,{"$f":"I98","v":409},{"$f":"A98","v":"A - Panel Mount"},0,1,0,0,0,0,0]
["B - Base Mount",null,1.25,null,null,{"$f":"(B99*C99)","v":0},null,null,410,null,null,null,null,null,null,null,null,null,null,null,null,null,null,null,null,410,"B - Base Mount",0,1.25,0,0,0,0,0]
["C - In Line",null,0.75,null,null,0,null,null,411,null,null,null,null,null,null,null,null,null,null,null,null,null,null,null,null,411,"C - In Line",0,0.75,0,0,0,0,0]
["D - In Line -Out of Stock",null,0.5,null,null,0,null,null,412,null,null,null,null,null,null,null,null,null,null,null,null,null,null,null,null,412,"D - In Line -Out of Stock",0,0.5,0,0,0,0,0]
["E - Panel Mount",null,0.75,null,null,0,null,null,413,null,null,null,null,null,null,null,null,null,null,null,null,null,null,null,null,413,"E - Panel Mount",0,0.75,0,0,0,0,0]
[null,null,null,null,null,null,null,null,null,null,null,null,null,null,null,null,null,null,null,null,null,null,null,null,null,0,0,0,0,0,0,0,0,0]
[null,null,null,null,"Total Fuseholders:",null,{"$f":"SUM(F98:F102)","v":0},null,null,null,null,null,null,null,null,null,null,null,null,null,null,null,null,null,null,0,0,0,0,0,"Total Fuseholders:",0,0,0]
[null,null,null,null,null,null,null,null,null,null,null,null,null,null,null,null,null,null,null,null,null,null,null,null,null,0,0,0,0,0,0,0,0,0]
["Fuses For A B and C Sockets Above",null,null,null,null,null,null,null,null,null,null,null,null,null,null,null,null,null,null,null,null,null,null,null,null,0,"Fuses For A B and C Sockets Above",0,0,0,0,0,0,0]
[null,"Each",null,null,null,"Total",null,null,null,null,null,null,null,null,null,null,null,null,null,null,null,null,null,null,null,0,0,"Each",0,0,0,"Total",0,0]
["1 Amp",null,0.4,null,null,{"$f":"(B108*C108)","v":0},null,null,414,null,null,null,null,null,null,null,null,null,null,null,null,null,null,null,null,414,"1 Amp",0,0.4,0,0,0,0,0]
["2 Amps",null,0.4,null,null,{"$f":"(B109*C109)","v":0},null,null,415,null,null,null,null,null,null,null,null,null,null,null,null,null,null,null,null,415,"2 Amps",0,0.4,0,0,0,0,0]
[null,null,null,null,null,null,null,null,null,null,null,null,null,null,null,null,null,null,null,null,null,null,null,null,null,0,0,0,0,0,0,0,0,0]
["Fuses For 5 x 20mm D & E sockets Above",null,null,null,null,null,null,null,null,null,null,null,null,null,null,null,null,null,null,null,null,null,null,null,null,0,"Fuses For 5 x 20mm D & E sockets Above",0,0,0,0,0,0,0]
[null,"Each",null,null,null,"Total",null,null,null,null,null,null,null,null,null,null,null,null,null,null,null,null,null,null,null,0,0,"Each",0,0,0,"Total",0,0]
["1 Amp",null,0.3,null,null,{"$f":"(B113*C113)","v":0},null,null,416,null,null,null,null,null,null,null,null,null,null,null,null,null,null,null,null,416,"1 Amp",0,0.3,0,0,0,0,0]
["1.5 Amp",null,0.3,null,null,{"$f":"(B114*C114)","v":0},null,null,417,null,null,null,null,null,null,null,null,null,null,null,null,null,null,null,null,417,"1.5 Amp",0,0.3,0,0,0,0,0]
["2 Amps",null,0.3,null,null,0,null,null,418,null,null,null,null,null,null,null,null,null,null,null,null,null,null,null,null,418,"2 Amps",0,0.3,0,0,0,0,0]
[null,null,null,null,null,null,null,null,null,null,null,null,null,null,null,null,null,null,null,null,null,null,null,null,null,0,0,0,0,0,0,0,0,0]
[null,null,null,null,"Total Socket Fuses:",null,{"$f":"SUM(F108,F109,F113,F114,F115)","v":0},null,null,null,null,null,null,null,null,null,null,null,null,null,null,null,null,null,null,0,0,0,0,0,"Total Socket Fuses:",0,0,0]
[null,null,null,null,null,null,null,null,null,null,null,null,null,null,null,null,null,null,null,null,null,null,null,null,null,0,0,0,0,0,0,0,0,0]
["Mini Glass Pigtail Fusus",null,null,null,null,null,null,null,null,null,null,null,null,null,null,null,null,null,null,null,null,null,null,null,null,0,"Mini Glass Pigtail Fusus",0,0,0,0,0,0,0]
[null,"Each",null,null,null,"Total",null,null,null,null,null,null,null,null,null,null,null,null,null,null,null,null,null,null,null,0,0,"Each",0,0,0,"Total",0,0]
[".5A",null,0.2,null,null,{"$f":"(B121*C121)","v":0},null,null,419,null,null,null,null,null,null,null,null,null,null,null,null,null,null,null,null,419,".5A",0,0.2,0,0,0,0,0]
["1A",null,0.2,null,null,{"$f":"(B122*C122)","v":0},null,null,420,null,null,null,null,null,null,null,null,null,null,null,null,null,null,null,null,420,"1A",0,0.2,0,0,0,0,0]
["1.5A",null,0.2,null,null,0,null,null,421,null,null,null,null,null,null,null,null,null,null,null,null,null,null,null,null,421,"1.5A",0,0.2,0,0,0,0,0]
["2A",null,0.2,null,null,0,null,null,422,null,null,null,null,null,null,null,null,null,null,null,null,null,null,null,null,422,"2A",0,0.2,0,0,0,0,0]
[null,null,null,null,null,null,null,null,null,null,null,null,null,null,null,null,null,null,null,null,null,null,null,null,null,0,0,0,0,0,0,0,0,0]
[null,null,null,null,"Total Mini Glass Fuses:",null,{"$f":"SUM(F121:F124)","v":0},null,null,null,null,null,null,null,null,null,null,null,null,null,null,null,null,null,null,0,0,0,0,0,"Total Mini Glass Fuses:",0,0,0]
[null,null,null,null,null,null,null,null,null,null,null,null,null,null,null,null,null,null,null,null,null,null,null,null,null,0,0,0,0,0,0,0,0,0]
["Heat Shrink Tubing",null,null,null,null,null,null,null,null,null,null,null,null,null,null,null,null,null,null,null,null,null,null,null,null,0,"Heat Shrink Tubing",0,0,0,0,0,0,0]
[null,null,null,null,null,"Each",null,"Total",null,null,null,null,null,null,null,null,null,null,null,null,null,null,null,null,null,0,0,0,0,0,0,"Each",0,"Total"]
[null,null,null,null,null,null,null,{"$f":"(F130*G130)","v":0},423,null,null,null,null,null,null,null,null,null,null,null,null,null,null,null,null,{"$f":"I130","v":423},{"$f":"A130","v":0},0,0,0,0,0,0,0]
[null,null,null,null,null,null,null,{"$f":"(F131*G131)","v":0},424,null,null,null,null,null,null,null,null,null,null,null,null,null,null,null,null,424,0,0,0,0,0,0,0,0]
[null,null,null,null,null,null,null,null,null,null,null,null,null,null,null,null,null,null,null,null,null,null,null,null,null,0,0,0,0,0,0,0,0,0]
["Cut to Length",null,null,null,null,"Foot",null,null,null,null,null,null,null,null,null,null,null,null,null,null,null,null,null,null,null,0,"Cut to Length",0,0,0,0,"Foot",0,0]
[".084\" Thin Wall",null,null,null,null,null,0.15,0,425,null,null,null,null,null,null,null,null,null,null,null,null,null,null,null,null,425,".084\" Thin Wall",0,0,0,0,0,0.15,0]
["1/8\" ",null,null,null,null,null,0.2,0,426,null,null,null,null,null,null,null,null,null,null,null,null,null,null,null,null,426,"1/8\" ",0,0,0,0,0,0.2,0]
["3/16\"",null,null,null,null,null,0.25,0,427,null,null,null,null,null,null,null,null,null,null,null,null,null,null,null,null,427,"3/16\"",0,0,0,0,0,0.25,0]
["1/4\"",null,null,null,null,null,0.3,0,428,null,null,null,null,null,null,null,null,null,null,null,null,null,null,null,null,428,"1/4\"",0,0,0,0,0,0.3,0]
["3/8\"",null,null,null,null,null,0.35,0,429,null,null,null,null,null,null,null,null,null,null,null,null,null,null,null,null,429,"3/8\"",0,0,0,0,0,0.35,0]
[null,null,null,null,null,null,null,null,null,null,null,null,null,null,null,null,null,null,null,null,null,null,null,null,null,0,0,0,0,0,0,0,0,0]
[null,null,null,"Total Heat Shrink Tubing",null,null,null,{"$f":"SUM(H130:H131,H134,H135,H136,H137,H138)","v":0},null,null,null,null,null,null,null,null,null,null,null,null,null,null,null,null,null,0,0,0,0,"Total Heat Shrink Tubing",0,0,0,0]
["Miscellanious",null,null,null,null,null,null,null,null,null,null,null,null,null,null,null,null,null,null,null,null,null,null,null,null,0,"Miscellanious",0,0,0,0,0,0,0]
[null,null,null,null,null,"Each",null,"Total",null,null,null,null,null,null,null,null,null,null,null,null,null,null,null,null,null,0,0,0,0,0,0,"Each",0,"Total"]
["Weller WL30 30 Watt Soldering Iron",null,null,null,null,null,11,0,430,null,null,null,null,null,null,null,null,null,null,null,null,null,null,null,null,430,"Weller WL30 30 Watt Soldering Iron",0,0,0,0,0,11,0]
[null,null,null,null,null,null,null,null,null,null,null,null,null,null,null,null,null,null,null,null,null,null,null,null,null,0,0,0,0,0,0,0,0,0]
[null,null,null,null,null,null,null,0,431,null,null,null,null,null,null,null,null,null,null,null,null,null,null,null,null,431,0,0,0,0,0,0,0,0]
[null,null,null,null,null,null,null,null,null,null,null,null,null,null,null,null,null,null,null,null,null,null,null,null,null,0,0,0,0,0,0,0,0,0]
[null,null,null,null,null,null,null,0,432,null,null,null,null,null,null,null,null,null,null,null,null,null,null,null,null,432,0,0,0,0,0,0,0,0]
[null,null,null,null,null,null,null,null,null,null,null,null,null,null,null,null,null,null,null,null,null,null,null,null,null,0,0,0,0,0,0,0,0,0]
[null,null,null,null,null,null,null,0,433,null,null,null,null,null,null,null,null,null,null,null,null,null,null,null,null,433,0,0,0,0,0,0,0,0]
[null,null,null,null,null,null,null,null,null,null,null,null,null,null,null,null,null,null,null,null,null,null,null,null,null,0,0,0,0,0,0,0,0,0]
[null,null,null,null,null,null,null,null,null,null,null,null,null,null,null,null,null,null,null,null,null,null,null,null,null,0,0,0,0,0,0,0,0,0]
[null,null,null,null,null,null,null,null,null,null,null,null,null,null,null,null,null,null,null,null,null,null,null,null,null,0,0,0,0,0,0,0,0,0]
["Rubber Feet with Screw - Go to Website to see a Picture",null,null,null,null,"Each",null,"Total",null,null,null,null,null,null,null,null,null,null,null,null,null,null,null,null,null,0,"Rubber Feet with Screw - Go to Website to see a Picture",0,0,0,0,"Each",0,"Total"]
["(A)Small ",null,null,null,null,null,1,0,434,null,null,null,null,null,null,null,null,null,null,null,null,null,null,null,null,434,"(A)Small ",0,0,0,0,0,1,0]
["(B)Medium",null,null,null,null,null,1.5,0,435,null,null,null,null,null,null,null,null,null,null,null,null,null,null,null,null,435,"(B)Medium",0,0,0,0,0,1.5,0]
["(C)Large",null,null,null,null,null,2,0,436,null,null,null,null,null,null,null,null,null,null,null,null,null,null,null,null,436,"(C)Large",0,0,0,0,0,2,0]
[null,null,null,null,null,null,null,null,null,null,null,null,null,null,null,null,null,null,null,null,null,null,null,null,null,0,0,0,0,0,0,0,0,0]
[null,null,null,null,null,"Each",null,"Total",null,null,null,null,null,null,null,null,null,null,null,null,null,null,null,null,null,0,0,0,0,0,0,"Each",0,"Total"]
["Dim Bulb Tester with 3 way Bulb",null,null,null,null,null,25,0,437,null,null,null,null,null,null,null,null,null,null,null,null,null,null,null,null,437,"Dim Bulb Tester with 3 way Bulb",0,0,0,0,0,25,0]
["Dim Bulb Tester with 3 way Bulb & Digital AC Meter",null,null,null,null,null,30,0,438,null,null,null,null,null,null,null,null,null,null,null,null,null,null,null,null,438,"Dim Bulb Tester with 3 way Bulb & Digital AC Meter",0,0,0,0,0,30,0]
[null,null,null,null,null,null,null,null,null,null,null,null,null,null,null,null,null,null,null,null,null,null,null,null,null,0,0,0,0,0,0,0,0,0]
[null,null,null,null,null,"Each",null,"Total",null,null,null,null,null,null,null,null,null,null,null,null,null,null,null,null,null,{"$f":"I162","v":0},{"$f":"A162","v":0},0,0,0,0,"Each",0,"Total"]
["Mini Flush Cut Diagonal Cutters - OUT OF STOCK",null,null,null,null,null,0,0,439,null,null,null,null,null,null,null,null,null,null,null,null,null,null,null,null,439,"Mini Flush Cut Diagonal Cutters - OUT OF STOCK",0,0,0,0,0,0,0]
[null,null,null,null,null,null,null,null,null,null,null,null,null,null,null,null,null,null,null,null,null,null,null,null,null,0,0,0,0,0,0,0,0,0]
[null,null,null,null,null,"Each",null,"Total",null,null,null,null,null,null,null,null,null,null,null,null,null,null,null,null,null,0,0,0,0,0,0,"Each",0,"Total"]
["Chicken Head Knob",null,null,null,null,null,1.25,0,440,null,null,null,null,null,null,null,null,null,null,null,null,null,null,null,null,440,"Chicken Head Knob",0,0,0,0,0,1.25,0]
[null,null,null,null,null,null,null,null,null,null,null,null,null,null,null,null,null,null,null,null,null,null,null,null,null,0,0,0,0,0,0,0,0,0]
[null,null,null,null,null,"Each",null,"Total",null,null,null,null,null,null,null,null,null,null,null,null,null,null,null,null,null,0,0,0,0,0,0,"Each",0,"Total"]
["Round Mini Knob",null,null,null,null,null,0.65,0,441,null,null,null,null,null,null,null,null,null,null,null,null,null,null,null,null,441,"Round Mini Knob",0,0,0,0,0,0.65,0]
[null,null,null,null,null,null,null,null,null,null,null,null,null,null,null,null,null,null,null,null,null,null,null,null,null,0,0,0,0,0,0,0,0,0]
[null,null,null,null,null,"Each",null,"Total",null,null,null,null,null,null,null,null,null,null,null,null,null,null,null,null,null,{"$f":"I171","v":0},{"$f":"A171","v":0},{"$f":"B171","v":0},{"$f":"C171","v":0},{"$f":"D171","v":0},{"$f":"E171","v":0},{"$f":"F171","v":"Each"},{"$f":"G171","v":0},{"$f":"H171","v":"Total"}]
["Large Round Knob",null,null,null,null,null,1.85,{"$f":"(F172*G172)","v":0},442,null,null,null,null,null,null,null,null,null,null,null,null,null,null,null,null,442,"Large Round Knob",0,0,0,0,0,1.85,0]
[null,null,null,null,null,null,null,null,null,null,null,null,null,null,null,null,null,null,null,null,null,null,null,null,null,0,0,0,0,0,0,0,0,0]
[null,null,null,null,null,"Each",null,"Total",null,null,null,null,null,null,null,null,null,null,null,null,null,null,null,null,null,0,0,0,0,0,0,"Each",0,"Total"]
["BNC Connector",null,null,null,null,null,0.75,{"$f":"(F175*G175)","v":0},443,null,null,null,null,null,null,null,null,null,null,null,null,null,null,null,null,443,"BNC Connector",0,0,0,0,0,0.75,0]
[null,null,null,null,null,null,null,null,null,null,null,null,null,null,null,null,null,null,null,null,null,null,null,null,null,{"$f":"I176","v":0},{"$f":"A176","v":0},{"$f":"B176","v":0},{"$f":"C176","v":0},{"$f":"D176","v":0},{"$f":"E176","v":0},{"$f":"F176","v":0},{"$f":"G176","v":0},{"$f":"H176","v":0}]
[null,10,null,5,null,"Each",null,"Total",null,null,null,null,null,null,null,null,null,null,null,null,null,null,null,null,null,0,0,10,0,5,0,"Each",0,"Total"]
["Fahnestock Clips",null,5,null,3,null,0.6,{"$f":"((F178*G178)+(D178*E178)+(B178*C178))","v":0},444,null,null,null,null,null,null,null,null,null,null,null,null,null,null,null,null,444,"Fahnestock Clips",0,5,0,3,0,0.6,0]
[null,null,null,null,null,null,null,null,null,null,null,null,null,null,null,null,null,null,null,null,null,null,null,null,null,0,0,0,0,0,0,0,0,0]
[null,null,null,null,"Total Misc.",null,null,{"$f":"SUM(H178,H169,H166,H163,H160,H159,H156,H155,H154,H149,H147,H145,H143)","v":0},null,null,null,null,null,null,null,null,null,null,null,null,null,null,null,null,null,0,0,0,0,0,"Total Misc.",0,0,0]
[null,null,null,null,null,null,null,null,null,null,null,null,null,null,null,null,null,null,null,null,null,null,null,null,null,0,0,0,0,0,0,0,0,0]
[null,null,null,null,"Total Other Items:",null,null,{"$f":"SUM(H180,H140,G126,G117,G104,G94,G84,G74,G67,G58,G49,G42,G33,G24)","v":0},null,null,null,null,null,null,null,null,null,null,null,null,null,null,null,null,null,0,0,0,0,0,"Total Other Items:",0,0,0]
[null,null,null,null,null,null,null,null,null,null,null,null,null,null,null,null,null,null,null,null,null,null,null,null,null,0,0,0,0,0,0,0,0,0]
[null,null,null,null,null,null,null,null,null,null,null,null,null,null,null,null,null,null,null,null,null,null,null,null,null,0,0,0,0,0,0,0,0,0]
[null,null,null,null,null,null,null,null,null,null,null,null,null,null,null,null,null,null,null,null,null,null,null,null,null,0,0,0,0,0,0,0,0,0]
[null,null,null,null,null,null,null,null,null,null,null,null,null,null,null,null,null,null,null,null,null,null,null,null,null,0,0,0,0,0,0,0,0,0]
[null,null,null,null,null,null,null,null,null,null,null,null,null,null,null,null,null,null,null,null,null,null,null,null,null,0,0,0,0,0,0,0,0,0]

{"sheet":"For Sal's Use Only","index":3,"n_rows":448,"n_cols":18,"rows_kept":448,"cut":false,"hidden":false,"merged":[]}
[]
[]
["ORDER TOTAL",{"$f":"SUM(B5:B448)","v":0}]
[null,null,null,null,null,"BAG OF 100","BAG OF 25","BAG OF 10","BAG OF 5","EACH","1'","8'","10'","12'","24'","25'","50'","SINGLE FEET"]
[1,{"$f":"VLOOKUP($A5,CAPTABLE[],9,FALSE)","v":0},{"$f":"IF(B5>0,A5,0)","v":0},{"$f":"VLOOKUP($A5,CAPTABLE[],2,FALSE)","v":".001uf @ 630v"},"Axial Film Capacitors",null,{"$f":"VLOOKUP($A5,CAPTABLE[],3,FALSE)","v":0},{"$f":"VLOOKUP($A5,CAPTABLE[],5,FALSE)","v":0},null,{"$f":"VLOOKUP($A5,CAPTABLE[],7,FALSE)","v":0}]
[2,{"$f":"VLOOKUP($A6,CAPTABLE[],9,FALSE)","v":0},{"$f":"IF(B6>0,A6,0)","v":0},{"$f":"VLOOKUP($A6,CAPTABLE[],2,FALSE)","v":".0015uf @ 630v"},"Axial Film Capacitors",null,{"$f":"VLOOKUP($A6,CAPTABLE[],3,FALSE)","v":0},{"$f":"VLOOKUP($A6,CAPTABLE[],5,FALSE)","v":0},null,{"$f":"VLOOKUP($A6,CAPTABLE[],7,FALSE)","v":0}]
[3,{"$f":"VLOOKUP($A7,CAPTABLE[],9,FALSE)","v":0},0,{"$f":"VLOOKUP($A7,CAPTABLE[],2,FALSE)","v":".0022uf @ 630v"},"Axial Film Capacitors",null,{"$f":"VLOOKUP($A7,CAPTABLE[],3,FALSE)","v":0},{"$f":"VLOOKUP($A7,CAPTABLE[],5,FALSE)","v":0},null,{"$f":"VLOOKUP($A7,CAPTABLE[],7,FALSE)","v":0}]
[4,{"$f":"VLOOKUP($A8,CAPTABLE[],9,FALSE)","v":0},0,{"$f":"VLOOKUP($A8,CAPTABLE[],2,FALSE)","v":".0033uf @ 630v"},"Axial Film Capacitors",null,{"$f":"VLOOKUP($A8,CAPTABLE[],3,FALSE)","v":0},{"$f":"VLOOKUP($A8,CAPTABLE[],5,FALSE)","v":0},null,{"$f":"VLOOKUP($A8,CAPTABLE[],7,FALSE)","v":0}]
[5,{"$f":"VLOOKUP($A9,CAPTABLE[],9,FALSE)","v":0},0,{"$f":"VLOOKUP($A9,CAPTABLE[],2,FALSE)","v":".0039uf @ 630v"},"Axial Film Capacitors",null,{"$f":"VLOOKUP($A9,CAPTABLE[],3,FALSE)","v":0},{"$f":"VLOOKUP($A9,CAPTABLE[],5,FALSE)","v":0},null,{"$f":"VLOOKUP($A9,CAPTABLE[],7,FALSE)","v":0}]
[6,{"$f":"VLOOKUP($A10,CAPTABLE[],9,FALSE)","v":0},0,{"$f":"VLOOKUP($A10,CAPTABLE[],2,FALSE)","v":".0047uf @ 630v"},"Axial Film Capacitors",null,{"$f":"VLOOKUP($A10,CAPTABLE[],3,FALSE)","v":0},{"$f":"VLOOKUP($A10,CAPTABLE[],5,FALSE)","v":0},null,{"$f":"VLOOKUP($A10,CAPTABLE[],7,FALSE)","v":0}]
[7,{"$f":"VLOOKUP($A11,CAPTABLE[],9,FALSE)","v":0},0,{"$f":"VLOOKUP($A11,CAPTABLE[],2,FALSE)","v":".0056uf @ 630v"},"Axial Film Capacitors",null,{"$f":"VLOOKUP($A11,CAPTABLE[],3,FALSE)","v":0},{"$f":"VLOOKUP($A11,CAPTABLE[],5,FALSE)","v":0},null,{"$f":"VLOOKUP($A11,CAPTABLE[],7,FALSE)","v":0}]
[8,{"$f":"VLOOKUP($A12,CAPTABLE[],9,FALSE)","v":0},0,{"$f":"VLOOKUP($A12,CAPTABLE[],2,FALSE)","v":".0068uf @ 630v"},"Axial Film Capacitors",null,{"$f":"VLOOKUP($A12,CAPTABLE[],3,FALSE)","v":0},{"$f":"VLOOKUP($A12,CAPTABLE[],5,FALSE)","v":0},null,{"$f":"VLOOKUP($A12,CAPTABLE[],7,FALSE)","v":0}]
[9,{"$f":"VLOOKUP($A13,CAPTABLE[],9,FALSE)","v":0},0,{"$f":"VLOOKUP($A13,CAPTABLE[],2,FALSE)","v":"No Longer Available"},"Axial Film Capacitors",null,{"$f":"VLOOKUP($A13,CAPTABLE[],3,FALSE)","v":0},{"$f":"VLOOKUP($A13,CAPTABLE[],5,FALSE)","v":0},null,{"$f":"VLOOKUP($A13,CAPTABLE[],7,FALSE)","v":0}]
[10,{"$f":"VLOOKUP($A14,CAPTABLE[],9,FALSE)","v":0},0,{"$f":"VLOOKUP($A14,CAPTABLE[],2,FALSE)","v":".0082uf @ 630v"},"Axial Film Capacitors",null,{"$f":"VLOOKUP($A14,CAPTABLE[],3,FALSE)","v":0},{"$f":"VLOOKUP($A14,CAPTABLE[],5,FALSE)","v":0},null,{"$f":"VLOOKUP($A14,CAPTABLE[],7,FALSE)","v":0}]
[11,{"$f":"VLOOKUP($A15,CAPTABLE[],9,FALSE)","v":0},0,{"$f":"VLOOKUP($A15,CAPTABLE[],2,FALSE)","v":".01uf @ 630v"},"Axial Film Capacitors",null,{"$f":"VLOOKUP($A15,CAPTABLE[],3,FALSE)","v":0},{"$f":"VLOOKUP($A15,CAPTABLE[],5,FALSE)","v":0},null,{"$f":"VLOOKUP($A15,CAPTABLE[],7,FALSE)","v":0}]
[12,{"$f":"VLOOKUP($A16,CAPTABLE[],9,FALSE)","v":0},0,{"$f":"VLOOKUP($A16,CAPTABLE[],2,FALSE)","v":".015uf @ 630v"},"Axial Film Capacitors",null,{"$f":"VLOOKUP($A16,CAPTABLE[],3,FALSE)","v":0},{"$f":"VLOOKUP($A16,CAPTABLE[],5,FALSE)","v":0},null,{"$f":"VLOOKUP($A16,CAPTABLE[],7,FALSE)","v":0}]
[13,{"$f":"VLOOKUP($A17,CAPTABLE[],9,FALSE)","v":0},0,{"$f":"VLOOKUP($A17,CAPTABLE[],2,FALSE)","v":".022uf @ 630v"},"Axial Film Capacitors",null,{"$f":"VLOOKUP($A17,CAPTABLE[],3,FALSE)","v":0},{"$f":"VLOOKUP($A17,CAPTABLE[],5,FALSE)","v":0},null,{"$f":"VLOOKUP($A17,CAPTABLE[],7,FALSE)","v":0}]
[14,{"$f":"VLOOKUP($A18,CAPTABLE[],9,FALSE)","v":0},0,{"$f":"VLOOKUP($A18,CAPTABLE[],2,FALSE)","v":".033uf @ 630v"},"Axial Film Capacitors",null,{"$f":"VLOOKUP($A18,CAPTABLE[],3,FALSE)","v":0},{"$f":"VLOOKUP($A18,CAPTABLE[],5,FALSE)","v":0},null,{"$f":"VLOOKUP($A18,CAPTABLE[],7,FALSE)","v":0}]
[15,{"$f":"VLOOKUP($A19,CAPTABLE[],9,FALSE)","v":0},0,{"$f":"VLOOKUP($A19,CAPTABLE[],2,FALSE)","v":".047uf @ 630v"},"Axial Film Capacitors",null,{"$f":"VLOOKUP($A19,CAPTABLE[],3,FALSE)","v":0},{"$f":"VLOOKUP($A19,CAPTABLE[],5,FALSE)","v":0},null,{"$f":"VLOOKUP($A19,CAPTABLE[],7,FALSE)","v":0}]
[16,{"$f":"VLOOKUP($A20,CAPTABLE[],9,FALSE)","v":0},0,{"$f":"VLOOKUP($A20,CAPTABLE[],2,FALSE)","v":".056uf @ 630v"},"Axial Film Capacitors",null,{"$f":"VLOOKUP($A20,CAPTABLE[],3,FALSE)","v":0},{"$f":"VLOOKUP($A20,CAPTABLE[],5,FALSE)","v":0},null,{"$f":"VLOOKUP($A20,CAPTABLE[],7,FALSE)","v":0}]
[17,{"$f":"VLOOKUP($A21,CAPTABLE[],9,FALSE)","v":0},0,{"$f":"VLOOKUP($A21,CAPTABLE[],2,FALSE)","v":".068uf @ 630v"},"Axial Film Capacitors",null,{"$f":"VLOOKUP($A21,CAPTABLE[],3,FALSE)","v":0},{"$f":"VLOOKUP($A21,CAPTABLE[],5,FALSE)","v":0},null,{"$f":"VLOOKUP($A21,CAPTABLE[],7,FALSE)","v":0}]
[18,{"$f":"VLOOKUP($A22,CAPTABLE[],9,FALSE)","v":0},0,{"$f":"VLOOKUP($A22,CAPTABLE[],2,FALSE)","v":".082uf @ 630v"},"Axial Film Capacitors",null,{"$f":"VLOOKUP($A22,CAPTABLE[],3,FALSE)","v":0},{"$f":"VLOOKUP($A22,CAPTABLE[],5,FALSE)","v":0},null,{"$f":"VLOOKUP($A22,CAPTABLE[],7,FALSE)","v":0}]
[19,{"$f":"VLOOKUP($A23,CAPTABLE[],9,FALSE)","v":0},0,{"$f":"VLOOKUP($A23,CAPTABLE[],2,FALSE)","v":".1uf @ 630v"},"Axial Film Capacitors",null,{"$f":"VLOOKUP($A23,CAPTABLE[],3,FALSE)","v":0},{"$f":"VLOOKUP($A23,CAPTABLE[],5,FALSE)","v":0},null,{"$f":"VLOOKUP($A23,CAPTABLE[],7,FALSE)","v":0}]
[20,{"$f":"VLOOKUP($A24,CAPTABLE[],9,FALSE)","v":0},0,{"$f":"VLOOKUP($A24,CAPTABLE[],2,FALSE)","v":".15uf @ 630v"},"Axial Film Capacitors",null,{"$f":"VLOOKUP($A24,CAPTABLE[],3,FALSE)","v":0},{"$f":"VLOOKUP($A24,CAPTABLE[],5,FALSE)","v":0},null,{"$f":"VLOOKUP($A24,CAPTABLE[],7,FALSE)","v":0}]
[21,{"$f":"VLOOKUP($A25,CAPTABLE[],9,FALSE)","v":0},0,{"$f":"VLOOKUP($A25,CAPTABLE[],2,FALSE)","v":".22uf @ 630v"},"Axial Film Capacitors",null,{"$f":"VLOOKUP($A25,CAPTABLE[],3,FALSE)","v":0},{"$f":"VLOOKUP($A25,CAPTABLE[],5,FALSE)","v":0},null,{"$f":"VLOOKUP($A25,CAPTABLE[],7,FALSE)","v":0}]
[22,{"$f":"VLOOKUP($A26,CAPTABLE[],9,FALSE)","v":0},0,{"$f":"VLOOKUP($A26,CAPTABLE[],2,FALSE)","v":"No Longer Available"},"Axial Film Capacitors",null,{"$f":"VLOOKUP($A26,CAPTABLE[],3,FALSE)","v":0},{"$f":"VLOOKUP($A26,CAPTABLE[],5,FALSE)","v":0},null,{"$f":"VLOOKUP($A26,CAPTABLE[],7,FALSE)","v":0}]
[23,{"$f":"VLOOKUP($A27,CAPTABLE[],9,FALSE)","v":0},0,{"$f":"VLOOKUP($A27,CAPTABLE[],2,FALSE)","v":".33uf @ 630v"},"Axial Film Capacitors",null,{"$f":"VLOOKUP($A27,CAPTABLE[],3,FALSE)","v":0},{"$f":"VLOOKUP($A27,CAPTABLE[],5,FALSE)","v":0},null,{"$f":"VLOOKUP($A27,CAPTABLE[],7,FALSE)","v":0}]
[24,{"$f":"VLOOKUP($A28,CAPTABLE[],9,FALSE)","v":0},0,{"$f":"VLOOKUP($A28,CAPTABLE[],2,FALSE)","v":".47uf @ 630v"},"Axial Film Capacitors",null,{"$f":"VLOOKUP($A28,CAPTABLE[],3,FALSE)","v":0},{"$f":"VLOOKUP($A28,CAPTABLE[],5,FALSE)","v":0},null,{"$f":"VLOOKUP($A28,CAPTABLE[],7,FALSE)","v":0}]
[25,{"$f":"VLOOKUP($A29,CAPTABLE[],9,FALSE)","v":0},0,{"$f":"VLOOKUP($A29,CAPTABLE[],2,FALSE)","v":"1uf @ 630v"},"Axial Film Capacitors",null,{"$f":"VLOOKUP($A29,CAPTABLE[],3,FALSE)","v":0},{"$f":"VLOOKUP($A29,CAPTABLE[],5,FALSE)","v":0},null,{"$f":"VLOOKUP($A29,CAPTABLE[],7,FALSE)","v":0}]
[26,{"$f":"VLOOKUP($A30,CAPTABLE[],5,FALSE)","v":0},0,{"$f":"VLOOKUP($A30,CAPTABLE[],2,FALSE)","v":"Axial Capacitor Kit #1 (250)"},"Axial Film Capacitors",null,null,null,null,{"$f":"VLOOKUP($A30,CAPTABLE[],3,FALSE)","v":0}]
[27,{"$f":"VLOOKUP($A31,CAPTABLE[],5,FALSE)","v":0},0,{"$f":"VLOOKUP($A31,CAPTABLE[],2,FALSE)","v":"Axial Capacitor Kit #2 (325)"},"Axial Film Capacitors",null,null,null,null,{"$f":"VLOOKUP($A31,CAPTABLE[],3,FALSE)","v":0}]
[28,{"$f":"VLOOKUP($A32,CAPTABLE[],5,FALSE)","v":0},0,{"$f":"VLOOKUP($A32,CAPTABLE[],2,FALSE)","v":"Axial Capacitor Kit #3 (100)"},"Axial Film Capacitors",null,null,null,null,{"$f":"VLOOKUP($A32,CAPTABLE[],3,FALSE)","v":0}]
[29,{"$f":"VLOOKUP($A33,CAPTABLE[],5,FALSE)","v":0},0,{"$f":"VLOOKUP($A33,CAPTABLE[],2,FALSE)","v":"Axial Capacitor Kit #4 (130)"},"Axial Film Capacitors",null,null,null,null,{"$f":"VLOOKUP($A33,CAPTABLE[],3,FALSE)","v":0}]
[30,{"$f":"VLOOKUP($A34,CAPTABLE[],5,FALSE)","v":0},0,{"$f":"VLOOKUP($A34,CAPTABLE[],2,FALSE)","v":"Axial Capacitor Kit #5 (200)"},"Axial Film Capacitors",null,null,null,null,{"$f":"VLOOKUP($A34,CAPTABLE[],3,FALSE)","v":0}]
[31,{"$f":"VLOOKUP($A35,CAPTABLE[],9,FALSE)","v":0},0,{"$f":"VLOOKUP($A35,CAPTABLE[],2,FALSE)","v":".001uf @ 630v"},"Met Poly Radial Caps",null,{"$f":"VLOOKUP($A35,CAPTABLE[],3,FALSE)","v":0},{"$f":"VLOOKUP($A35,CAPTABLE[],5,FALSE)","v":0},null,{"$f":"VLOOKUP($A35,CAPTABLE[],7,FALSE)","v":0}]
[32,{"$f":"VLOOKUP($A36,CAPTABLE[],9,FALSE)","v":0},0,{"$f":"VLOOKUP($A36,CAPTABLE[],2,FALSE)","v":".0022uf @ 630v"},"Met Poly Radial Caps",null,{"$f":"VLOOKUP($A36,CAPTABLE[],3,FALSE)","v":0},{"$f":"VLOOKUP($A36,CAPTABLE[],5,FALSE)","v":0},null,{"$f":"VLOOKUP($A36,CAPTABLE[],7,FALSE)","v":0}]
[33,{"$f":"VLOOKUP($A37,CAPTABLE[],9,FALSE)","v":0},0,{"$f":"VLOOKUP($A37,CAPTABLE[],2,FALSE)","v":".0033uf @ 630v"},"Met Poly Radial Caps",null,{"$f":"VLOOKUP($A37,CAPTABLE[],3,FALSE)","v":0},{"$f":"VLOOKUP($A37,CAPTABLE[],5,FALSE)","v":0},null,{"$f":"VLOOKUP($A37,CAPTABLE[],7,FALSE)","v":0}]
[34,{"$f":"VLOOKUP($A38,CAPTABLE[],9,FALSE)","v":0},0,{"$f":"VLOOKUP($A38,CAPTABLE[],2,FALSE)","v":".0047uf @ 630v"},"Met Poly Radial Caps",null,{"$f":"VLOOKUP($A38,CAPTABLE[],3,FALSE)","v":0},{"$f":"VLOOKUP($A38,CAPTABLE[],5,FALSE)","v":0},null,{"$f":"VLOOKUP($A38,CAPTABLE[],7,FALSE)","v":0}]
[35,{"$f":"VLOOKUP($A39,CAPTABLE[],9,FALSE)","v":0},0,{"$f":"VLOOKUP($A39,CAPTABLE[],2,FALSE)","v":".0068uf @ 630v"},"Met Poly Radial Caps",null,{"$f":"VLOOKUP($A39,CAPTABLE[],3,FALSE)","v":0},{"$f":"VLOOKUP($A39,CAPTABLE[],5,FALSE)","v":0},null,{"$f":"VLOOKUP($A39,CAPTABLE[],7,FALSE)","v":0}]
[36,{"$f":"VLOOKUP($A40,CAPTABLE[],9,FALSE)","v":0},0,{"$f":"VLOOKUP($A40,CAPTABLE[],2,FALSE)","v":".01uf @ 630v"},"Met Poly Radial Caps",null,{"$f":"VLOOKUP($A40,CAPTABLE[],3,FALSE)","v":0},{"$f":"VLOOKUP($A40,CAPTABLE[],5,FALSE)","v":0},null,{"$f":"VLOOKUP($A40,CAPTABLE[],7,FALSE)","v":0}]
[37,{"$f":"VLOOKUP($A41,CAPTABLE[],9,FALSE)","v":0},0,{"$f":"VLOOKUP($A41,CAPTABLE[],2,FALSE)","v":".022uf @ 630v"},"Met Poly Radial Caps",null,{"$f":"VLOOKUP($A41,CAPTABLE[],3,FALSE)","v":0},{"$f":"VLOOKUP($A41,CAPTABLE[],5,FALSE)","v":0},null,{"$f":"VLOOKUP($A41,CAPTABLE[],7,FALSE)","v":0}]
[38,{"$f":"VLOOKUP($A42,CAPTABLE[],9,FALSE)","v":0},0,{"$f":"VLOOKUP($A42,CAPTABLE[],2,FALSE)","v":".033uf @ 630v"},"Met Poly Radial Caps",null,{"$f":"VLOOKUP($A42,CAPTABLE[],3,FALSE)","v":0},{"$f":"VLOOKUP($A42,CAPTABLE[],5,FALSE)","v":0},null,{"$f":"VLOOKUP($A42,CAPTABLE[],7,FALSE)","v":0}]
[39,{"$f":"VLOOKUP($A43,CAPTABLE[],9,FALSE)","v":0},0,{"$f":"VLOOKUP($A43,CAPTABLE[],2,FALSE)","v":".047uf @ 630v"},"Met Poly Radial Caps",null,{"$f":"VLOOKUP($A43,CAPTABLE[],3,FALSE)","v":0},{"$f":"VLOOKUP($A43,CAPTABLE[],5,FALSE)","v":0},null,{"$f":"VLOOKUP($A43,CAPTABLE[],7,FALSE)","v":0}]
[40,{"$f":"VLOOKUP($A44,CAPTABLE[],9,FALSE)","v":0},0,{"$f":"VLOOKUP($A44,CAPTABLE[],2,FALSE)","v":".082uf @ 630v"},"Met Poly Radial Caps",null,{"$f":"VLOOKUP($A44,CAPTABLE[],3,FALSE)","v":0},{"$f":"VLOOKUP($A44,CAPTABLE[],5,FALSE)","v":0},null,{"$f":"VLOOKUP($A44,CAPTABLE[],7,FALSE)","v":0}]
[41,{"$f":"VLOOKUP($A45,CAPTABLE[],9,FALSE)","v":0},0,{"$f":"VLOOKUP($A45,CAPTABLE[],2,FALSE)","v":".1uf @ 630v"},"Met Poly Radial Caps",null,{"$f":"VLOOKUP($A45,CAPTABLE[],3,FALSE)","v":0},{"$f":"VLOOKUP($A45,CAPTABLE[],5,FALSE)","v":0},null,{"$f":"VLOOKUP($A45,CAPTABLE[],7,FALSE)","v":0}]
[42,{"$f":"VLOOKUP($A46,CAPTABLE[],9,FALSE)","v":0},0,{"$f":"VLOOKUP($A46,CAPTABLE[],2,FALSE)","v":".22uf @ 630v"},"Met Poly Radial Caps",null,{"$f":"VLOOKUP($A46,CAPTABLE[],3,FALSE)","v":0},{"$f":"VLOOKUP($A46,CAPTABLE[],5,FALSE)","v":0},null,{"$f":"VLOOKUP($A46,CAPTABLE[],7,FALSE)","v":0}]
[43,{"$f":"VLOOKUP($A47,CAPTABLE[],9,FALSE)","v":0},0,{"$f":"VLOOKUP($A47,CAPTABLE[],2,FALSE)","v":".33uf @ 630v"},"Met Poly Radial Caps",null,{"$f":"VLOOKUP($A47,CAPTABLE[],3,FALSE)","v":0},{"$f":"VLOOKUP($A47,CAPTABLE[],5,FALSE)","v":0},null,{"$f":"VLOOKUP($A47,CAPTABLE[],7,FALSE)","v":0}]
[44,{"$f":"VLOOKUP($A48,CAPTABLE[],9,FALSE)","v":0},0,{"$f":"VLOOKUP($A48,CAPTABLE[],2,FALSE)","v":".47uf @ 630v"},"Met Poly Radial Caps",null,{"$f":"VLOOKUP($A48,CAPTABLE[],3,FALSE)","v":0},{"$f":"VLOOKUP($A48,CAPTABLE[],5,FALSE)","v":0},null,{"$f":"VLOOKUP($A48,CAPTABLE[],7,FALSE)","v":0}]
[45,{"$f":"VLOOKUP($A49,CAPTABLE[],9,FALSE)","v":0},0,{"$f":"VLOOKUP($A49,CAPTABLE[],2,FALSE)","v":"1uf @ 630v"},"Met Poly Radial Caps",null,{"$f":"VLOOKUP($A49,CAPTABLE[],3,FALSE)","v":0},{"$f":"VLOOKUP($A49,CAPTABLE[],5,FALSE)","v":0},null,{"$f":"VLOOKUP($A49,CAPTABLE[],7,FALSE)","v":0}]
[46,{"$f":"VLOOKUP($A50,CAPTABLE[],5,FALSE)","v":0},0,{"$f":"VLOOKUP($A50,CAPTABLE[],2,FALSE)","v":"Poly Kit #1 (250)"},"Met Poly Radial Caps",null,null,null,null,{"$f":"VLOOKUP($A50,CAPTABLE[],3,FALSE)","v":0}]
[47,{"$f":"VLOOKUP($A51,CAPTABLE[],5,FALSE)","v":0},0,{"$f":"VLOOKUP($A51,CAPTABLE[],2,FALSE)","v":"Poly Kit #2 (100)"},"Met Poly Radial Caps",null,null,null,null,{"$f":"VLOOKUP($A51,CAPTABLE[],3,FALSE)","v":0}]
[48,{"$f":"VLOOKUP($A52,CAPTABLE[],9,FALSE)","v":0},0,{"$f":"VLOOKUP($A52,CAPTABLE[],2,FALSE)","v":"100pf @500v  Orange Color"},"Silver Mica Cap",null,null,null,null,{"$f":"VLOOKUP($A52,CAPTABLE[],7,FALSE)","v":0}]
[49,{"$f":"VLOOKUP($A53,CAPTABLE[],9,FALSE)","v":0},0,{"$f":"VLOOKUP($A53,CAPTABLE[],2,FALSE)","v":"120pf @500v  Blue Color"},"Multilayer Ceramic Cap",null,null,null,null,{"$f":"VLOOKUP($A53,CAPTABLE[],7,FALSE)","v":0}]
[50,{"$f":"VLOOKUP($A54,CAPTABLE[],9,FALSE)","v":0},0,{"$f":"VLOOKUP($A54,CAPTABLE[],2,FALSE)","v":0},"Silver Mica Cap",null,null,null,null,{"$f":"VLOOKUP($A54,CAPTABLE[],7,FALSE)","v":0}]
[51,{"$f":"VLOOKUP($A55,CAPTABLE[],9,FALSE)","v":0},0,{"$f":"VLOOKUP($A55,CAPTABLE[],2,FALSE)","v":0},"Multilayer Ceramic Cap",null,null,null,null,{"$f":"VLOOKUP($A55,CAPTABLE[],7,FALSE)","v":0}]
[52,{"$f":"VLOOKUP($A56,CAPTABLE[],9,FALSE)","v":0},0,{"$f":"VLOOKUP($A56,CAPTABLE[],2,FALSE)","v":".0005uf @630v Capacitor"},"Ceramic Disk Caps",null,null,null,null,{"$f":"VLOOKUP($A56,CAPTABLE[],7,FALSE)","v":0}]
[53,{"$f":"VLOOKUP($A57,CAPTABLE[],9,FALSE)","v":0},0,{"$f":"VLOOKUP($A57,CAPTABLE[],2,FALSE)","v":".00022uf @1000v"},"Ceramic Disk Caps",null,null,null,null,{"$f":"VLOOKUP($A57,CAPTABLE[],7,FALSE)","v":0}]
[54,{"$f":"VLOOKUP($A58,CAPTABLE[],9,FALSE)","v":0},0,{"$f":"VLOOKUP($A58,CAPTABLE[],2,FALSE)","v":".00047uf @1000v"},"Ceramic Disk Caps",null,null,null,null,{"$f":"VLOOKUP($A58,CAPTABLE[],7,FALSE)","v":0}]
[55,{"$f":"VLOOKUP($A59,CAPTABLE[],9,FALSE)","v":0},0,{"$f":"VLOOKUP($A59,CAPTABLE[],2,FALSE)","v":".0022uf @1000v"},"Ceramic Disk Caps",null,null,null,null,{"$f":"VLOOKUP($A59,CAPTABLE[],7,FALSE)","v":0}]
[56,{"$f":"VLOOKUP($A60,CAPTABLE[],9,FALSE)","v":0},0,{"$f":"VLOOKUP($A60,CAPTABLE[],2,FALSE)","v":".0033uf @1000v"},"Ceramic Disk Caps",null,null,null,null,{"$f":"VLOOKUP($A60,CAPTABLE[],7,FALSE)","v":0}]
[57,{"$f":"VLOOKUP($A61,CAPTABLE[],9,FALSE)","v":0},0,{"$f":"VLOOKUP($A61,CAPTABLE[],2,FALSE)","v":".001uf @1000v"},"Ceramic Disk Caps",null,null,null,null,{"$f":"VLOOKUP($A61,CAPTABLE[],7,FALSE)","v":0}]
[58,{"$f":"VLOOKUP($A62,CAPTABLE[],9,FALSE)","v":0},0,{"$f":"VLOOKUP($A62,CAPTABLE[],2,FALSE)","v":".01uf @1000v"},"Ceramic Disk Caps",null,null,null,null,{"$f":"VLOOKUP($A62,CAPTABLE[],7,FALSE)","v":0}]
[59,{"$f":"VLOOKUP($A63,CAPTABLE[],9,FALSE)","v":0},0,{"$f":"VLOOKUP($A63,CAPTABLE[],2,FALSE)","v":".1uf @1000v"},"Ceramic Disk Caps",null,null,null,null,{"$f":"VLOOKUP($A63,CAPTABLE[],7,FALSE)","v":0}]
[60,{"$f":"VLOOKUP($A64,CAPTABLE[],9,FALSE)","v":0},0,{"$f":"VLOOKUP($A64,CAPTABLE[],2,FALSE)","v":0},"Ceramic Disk Caps",null,null,null,null,{"$f":"VLOOKUP($A64,CAPTABLE[],7,FALSE)","v":0}]
[61,{"$f":"VLOOKUP($A65,CAPTABLE[],9,FALSE)","v":0},0,{"$f":"VLOOKUP($A65,CAPTABLE[],2,FALSE)","v":".001uf @ 2000v"},"1600v Met Poly Radial Caps",null,{"$f":"VLOOKUP($A65,CAPTABLE[],3,FALSE)","v":0},{"$f":"VLOOKUP($A65,CAPTABLE[],5,FALSE)","v":0},null,{"$f":"VLOOKUP($A65,CAPTABLE[],7,FALSE)","v":0}]
[62,{"$f":"VLOOKUP($A66,CAPTABLE[],9,FALSE)","v":0},0,{"$f":"VLOOKUP($A66,CAPTABLE[],2,FALSE)","v":".0022uf @ 1600v"},"1600v Met Poly Radial Caps",null,{"$f":"VLOOKUP($A66,CAPTABLE[],3,FALSE)","v":0},{"$f":"VLOOKUP($A66,CAPTABLE[],5,FALSE)","v":0},null,{"$f":"VLOOKUP($A66,CAPTABLE[],7,FALSE)","v":0}]
[63,{"$f":"VLOOKUP($A67,CAPTABLE[],9,FALSE)","v":0},0,{"$f":"VLOOKUP($A67,CAPTABLE[],2,FALSE)","v":".0033uf @ 1600v"},"1600v Met Poly Radial Caps",null,{"$f":"VLOOKUP($A67,CAPTABLE[],3,FALSE)","v":0},{"$f":"VLOOKUP($A67,CAPTABLE[],5,FALSE)","v":0},null,{"$f":"VLOOKUP($A67,CAPTABLE[],7,FALSE)","v":0}]
[64,{"$f":"VLOOKUP($A68,CAPTABLE[],9,FALSE)","v":0},0,{"$f":"VLOOKUP($A68,CAPTABLE[],2,FALSE)","v":".0047uf @ 1600v"},"1600v Met Poly Radial Caps",null,{"$f":"VLOOKUP($A68,CAPTABLE[],3,FALSE)","v":0},{"$f":"VLOOKUP($A68,CAPTABLE[],5,FALSE)","v":0},null,{"$f":"VLOOKUP($A68,CAPTABLE[],7,FALSE)","v":0}]
[65,{"$f":"VLOOKUP($A69,CAPTABLE[],9,FALSE)","v":0},0,{"$f":"VLOOKUP($A69,CAPTABLE[],2,FALSE)","v":".0068uf @ 1600v"},"1600v Met Poly Radial Caps",null,{"$f":"VLOOKUP($A69,CAPTABLE[],3,FALSE)","v":0},{"$f":"VLOOKUP($A69,CAPTABLE[],5,FALSE)","v":0},null,{"$f":"VLOOKUP($A69,CAPTABLE[],7,FALSE)","v":0}]
[66,{"$f":"VLOOKUP($A70,CAPTABLE[],5,FALSE)","v":0},{"$f":"IF(B70>0,A70,0)","v":0},{"$f":"VLOOKUP($A70,CAPTABLE[],2,FALSE)","v":".01uf @ 1600v"},"1600v Met Poly Radial Caps",null,{"$f":"VLOOKUP($A70,CAPTABLE[],3,FALSE)","v":0},{"$f":"VLOOKUP($A70,CAPTABLE[],5,FALSE)","v":0},null,{"$f":"VLOOKUP($A70,CAPTABLE[],7,FALSE)","v":0}]
[67,{"$f":"VLOOKUP($A71,CAPTABLE[],5,FALSE)","v":0},0,{"$f":"VLOOKUP($A71,CAPTABLE[],2,FALSE)","v":".022uf @ 1600v"},"1600v Met Poly Radial Caps",null,{"$f":"VLOOKUP($A71,CAPTABLE[],3,FALSE)","v":0},{"$f":"VLOOKUP($A71,CAPTABLE[],5,FALSE)","v":0},null,{"$f":"VLOOKUP($A71,CAPTABLE[],7,FALSE)","v":0}]
[68,{"$f":"VLOOKUP($A72,CAPTABLE[],9,FALSE)","v":0},0,{"$f":"VLOOKUP($A72,CAPTABLE[],2,FALSE)","v":".033uf @ 1600v"},"1600v Met Poly Radial Caps",null,{"$f":"VLOOKUP($A72,CAPTABLE[],3,FALSE)","v":0},{"$f":"VLOOKUP($A72,CAPTABLE[],5,FALSE)","v":0},null,{"$f":"VLOOKUP($A72,CAPTABLE[],7,FALSE)","v":0}]
[69,{"$f":"VLOOKUP($A73,CAPTABLE[],9,FALSE)","v":0},0,{"$f":"VLOOKUP($A73,CAPTABLE[],2,FALSE)","v":".047uf @ 2000v"},"1600v Met Poly Radial Caps",null,{"$f":"VLOOKUP($A73,CAPTABLE[],3,FALSE)","v":0},{"$f":"VLOOKUP($A73,CAPTABLE[],5,FALSE)","v":0},null,{"$f":"VLOOKUP($A73,CAPTABLE[],7,FALSE)","v":0}]
[70,{"$f":"VLOOKUP($A74,CAPTABLE[],9,FALSE)","v":0},0,{"$f":"VLOOKUP($A74,CAPTABLE[],2,FALSE)","v":".1uf @ 1600v"},"1600v Met Poly Radial Caps",null,{"$f":"VLOOKUP($A74,CAPTABLE[],3,FALSE)","v":0},{"$f":"VLOOKUP($A74,CAPTABLE[],5,FALSE)","v":0},null,{"$f":"VLOOKUP($A74,CAPTABLE[],7,FALSE)","v":0}]
[71,{"$f":"VLOOKUP($A75,CAPTABLE[],9,FALSE)","v":0},0,{"$f":"VLOOKUP($A75,CAPTABLE[],2,FALSE)","v":"1600v Poly Kit #1 (100)"},"1600v Poly Kit",null,null,null,null,{"$f":"VLOOKUP($A75,CAPTABLE[],3,FALSE)","v":0}]
[72,{"$f":"VLOOKUP($A76,CAPTABLE[],9,FALSE)","v":0},0,{"$f":"VLOOKUP($A76,CAPTABLE[],2,FALSE)","v":"1600v Poly Kit #2 (250)"},"1600v Poly Kit",null,null,null,null,{"$f":"VLOOKUP($A76,CAPTABLE[],3,FALSE)","v":0}]
[73,{"$f":"VLOOKUP($A77,CAPTABLE[],9,FALSE)","v":0},0,{"$f":"VLOOKUP($A77,CAPTABLE[],2,FALSE)","v":".001uf @ 275vac"},"X2 & Y2 Safety Caps",null,null,null,null,{"$f":"VLOOKUP($A77,CAPTABLE[],7,FALSE)","v":0}]
[74,{"$f":"VLOOKUP($A78,CAPTABLE[],9,FALSE)","v":0},0,{"$f":"VLOOKUP($A78,CAPTABLE[],2,FALSE)","v":".0033uf @ 275vac"},"X2 & Y2 Safety Caps",null,null,null,null,{"$f":"VLOOKUP($A78,CAPTABLE[],7,FALSE)","v":0}]
[75,{"$f":"VLOOKUP($A79,CAPTABLE[],9,FALSE)","v":0},0,{"$f":"VLOOKUP($A79,CAPTABLE[],2,FALSE)","v":".0047uf @ 275vac"},"X2 & Y2 Safety Caps",null,null,null,null,{"$f":"VLOOKUP($A79,CAPTABLE[],7,FALSE)","v":0}]
[76,{"$f":"VLOOKUP($A80,CAPTABLE[],9,FALSE)","v":0},0,{"$f":"VLOOKUP($A80,CAPTABLE[],2,FALSE)","v":".01uf  @ 275vac"},"X2 & Y2 Safety Caps",null,null,null,null,{"$f":"VLOOKUP($A80,CAPTABLE[],7,FALSE)","v":0}]
[77,{"$f":"VLOOKUP($A81,CAPTABLE[],9,FALSE)","v":0},0,{"$f":"VLOOKUP($A81,CAPTABLE[],2,FALSE)","v":".022uf @ 275vac"},"X2 & Y2 Safety Caps",null,null,null,null,{"$f":"VLOOKUP($A81,CAPTABLE[],7,FALSE)","v":0}]
[78,{"$f":"VLOOKUP($A82,CAPTABLE[],9,FALSE)","v":0},0,{"$f":"VLOOKUP($A82,CAPTABLE[],2,FALSE)","v":".047uf @ 275vac "},"X2 & Y2 Safety Caps",null,null,null,null,{"$f":"VLOOKUP($A82,CAPTABLE[],7,FALSE)","v":0}]
[79,{"$f":"VLOOKUP($A83,CAPTABLE[],9,FALSE)","v":0},0,{"$f":"VLOOKUP($A83,CAPTABLE[],2,FALSE)","v":".1uf @ 275vac"},"X2 & Y2 Safety Caps",null,null,null,null,{"$f":"VLOOKUP($A83,CAPTABLE[],7,FALSE)","v":0}]
[80,{"$f":"VLOOKUP($A84,CAPTABLE[],9,FALSE)","v":0},0,{"$f":"VLOOKUP($A84,CAPTABLE[],2,FALSE)","v":".0022uf @ 250vac"},"X2 & Y2 Safety Caps",null,null,null,null,{"$f":"VLOOKUP($A84,CAPTABLE[],7,FALSE)","v":0}]
[81,{"$f":"VLOOKUP($A85,CAPTABLE[],9,FALSE)","v":0},0,{"$f":"VLOOKUP($A85,CAPTABLE[],2,FALSE)","v":".0033uf @ 250vac"},"X2 & Y2 Safety Caps",null,null,null,null,{"$f":"VLOOKUP($A85,CAPTABLE[],7,FALSE)","v":0}]
[82,{"$f":"VLOOKUP($A86,CAPTABLE[],9,FALSE)","v":0},0,{"$f":"VLOOKUP($A86,CAPTABLE[],2,FALSE)","v":".0047uf @ 250vac"},"X2 & Y2 Safety Caps",null,null,null,null,{"$f":"VLOOKUP($A86,CAPTABLE[],7,FALSE)","v":0}]
[83,{"$f":"VLOOKUP($A87,CAPTABLE[],9,FALSE)","v":0},0,{"$f":"VLOOKUP($A87,CAPTABLE[],2,FALSE)","v":".01uf @ 250vac"},"X2 & Y2 Safety Caps",null,null,null,null,{"$f":"VLOOKUP($A87,CAPTABLE[],7,FALSE)","v":0}]
[84,{"$f":"VLOOKUP($A88,CAPTABLE[],9,FALSE)","v":0},0,{"$f":"VLOOKUP($A88,CAPTABLE[],2,FALSE)","v":"10uf@50v"},"Axial Elect Caps",null,{"$f":"VLOOKUP($A88,CAPTABLE[],3,FALSE)","v":0},{"$f":"VLOOKUP($A88,CAPTABLE[],5,FALSE)","v":0},null,{"$f":"VLOOKUP($A88,CAPTABLE[],7,FALSE)","v":0}]
[85,{"$f":"VLOOKUP($A89,CAPTABLE[],9,FALSE)","v":0},0,{"$f":"VLOOKUP($A89,CAPTABLE[],2,FALSE)","v":"22uf@50v"},"Axial Elect Caps",null,{"$f":"VLOOKUP($A89,CAPTABLE[],3,FALSE)","v":0},{"$f":"VLOOKUP($A89,CAPTABLE[],5,FALSE)","v":0},null,{"$f":"VLOOKUP($A89,CAPTABLE[],7,FALSE)","v":0}]
[86,{"$f":"VLOOKUP($A90,CAPTABLE[],9,FALSE)","v":0},0,{"$f":"VLOOKUP($A90,CAPTABLE[],2,FALSE)","v":"33uf@50v"},"Axial Elect Caps",null,{"$f":"VLOOKUP($A90,CAPTABLE[],3,FALSE)","v":0},{"$f":"VLOOKUP($A90,CAPTABLE[],5,FALSE)","v":0},null,{"$f":"VLOOKUP($A90,CAPTABLE[],7,FALSE)","v":0}]
[87,{"$f":"VLOOKUP($A91,CAPTABLE[],9,FALSE)","v":0},0,{"$f":"VLOOKUP($A91,CAPTABLE[],2,FALSE)","v":"47uf@50v"},"Axial Elect Caps",null,{"$f":"VLOOKUP($A91,CAPTABLE[],3,FALSE)","v":0},{"$f":"VLOOKUP($A91,CAPTABLE[],5,FALSE)","v":0},null,{"$f":"VLOOKUP($A91,CAPTABLE[],7,FALSE)","v":0}]
[88,{"$f":"VLOOKUP($A92,CAPTABLE[],9,FALSE)","v":0},0,{"$f":"VLOOKUP($A92,CAPTABLE[],2,FALSE)","v":"10uf@160v"},"Axial Elect Caps",null,{"$f":"VLOOKUP($A92,CAPTABLE[],3,FALSE)","v":0},{"$f":"VLOOKUP($A92,CAPTABLE[],5,FALSE)","v":0},null,{"$f":"VLOOKUP($A92,CAPTABLE[],7,FALSE)","v":0}]
[89,{"$f":"VLOOKUP($A93,CAPTABLE[],9,FALSE)","v":0},0,{"$f":"VLOOKUP($A93,CAPTABLE[],2,FALSE)","v":"22uf@160v"},"Axial Elect Caps",null,{"$f":"VLOOKUP($A93,CAPTABLE[],3,FALSE)","v":0},{"$f":"VLOOKUP($A93,CAPTABLE[],5,FALSE)","v":0},null,{"$f":"VLOOKUP($A93,CAPTABLE[],7,FALSE)","v":0}]
[90,{"$f":"VLOOKUP($A94,CAPTABLE[],9,FALSE)","v":0},0,{"$f":"VLOOKUP($A94,CAPTABLE[],2,FALSE)","v":"33uf@160v"},"Axial Elect Caps",null,{"$f":"VLOOKUP($A94,CAPTABLE[],3,FALSE)","v":0},{"$f":"VLOOKUP($A94,CAPTABLE[],5,FALSE)","v":0},null,{"$f":"VLOOKUP($A94,CAPTABLE[],7,FALSE)","v":0}]
[91,{"$f":"VLOOKUP($A95,CAPTABLE[],9,FALSE)","v":0},0,{"$f":"VLOOKUP($A95,CAPTABLE[],2,FALSE)","v":" 47uf@160v"},"Axial Elect Caps",null,{"$f":"VLOOKUP($A95,CAPTABLE[],3,FALSE)","v":0},{"$f":"VLOOKUP($A95,CAPTABLE[],5,FALSE)","v":0},null,{"$f":"VLOOKUP($A95,CAPTABLE[],7,FALSE)","v":0}]
[92,{"$f":"VLOOKUP($A96,CAPTABLE[],5,FALSE)","v":0},0,{"$f":"VLOOKUP($A96,CAPTABLE[],2,FALSE)","v":"4.7uf@450v"},"Axial Elect Caps",null,{"$f":"VLOOKUP($A96,CAPTABLE[],3,FALSE)","v":0},{"$f":"VLOOKUP($A96,CAPTABLE[],5,FALSE)","v":0},null,{"$f":"VLOOKUP($A96,CAPTABLE[],7,FALSE)","v":0}]
[93,{"$f":"VLOOKUP($A97,CAPTABLE[],5,FALSE)","v":0},0,{"$f":"VLOOKUP($A97,CAPTABLE[],2,FALSE)","v":"10uf@450v"},"Axial Elect Caps",null,{"$f":"VLOOKUP($A97,CAPTABLE[],3,FALSE)","v":0},{"$f":"VLOOKUP($A97,CAPTABLE[],5,FALSE)","v":0},null,{"$f":"VLOOKUP($A97,CAPTABLE[],7,FALSE)","v":0}]
[94,{"$f":"VLOOKUP($A98,CAPTABLE[],9,FALSE)","v":0},0,{"$f":"VLOOKUP($A98,CAPTABLE[],2,FALSE)","v":"22uf@450v"},"Axial Elect Caps",null,{"$f":"VLOOKUP($A98,CAPTABLE[],3,FALSE)","v":0},{"$f":"VLOOKUP($A98,CAPTABLE[],5,FALSE)","v":0},null,{"$f":"VLOOKUP($A98,CAPTABLE[],7,FALSE)","v":0}]
[95,{"$f":"VLOOKUP($A99,CAPTABLE[],9,FALSE)","v":0},0,{"$f":"VLOOKUP($A99,CAPTABLE[],2,FALSE)","v":"33uf@450v"},"Axial Elect Caps",null,{"$f":"VLOOKUP($A99,CAPTABLE[],3,FALSE)","v":0},{"$f":"VLOOKUP($A99,CAPTABLE[],5,FALSE)","v":0},null,{"$f":"VLOOKUP($A99,CAPTABLE[],7,FALSE)","v":0}]
[96,{"$f":"VLOOKUP($A100,CAPTABLE[],9,FALSE)","v":0},0,{"$f":"VLOOKUP($A100,CAPTABLE[],2,FALSE)","v":"47uf@450v"},"Axial Elect Caps",null,{"$f":"VLOOKUP($A100,CAPTABLE[],3,FALSE)","v":0},{"$f":"VLOOKUP($A100,CAPTABLE[],5,FALSE)","v":0},null,{"$f":"VLOOKUP($A100,CAPTABLE[],7,FALSE)","v":0}]
[97,{"$f":"VLOOKUP($A101,CAPTABLE[],9,FALSE)","v":0},0,{"$f":"VLOOKUP($A101,CAPTABLE[],2,FALSE)","v":"Axial Electrolytic Kit #1 (45)"},"Axial Elect Caps Kit",null,null,null,null,{"$f":"VLOOKUP($A101,CAPTABLE[],3,FALSE)","v":0}]
[98,{"$f":"VLOOKUP($A102,CAPTABLE[],9,FALSE)","v":0},0,{"$f":"VLOOKUP($A102,CAPTABLE[],2,FALSE)","v":"Axial Electrolytic Kit #2 (90)"},"Axial Elect Caps Kit",null,null,null,null,{"$f":"VLOOKUP($A102,CAPTABLE[],3,FALSE)","v":0}]
[99,{"$f":"VLOOKUP($A103,CAPTABLE[],9,FALSE)","v":0},0,{"$f":"VLOOKUP($A103,CAPTABLE[],2,FALSE)","v":"10uf@50v"},"Radial Elect Caps",null,{"$f":"VLOOKUP($A103,CAPTABLE[],3,FALSE)","v":0},{"$f":"VLOOKUP($A103,CAPTABLE[],5,FALSE)","v":0},null,{"$f":"VLOOKUP($A103,CAPTABLE[],7,FALSE)","v":0}]
[100,{"$f":"VLOOKUP($A104,CAPTABLE[],9,FALSE)","v":0},0,{"$f":"VLOOKUP($A104,CAPTABLE[],2,FALSE)","v":"22uf@50v"},"Radial Elect Caps",null,{"$f":"VLOOKUP($A104,CAPTABLE[],3,FALSE)","v":0},{"$f":"VLOOKUP($A104,CAPTABLE[],5,FALSE)","v":0},null,{"$f":"VLOOKUP($A104,CAPTABLE[],7,FALSE)","v":0}]
[101,{"$f":"VLOOKUP($A105,CAPTABLE[],9,FALSE)","v":0},0,{"$f":"VLOOKUP($A105,CAPTABLE[],2,FALSE)","v":"33uf@50v"},"Radial Elect Caps",null,{"$f":"VLOOKUP($A105,CAPTABLE[],3,FALSE)","v":0},{"$f":"VLOOKUP($A105,CAPTABLE[],5,FALSE)","v":0},null,{"$f":"VLOOKUP($A105,CAPTABLE[],7,FALSE)","v":0}]
[102,{"$f":"VLOOKUP($A106,CAPTABLE[],9,FALSE)","v":0},0,{"$f":"VLOOKUP($A106,CAPTABLE[],2,FALSE)","v":"47uf@50v"},"Radial Elect Caps",null,{"$f":"VLOOKUP($A106,CAPTABLE[],3,FALSE)","v":0},{"$f":"VLOOKUP($A106,CAPTABLE[],5,FALSE)","v":0},null,{"$f":"VLOOKUP($A106,CAPTABLE[],7,FALSE)","v":0}]
[103,{"$f":"VLOOKUP($A107,CAPTABLE[],9,FALSE)","v":0},0,{"$f":"VLOOKUP($A107,CAPTABLE[],2,FALSE)","v":"4.7uf@160v"},"Radial Elect Caps",null,{"$f":"VLOOKUP($A107,CAPTABLE[],3,FALSE)","v":0},{"$f":"VLOOKUP($A107,CAPTABLE[],5,FALSE)","v":0},null,{"$f":"VLOOKUP($A107,CAPTABLE[],7,FALSE)","v":0}]
[104,{"$f":"VLOOKUP($A108,CAPTABLE[],9,FALSE)","v":0},0,{"$f":"VLOOKUP($A108,CAPTABLE[],2,FALSE)","v":"10uf@160v"},"Radial Elect Caps",null,{"$f":"VLOOKUP($A108,CAPTABLE[],3,FALSE)","v":0},{"$f":"VLOOKUP($A108,CAPTABLE[],5,FALSE)","v":0},null,{"$f":"VLOOKUP($A108,CAPTABLE[],7,FALSE)","v":0}]
[105,{"$f":"VLOOKUP($A109,CAPTABLE[],9,FALSE)","v":0},0,{"$f":"VLOOKUP($A109,CAPTABLE[],2,FALSE)","v":"22uf@160v"},"Radial Elect Caps",null,{"$f":"VLOOKUP($A109,CAPTABLE[],3,FALSE)","v":0},{"$f":"VLOOKUP($A109,CAPTABLE[],5,FALSE)","v":0},null,{"$f":"VLOOKUP($A109,CAPTABLE[],7,FALSE)","v":0}]
[106,{"$f":"VLOOKUP($A110,CAPTABLE[],9,FALSE)","v":0},0,{"$f":"VLOOKUP($A110,CAPTABLE[],2,FALSE)","v":"33uf@160v"},"Radial Elect Caps",null,{"$f":"VLOOKUP($A110,CAPTABLE[],3,FALSE)","v":0},{"$f":"VLOOKUP($A110,CAPTABLE[],5,FALSE)","v":0},null,{"$f":"VLOOKUP($A110,CAPTABLE[],7,FALSE)","v":0}]
[107,{"$f":"VLOOKUP($A111,CAPTABLE[],9,FALSE)","v":0},0,{"$f":"VLOOKUP($A111,CAPTABLE[],2,FALSE)","v":"47uf@160v"},"Radial Elect Caps",null,{"$f":"VLOOKUP($A111,CAPTABLE[],3,FALSE)","v":0},{"$f":"VLOOKUP($A111,CAPTABLE[],5,FALSE)","v":0},null,{"$f":"VLOOKUP($A111,CAPTABLE[],7,FALSE)","v":0}]
[108,{"$f":"VLOOKUP($A112,CAPTABLE[],9,FALSE)","v":0},0,{"$f":"VLOOKUP($A112,CAPTABLE[],2,FALSE)","v":"68uf@160v"},"Radial Elect Caps",null,{"$f":"VLOOKUP($A112,CAPTABLE[],3,FALSE)","v":0},{"$f":"VLOOKUP($A112,CAPTABLE[],5,FALSE)","v":0},null,{"$f":"VLOOKUP($A112,CAPTABLE[],7,FALSE)","v":0}]
[109,{"$f":"VLOOKUP($A113,CAPTABLE[],9,FALSE)","v":0},0,{"$f":"VLOOKUP($A113,CAPTABLE[],2,FALSE)","v":"82uf@160v"},"Radial Elect Caps",null,{"$f":"VLOOKUP($A113,CAPTABLE[],3,FALSE)","v":0},{"$f":"VLOOKUP($A113,CAPTABLE[],5,FALSE)","v":0},null,{"$f":"VLOOKUP($A113,CAPTABLE[],7,FALSE)","v":0}]
[110,{"$f":"VLOOKUP($A114,CAPTABLE[],9,FALSE)","v":0},0,{"$f":"VLOOKUP($A114,CAPTABLE[],2,FALSE)","v":"100uf@160v"},"Radial Elect Caps",null,{"$f":"VLOOKUP($A114,CAPTABLE[],3,FALSE)","v":0},{"$f":"VLOOKUP($A114,CAPTABLE[],5,FALSE)","v":0},null,{"$f":"VLOOKUP($A114,CAPTABLE[],7,FALSE)","v":0}]
[111,{"$f":"VLOOKUP($A115,CAPTABLE[],9,FALSE)","v":0},0,{"$f":"VLOOKUP($A115,CAPTABLE[],2,FALSE)","v":"10uf@250v"},"Radial Elect Caps",null,{"$f":"VLOOKUP($A115,CAPTABLE[],3,FALSE)","v":0},{"$f":"VLOOKUP($A115,CAPTABLE[],5,FALSE)","v":0},null,{"$f":"VLOOKUP($A115,CAPTABLE[],7,FALSE)","v":0}]
[112,{"$f":"VLOOKUP($A116,CAPTABLE[],9,FALSE)","v":0},0,{"$f":"VLOOKUP($A116,CAPTABLE[],2,FALSE)","v":"22uf@250v"},"Radial Elect Caps",null,{"$f":"VLOOKUP($A116,CAPTABLE[],3,FALSE)","v":0},{"$f":"VLOOKUP($A116,CAPTABLE[],5,FALSE)","v":0},null,{"$f":"VLOOKUP($A116,CAPTABLE[],7,FALSE)","v":0}]
[113,{"$f":"VLOOKUP($A117,CAPTABLE[],9,FALSE)","v":0},0,{"$f":"VLOOKUP($A117,CAPTABLE[],2,FALSE)","v":"33uf@250v"},"Radial Elect Caps",null,{"$f":"VLOOKUP($A117,CAPTABLE[],3,FALSE)","v":0},{"$f":"VLOOKUP($A117,CAPTABLE[],5,FALSE)","v":0},null,{"$f":"VLOOKUP($A117,CAPTABLE[],7,FALSE)","v":0}]
[114,{"$f":"VLOOKUP($A118,CAPTABLE[],9,FALSE)","v":0},0,{"$f":"VLOOKUP($A118,CAPTABLE[],2,FALSE)","v":"47uf@250v"},"Radial Elect Caps",null,{"$f":"VLOOKUP($A118,CAPTABLE[],3,FALSE)","v":0},{"$f":"VLOOKUP($A118,CAPTABLE[],5,FALSE)","v":0},null,{"$f":"VLOOKUP($A118,CAPTABLE[],7,FALSE)","v":0}]
[115,{"$f":"VLOOKUP($A119,CAPTABLE[],9,FALSE)","v":0},0,{"$f":"VLOOKUP($A119,CAPTABLE[],2,FALSE)","v":"100uf@250v"},"Radial Elect Caps",null,{"$f":"VLOOKUP($A119,CAPTABLE[],3,FALSE)","v":0},{"$f":"VLOOKUP($A119,CAPTABLE[],5,FALSE)","v":0},null,{"$f":"VLOOKUP($A119,CAPTABLE[],7,FALSE)","v":0}]
[116,{"$f":"VLOOKUP($A120,CAPTABLE[],9,FALSE)","v":0},0,{"$f":"VLOOKUP($A120,CAPTABLE[],2,FALSE)","v":"100uf@400v"},"Radial Elect Caps",null,{"$f":"VLOOKUP($A120,CAPTABLE[],3,FALSE)","v":0},{"$f":"VLOOKUP($A120,CAPTABLE[],5,FALSE)","v":0},null,{"$f":"VLOOKUP($A120,CAPTABLE[],7,FALSE)","v":0}]
[117,{"$f":"VLOOKUP($A121,CAPTABLE[],9,FALSE)","v":0},0,{"$f":"VLOOKUP($A121,CAPTABLE[],2,FALSE)","v":"1uf@450v"},"Radial Elect Caps",null,{"$f":"VLOOKUP($A121,CAPTABLE[],3,FALSE)","v":0},{"$f":"VLOOKUP($A121,CAPTABLE[],5,FALSE)","v":0},null,{"$f":"VLOOKUP($A121,CAPTABLE[],7,FALSE)","v":0}]
[118,{"$f":"VLOOKUP($A122,CAPTABLE[],9,FALSE)","v":0},0,{"$f":"VLOOKUP($A122,CAPTABLE[],2,FALSE)","v":"2.2uf@450v"},"Radial Elect Caps",null,{"$f":"VLOOKUP($A122,CAPTABLE[],3,FALSE)","v":0},{"$f":"VLOOKUP($A122,CAPTABLE[],5,FALSE)","v":0},null,{"$f":"VLOOKUP($A122,CAPTABLE[],7,FALSE)","v":0}]
[119,{"$f":"VLOOKUP($A123,CAPTABLE[],9,FALSE)","v":0},0,{"$f":"VLOOKUP($A123,CAPTABLE[],2,FALSE)","v":"3.3uf@450v"},"Radial Elect Caps",null,{"$f":"VLOOKUP($A123,CAPTABLE[],3,FALSE)","v":0},{"$f":"VLOOKUP($A123,CAPTABLE[],5,FALSE)","v":0},null,{"$f":"VLOOKUP($A123,CAPTABLE[],7,FALSE)","v":0}]
[120,{"$f":"VLOOKUP($A124,CAPTABLE[],9,FALSE)","v":0},0,{"$f":"VLOOKUP($A124,CAPTABLE[],2,FALSE)","v":"4.7uf@450v"},"Radial Elect Caps",null,{"$f":"VLOOKUP($A124,CAPTABLE[],3,FALSE)","v":0},{"$f":"VLOOKUP($A124,CAPTABLE[],5,FALSE)","v":0},null,{"$f":"VLOOKUP($A124,CAPTABLE[],7,FALSE)","v":0}]
[121,{"$f":"VLOOKUP($A125,CAPTABLE[],9,FALSE)","v":0},0,{"$f":"VLOOKUP($A125,CAPTABLE[],2,FALSE)","v":"6.8uf@450v"},"Radial Elect Caps",null,{"$f":"VLOOKUP($A125,CAPTABLE[],3,FALSE)","v":0},{"$f":"VLOOKUP($A125,CAPTABLE[],5,FALSE)","v":0},null,{"$f":"VLOOKUP($A125,CAPTABLE[],7,FALSE)","v":0}]
[122,{"$f":"VLOOKUP($A126,CAPTABLE[],9,FALSE)","v":0},0,{"$f":"VLOOKUP($A126,CAPTABLE[],2,FALSE)","v":"10uf@450v"},"Radial Elect Caps",null,{"$f":"VLOOKUP($A126,CAPTABLE[],3,FALSE)","v":0},{"$f":"VLOOKUP($A126,CAPTABLE[],5,FALSE)","v":0},null,{"$f":"VLOOKUP($A126,CAPTABLE[],7,FALSE)","v":0}]
[123,{"$f":"VLOOKUP($A127,CAPTABLE[],9,FALSE)","v":0},0,{"$f":"VLOOKUP($A127,CAPTABLE[],2,FALSE)","v":"15uf@450v"},"Radial Elect Caps",null,{"$f":"VLOOKUP($A127,CAPTABLE[],3,FALSE)","v":0},{"$f":"VLOOKUP($A127,CAPTABLE[],5,FALSE)","v":0},null,{"$f":"VLOOKUP($A127,CAPTABLE[],7,FALSE)","v":0}]
[124,{"$f":"VLOOKUP($A128,CAPTABLE[],9,FALSE)","v":0},0,{"$f":"VLOOKUP($A128,CAPTABLE[],2,FALSE)","v":"22uf@450v"},"Radial Elect Caps",null,{"$f":"VLOOKUP($A128,CAPTABLE[],3,FALSE)","v":0},{"$f":"VLOOKUP($A128,CAPTABLE[],5,FALSE)","v":0},null,{"$f":"VLOOKUP($A128,CAPTABLE[],7,FALSE)","v":0}]
[125,{"$f":"VLOOKUP($A129,CAPTABLE[],9,FALSE)","v":0},0,{"$f":"VLOOKUP($A129,CAPTABLE[],2,FALSE)","v":"33uf@450v"},"Radial Elect Caps",null,{"$f":"VLOOKUP($A129,CAPTABLE[],3,FALSE)","v":0},{"$f":"VLOOKUP($A129,CAPTABLE[],5,FALSE)","v":0},null,{"$f":"VLOOKUP($A129,CAPTABLE[],7,FALSE)","v":0}]
[126,{"$f":"VLOOKUP($A130,CAPTABLE[],9,FALSE)","v":0},0,{"$f":"VLOOKUP($A130,CAPTABLE[],2,FALSE)","v":"47uf@450v"},"Radial Elect Caps",null,{"$f":"VLOOKUP($A130,CAPTABLE[],3,FALSE)","v":0},{"$f":"VLOOKUP($A130,CAPTABLE[],5,FALSE)","v":0},null,{"$f":"VLOOKUP($A130,CAPTABLE[],7,FALSE)","v":0}]
[127,{"$f":"VLOOKUP($A131,CAPTABLE[],9,FALSE)","v":0},0,{"$f":"VLOOKUP($A131,CAPTABLE[],2,FALSE)","v":"68uf@450v"},"Radial Elect Caps",null,{"$f":"VLOOKUP($A131,CAPTABLE[],3,FALSE)","v":0},{"$f":"VLOOKUP($A131,CAPTABLE[],5,FALSE)","v":0},null,{"$f":"VLOOKUP($A131,CAPTABLE[],7,FALSE)","v":0}]
[128,{"$f":"VLOOKUP($A132,CAPTABLE[],9,FALSE)","v":0},0,{"$f":"VLOOKUP($A132,CAPTABLE[],2,FALSE)","v":"100uf@450v"},"Radial Elect Caps",null,{"$f":"VLOOKUP($A132,CAPTABLE[],3,FALSE)","v":0},{"$f":"VLOOKUP($A132,CAPTABLE[],5,FALSE)","v":0},null,{"$f":"VLOOKUP($A132,CAPTABLE[],7,FALSE)","v":0}]
[129,{"$f":"VLOOKUP($A133,CAPTABLE[],9,FALSE)","v":0},0,{"$f":"VLOOKUP($A133,CAPTABLE[],2,FALSE)","v":"120uf@450v"},"Radial Elect Caps",null,{"$f":"VLOOKUP($A133,CAPTABLE[],3,FALSE)","v":0},{"$f":"VLOOKUP($A133,CAPTABLE[],5,FALSE)","v":0},null,{"$f":"VLOOKUP($A133,CAPTABLE[],7,FALSE)","v":0}]
[130,{"$f":"VLOOKUP($A134,CAPTABLE[],9,FALSE)","v":0},{"$f":"IF(B134>0,A134,0)","v":0},{"$f":"VLOOKUP($A134,CAPTABLE[],2,FALSE)","v":"10uf@500v"},"Radial Elect Caps",null,{"$f":"VLOOKUP($A134,CAPTABLE[],3,FALSE)","v":0},{"$f":"VLOOKUP($A134,CAPTABLE[],5,FALSE)","v":0},null,{"$f":"VLOOKUP($A134,CAPTABLE[],7,FALSE)","v":0}]
[131,{"$f":"VLOOKUP($A135,CAPTABLE[],9,FALSE)","v":0},0,{"$f":"VLOOKUP($A135,CAPTABLE[],2,FALSE)","v":"22uf@500v"},"Radial Elect Caps",null,{"$f":"VLOOKUP($A135,CAPTABLE[],3,FALSE)","v":0},{"$f":"VLOOKUP($A135,CAPTABLE[],5,FALSE)","v":0},null,{"$f":"VLOOKUP($A135,CAPTABLE[],7,FALSE)","v":0}]
[132,{"$f":"VLOOKUP($A136,CAPTABLE[],9,FALSE)","v":0},0,{"$f":"VLOOKUP($A136,CAPTABLE[],2,FALSE)","v":"33uf@500v"},"Radial Elect Caps",null,{"$f":"VLOOKUP($A136,CAPTABLE[],3,FALSE)","v":0},{"$f":"VLOOKUP($A136,CAPTABLE[],5,FALSE)","v":0},null,{"$f":"VLOOKUP($A136,CAPTABLE[],7,FALSE)","v":0}]
[133,{"$f":"VLOOKUP($A137,CAPTABLE[],5,FALSE)","v":0},0,{"$f":"VLOOKUP($A137,CAPTABLE[],2,FALSE)","v":"47uf@500v"},"Radial Elect Caps",null,{"$f":"VLOOKUP($A137,CAPTABLE[],3,FALSE)","v":0},{"$f":"VLOOKUP($A137,CAPTABLE[],5,FALSE)","v":0},null,{"$f":"VLOOKUP($A137,CAPTABLE[],7,FALSE)","v":0}]
[134,{"$f":"VLOOKUP($A138,CAPTABLE[],5,FALSE)","v":0},0,{"$f":"VLOOKUP($A138,CAPTABLE[],2,FALSE)","v":"10uf@550v"},"Radial Elect Caps",null,{"$f":"VLOOKUP($A138,CAPTABLE[],3,FALSE)","v":0},{"$f":"VLOOKUP($A138,CAPTABLE[],5,FALSE)","v":0},null,{"$f":"VLOOKUP($A138,CAPTABLE[],7,FALSE)","v":0}]
[135,{"$f":"VLOOKUP($A139,CAPTABLE[],5,FALSE)","v":0},0,{"$f":"VLOOKUP($A139,CAPTABLE[],2,FALSE)","v":"22uf@550v"},"Radial Elect Caps",null,{"$f":"VLOOKUP($A139,CAPTABLE[],3,FALSE)","v":0},{"$f":"VLOOKUP($A139,CAPTABLE[],5,FALSE)","v":0},null,{"$f":"VLOOKUP($A139,CAPTABLE[],7,FALSE)","v":0}]
[136,{"$f":"VLOOKUP($A140,CAPTABLE[],5,FALSE)","v":0},{"$f":"IF(B140>0,A140,0)","v":0},{"$f":"VLOOKUP($A140,CAPTABLE[],2,FALSE)","v":"150uf@450v"},"Snap in Electrolytics",null,{"$f":"VLOOKUP($A140,CAPTABLE[],3,FALSE)","v":0},{"$f":"VLOOKUP($A140,CAPTABLE[],5,FALSE)","v":0},null,{"$f":"VLOOKUP($A140,CAPTABLE[],7,FALSE)","v":0}]
[137,{"$f":"VLOOKUP($A141,CAPTABLE[],5,FALSE)","v":0},0,{"$f":"VLOOKUP($A141,CAPTABLE[],2,FALSE)","v":"220uf@450v"},"Snap in Electrolytics",null,{"$f":"VLOOKUP($A141,CAPTABLE[],3,FALSE)","v":0},{"$f":"VLOOKUP($A141,CAPTABLE[],5,FALSE)","v":0},null,{"$f":"VLOOKUP($A141,CAPTABLE[],7,FALSE)","v":0}]
[138,{"$f":"VLOOKUP($A142,CAPTABLE[],5,FALSE)","v":0},{"$f":"IF(B142>0,A142,0)","v":0},{"$f":"VLOOKUP($A142,CAPTABLE[],2,FALSE)","v":"Radial Electrolytic Kit #1 (50)"},"Radial Elect Caps Kit",null,null,null,null,{"$f":"VLOOKUP($A142,CAPTABLE[],3,FALSE)","v":0}]
[139,{"$f":"VLOOKUP($A143,CAPTABLE[],5,FALSE)","v":0},0,{"$f":"VLOOKUP($A143,CAPTABLE[],2,FALSE)","v":"Radial Electrolytic Kit #2 (100)"},"Radial Elect Caps Kit",null,null,null,null,{"$f":"VLOOKUP($A143,CAPTABLE[],3,FALSE)","v":0}]
[140,{"$f":"VLOOKUP($A144,RESISTABLE[],9,FALSE)","v":0},0,{"$f":"VLOOKUP($A144,RESISTABLE[],2,FALSE)","v":"1/2 Watt 1000 Piece Resistor Kit"},"1/2 W Resistor Kit",null,null,null,null,{"$f":"VLOOKUP($A144,RESISTABLE[],7,FALSE)","v":0}]
[141,{"$f":"VLOOKUP($A145,RESISTABLE[],9,FALSE)","v":0},0,{"$f":"VLOOKUP($A145,RESISTABLE[],2,FALSE)","v":"1 Ω"},"1/2 W MFR",null,{"$f":"VLOOKUP($A145,RESISTABLE[],3,FALSE)","v":0},{"$f":"VLOOKUP($A145,RESISTABLE[],5,FALSE)","v":0},null,{"$f":"VLOOKUP($A145,RESISTABLE[],7,FALSE)","v":0}]
[142,{"$f":"VLOOKUP($A146,RESISTABLE[],9,FALSE)","v":0},0,{"$f":"VLOOKUP($A146,RESISTABLE[],2,FALSE)","v":"1.5 Ω"},"1/2 W MFR",null,{"$f":"VLOOKUP($A146,RESISTABLE[],3,FALSE)","v":0},{"$f":"VLOOKUP($A146,RESISTABLE[],5,FALSE)","v":0},null,{"$f":"VLOOKUP($A146,RESISTABLE[],7,FALSE)","v":0}]
[143,{"$f":"VLOOKUP($A147,RESISTABLE[],9,FALSE)","v":0},0,{"$f":"VLOOKUP($A147,RESISTABLE[],2,FALSE)","v":"1.8 Ω"},"1/2 W MFR",null,{"$f":"VLOOKUP($A147,RESISTABLE[],3,FALSE)","v":0},{"$f":"VLOOKUP($A147,RESISTABLE[],5,FALSE)","v":0},null,{"$f":"VLOOKUP($A147,RESISTABLE[],7,FALSE)","v":0}]
[144,{"$f":"VLOOKUP($A148,RESISTABLE[],9,FALSE)","v":0},0,{"$f":"VLOOKUP($A148,RESISTABLE[],2,FALSE)","v":"2.2 Ω"},"1/2 W MFR",null,{"$f":"VLOOKUP($A148,RESISTABLE[],3,FALSE)","v":0},{"$f":"VLOOKUP($A148,RESISTABLE[],5,FALSE)","v":0},null,{"$f":"VLOOKUP($A148,RESISTABLE[],7,FALSE)","v":0}]
[145,{"$f":"VLOOKUP($A149,RESISTABLE[],9,FALSE)","v":0},0,{"$f":"VLOOKUP($A149,RESISTABLE[],2,FALSE)","v":"3.3 Ω"},"1/2 W MFR",null,{"$f":"VLOOKUP($A149,RESISTABLE[],3,FALSE)","v":0},{"$f":"VLOOKUP($A149,RESISTABLE[],5,FALSE)","v":0},null,{"$f":"VLOOKUP($A149,RESISTABLE[],7,FALSE)","v":0}]
[146,{"$f":"VLOOKUP($A150,RESISTABLE[],9,FALSE)","v":0},0,{"$f":"VLOOKUP($A150,RESISTABLE[],2,FALSE)","v":"4.7 Ω"},"1/2 W MFR",null,{"$f":"VLOOKUP($A150,RESISTABLE[],3,FALSE)","v":0},{"$f":"VLOOKUP($A150,RESISTABLE[],5,FALSE)","v":0},null,{"$f":"VLOOKUP($A150,RESISTABLE[],7,FALSE)","v":0}]
[147,{"$f":"VLOOKUP($A151,RESISTABLE[],9,FALSE)","v":0},0,{"$f":"VLOOKUP($A151,RESISTABLE[],2,FALSE)","v":"5.6 Ω"},"1/2 W MFR",null,{"$f":"VLOOKUP($A151,RESISTABLE[],3,FALSE)","v":0},{"$f":"VLOOKUP($A151,RESISTABLE[],5,FALSE)","v":0},null,{"$f":"VLOOKUP($A151,RESISTABLE[],7,FALSE)","v":0}]
[148,{"$f":"VLOOKUP($A152,RESISTABLE[],9,FALSE)","v":0},0,{"$f":"VLOOKUP($A152,RESISTABLE[],2,FALSE)","v":"6.8 Ω"},"1/2 W MFR",null,{"$f":"VLOOKUP($A152,RESISTABLE[],3,FALSE)","v":0},{"$f":"VLOOKUP($A152,RESISTABLE[],5,FALSE)","v":0},null,{"$f":"VLOOKUP($A152,RESISTABLE[],7,FALSE)","v":0}]
[149,{"$f":"VLOOKUP($A153,RESISTABLE[],9,FALSE)","v":0},0,{"$f":"VLOOKUP($A153,RESISTABLE[],2,FALSE)","v":"8.2 Ω"},"1/2 W MFR",null,{"$f":"VLOOKUP($A153,RESISTABLE[],3,FALSE)","v":0},{"$f":"VLOOKUP($A153,RESISTABLE[],5,FALSE)","v":0},null,{"$f":"VLOOKUP($A153,RESISTABLE[],7,FALSE)","v":0}]
[150,{"$f":"VLOOKUP($A154,RESISTABLE[],9,FALSE)","v":0},0,{"$f":"VLOOKUP($A154,RESISTABLE[],2,FALSE)","v":"10 Ω"},"1/2 W MFR",null,{"$f":"VLOOKUP($A154,RESISTABLE[],3,FALSE)","v":0},{"$f":"VLOOKUP($A154,RESISTABLE[],5,FALSE)","v":0},null,{"$f":"VLOOKUP($A154,RESISTABLE[],7,FALSE)","v":0}]
[151,{"$f":"VLOOKUP($A155,RESISTABLE[],9,FALSE)","v":0},0,{"$f":"VLOOKUP($A155,RESISTABLE[],2,FALSE)","v":"12 Ω"},"1/2 W MFR",null,{"$f":"VLOOKUP($A155,RESISTABLE[],3,FALSE)","v":0},{"$f":"VLOOKUP($A155,RESISTABLE[],5,FALSE)","v":0},null,{"$f":"VLOOKUP($A155,RESISTABLE[],7,FALSE)","v":0}]
[152,{"$f":"VLOOKUP($A156,RESISTABLE[],9,FALSE)","v":0},0,{"$f":"VLOOKUP($A156,RESISTABLE[],2,FALSE)","v":"15 Ω"},"1/2 W MFR",null,{"$f":"VLOOKUP($A156,RESISTABLE[],3,FALSE)","v":0},{"$f":"VLOOKUP($A156,RESISTABLE[],5,FALSE)","v":0},null,{"$f":"VLOOKUP($A156,RESISTABLE[],7,FALSE)","v":0}]
[153,{"$f":"VLOOKUP($A157,RESISTABLE[],9,FALSE)","v":0},0,{"$f":"VLOOKUP($A157,RESISTABLE[],2,FALSE)","v":"18 Ω"},"1/2 W MFR",null,{"$f":"VLOOKUP($A157,RESISTABLE[],3,FALSE)","v":0},{"$f":"VLOOKUP($A157,RESISTABLE[],5,FALSE)","v":0},null,{"$f":"VLOOKUP($A157,RESISTABLE[],7,FALSE)","v":0}]
[154,{"$f":"VLOOKUP($A158,RESISTABLE[],9,FALSE)","v":0},0,{"$f":"VLOOKUP($A158,RESISTABLE[],2,FALSE)","v":"22 Ω"},"1/2 W MFR",null,{"$f":"VLOOKUP($A158,RESISTABLE[],3,FALSE)","v":0},{"$f":"VLOOKUP($A158,RESISTABLE[],5,FALSE)","v":0},null,{"$f":"VLOOKUP($A158,RESISTABLE[],7,FALSE)","v":0}]
[155,{"$f":"VLOOKUP($A159,RESISTABLE[],9,FALSE)","v":0},0,{"$f":"VLOOKUP($A159,RESISTABLE[],2,FALSE)","v":"27 Ω"},"1/2 W MFR",null,{"$f":"VLOOKUP($A159,RESISTABLE[],3,FALSE)","v":0},{"$f":"VLOOKUP($A159,RESISTABLE[],5,FALSE)","v":0},null,{"$f":"VLOOKUP($A159,RESISTABLE[],7,FALSE)","v":0}]
[156,{"$f":"VLOOKUP($A160,RESISTABLE[],9,FALSE)","v":0},0,{"$f":"VLOOKUP($A160,RESISTABLE[],2,FALSE)","v":"33 Ω"},"1/2 W MFR",null,{"$f":"VLOOKUP($A160,RESISTABLE[],3,FALSE)","v":0},{"$f":"VLOOKUP($A160,RESISTABLE[],5,FALSE)","v":0},null,{"$f":"VLOOKUP($A160,RESISTABLE[],7,FALSE)","v":0}]
[157,{"$f":"VLOOKUP($A161,RESISTABLE[],9,FALSE)","v":0},0,{"$f":"VLOOKUP($A161,RESISTABLE[],2,FALSE)","v":"39 Ω"},"1/2 W MFR",null,{"$f":"VLOOKUP($A161,RESISTABLE[],3,FALSE)","v":0},{"$f":"VLOOKUP($A161,RESISTABLE[],5,FALSE)","v":0},null,{"$f":"VLOOKUP($A161,RESISTABLE[],7,FALSE)","v":0}]
[158,{"$f":"VLOOKUP($A162,RESISTABLE[],9,FALSE)","v":0},0,{"$f":"VLOOKUP($A162,RESISTABLE[],2,FALSE)","v":"47 Ω"},"1/2 W MFR",null,{"$f":"VLOOKUP($A162,RESISTABLE[],3,FALSE)","v":0},{"$f":"VLOOKUP($A162,RESISTABLE[],5,FALSE)","v":0},null,{"$f":"VLOOKUP($A162,RESISTABLE[],7,FALSE)","v":0}]
[159,{"$f":"VLOOKUP($A163,RESISTABLE[],9,FALSE)","v":0},0,{"$f":"VLOOKUP($A163,RESISTABLE[],2,FALSE)","v":"56 Ω"},"1/2 W MFR",null,{"$f":"VLOOKUP($A163,RESISTABLE[],3,FALSE)","v":0},{"$f":"VLOOKUP($A163,RESISTABLE[],5,FALSE)","v":0},null,{"$f":"VLOOKUP($A163,RESISTABLE[],7,FALSE)","v":0}]
[160,{"$f":"VLOOKUP($A164,RESISTABLE[],9,FALSE)","v":0},0,{"$f":"VLOOKUP($A164,RESISTABLE[],2,FALSE)","v":"68 Ω"},"1/2 W MFR",null,{"$f":"VLOOKUP($A164,RESISTABLE[],3,FALSE)","v":0},{"$f":"VLOOKUP($A164,RESISTABLE[],5,FALSE)","v":0},null,{"$f":"VLOOKUP($A164,RESISTABLE[],7,FALSE)","v":0}]
[161,{"$f":"VLOOKUP($A165,RESISTABLE[],9,FALSE)","v":0},0,{"$f":"VLOOKUP($A165,RESISTABLE[],2,FALSE)","v":"82 Ω"},"1/2 W MFR",null,{"$f":"VLOOKUP($A165,RESISTABLE[],3,FALSE)","v":0},{"$f":"VLOOKUP($A165,RESISTABLE[],5,FALSE)","v":0},null,{"$f":"VLOOKUP($A165,RESISTABLE[],7,FALSE)","v":0}]
[162,{"$f":"VLOOKUP($A166,RESISTABLE[],9,FALSE)","v":0},0,{"$f":"VLOOKUP($A166,RESISTABLE[],2,FALSE)","v":"100 Ω"},"1/2 W MFR",null,{"$f":"VLOOKUP($A166,RESISTABLE[],3,FALSE)","v":0},{"$f":"VLOOKUP($A166,RESISTABLE[],5,FALSE)","v":0},null,{"$f":"VLOOKUP($A166,RESISTABLE[],7,FALSE)","v":0}]
[163,{"$f":"VLOOKUP($A167,RESISTABLE[],9,FALSE)","v":0},0,{"$f":"VLOOKUP($A167,RESISTABLE[],2,FALSE)","v":"120 Ω"},"1/2 W MFR",null,{"$f":"VLOOKUP($A167,RESISTABLE[],3,FALSE)","v":0},{"$f":"VLOOKUP($A167,RESISTABLE[],5,FALSE)","v":0},null,{"$f":"VLOOKUP($A167,RESISTABLE[],7,FALSE)","v":0}]
[164,{"$f":"VLOOKUP($A168,RESISTABLE[],9,FALSE)","v":0},0,{"$f":"VLOOKUP($A168,RESISTABLE[],2,FALSE)","v":"150 Ω"},"1/2 W MFR",null,{"$f":"VLOOKUP($A168,RESISTABLE[],3,FALSE)","v":0},{"$f":"VLOOKUP($A168,RESISTABLE[],5,FALSE)","v":0},null,{"$f":"VLOOKUP($A168,RESISTABLE[],7,FALSE)","v":0}]
[165,{"$f":"VLOOKUP($A169,RESISTABLE[],9,FALSE)","v":0},0,{"$f":"VLOOKUP($A169,RESISTABLE[],2,FALSE)","v":"180 Ω"},"1/2 W MFR",null,{"$f":"VLOOKUP($A169,RESISTABLE[],3,FALSE)","v":0},{"$f":"VLOOKUP($A169,RESISTABLE[],5,FALSE)","v":0},null,{"$f":"VLOOKUP($A169,RESISTABLE[],7,FALSE)","v":0}]
[166,{"$f":"VLOOKUP($A170,RESISTABLE[],9,FALSE)","v":0},0,{"$f":"VLOOKUP($A170,RESISTABLE[],2,FALSE)","v":"220 Ω"},"1/2 W MFR",null,{"$f":"VLOOKUP($A170,RESISTABLE[],3,FALSE)","v":0},{"$f":"VLOOKUP($A170,RESISTABLE[],5,FALSE)","v":0},null,{"$f":"VLOOKUP($A170,RESISTABLE[],7,FALSE)","v":0}]
[167,{"$f":"VLOOKUP($A171,RESISTABLE[],9,FALSE)","v":0},0,{"$f":"VLOOKUP($A171,RESISTABLE[],2,FALSE)","v":"270 Ω"},"1/2 W MFR",null,{"$f":"VLOOKUP($A171,RESISTABLE[],3,FALSE)","v":0},{"$f":"VLOOKUP($A171,RESISTABLE[],5,FALSE)","v":0},null,{"$f":"VLOOKUP($A171,RESISTABLE[],7,FALSE)","v":0}]
[168,{"$f":"VLOOKUP($A172,RESISTABLE[],9,FALSE)","v":0},0,{"$f":"VLOOKUP($A172,RESISTABLE[],2,FALSE)","v":"330 Ω"},"1/2 W MFR",null,{"$f":"VLOOKUP($A172,RESISTABLE[],3,FALSE)","v":0},{"$f":"VLOOKUP($A172,RESISTABLE[],5,FALSE)","v":0},null,{"$f":"VLOOKUP($A172,RESISTABLE[],7,FALSE)","v":0}]
[169,{"$f":"VLOOKUP($A173,RESISTABLE[],9,FALSE)","v":0},0,{"$f":"VLOOKUP($A173,RESISTABLE[],2,FALSE)","v":"390 Ω"},"1/2 W MFR",null,{"$f":"VLOOKUP($A173,RESISTABLE[],3,FALSE)","v":0},{"$f":"VLOOKUP($A173,RESISTABLE[],5,FALSE)","v":0},null,{"$f":"VLOOKUP($A173,RESISTABLE[],7,FALSE)","v":0}]
[170,{"$f":"VLOOKUP($A174,RESISTABLE[],9,FALSE)","v":0},0,{"$f":"VLOOKUP($A174,RESISTABLE[],2,FALSE)","v":"470 Ω"},"1/2 W MFR",null,{"$f":"VLOOKUP($A174,RESISTABLE[],3,FALSE)","v":0},{"$f":"VLOOKUP($A174,RESISTABLE[],5,FALSE)","v":0},null,{"$f":"VLOOKUP($A174,RESISTABLE[],7,FALSE)","v":0}]
[171,{"$f":"VLOOKUP($A175,RESISTABLE[],9,FALSE)","v":0},0,{"$f":"VLOOKUP($A175,RESISTABLE[],2,FALSE)","v":"560 Ω"},"1/2 W MFR",null,{"$f":"VLOOKUP($A175,RESISTABLE[],3,FALSE)","v":0},{"$f":"VLOOKUP($A175,RESISTABLE[],5,FALSE)","v":0},null,{"$f":"VLOOKUP($A175,RESISTABLE[],7,FALSE)","v":0}]
[172,{"$f":"VLOOKUP($A176,RESISTABLE[],9,FALSE)","v":0},0,{"$f":"VLOOKUP($A176,RESISTABLE[],2,FALSE)","v":"680 Ω"},"1/2 W MFR",null,{"$f":"VLOOKUP($A176,RESISTABLE[],3,FALSE)","v":0},{"$f":"VLOOKUP($A176,RESISTABLE[],5,FALSE)","v":0},null,{"$f":"VLOOKUP($A176,RESISTABLE[],7,FALSE)","v":0}]
[173,{"$f":"VLOOKUP($A177,RESISTABLE[],9,FALSE)","v":0},0,{"$f":"VLOOKUP($A177,RESISTABLE[],2,FALSE)","v":"820 Ω"},"1/2 W MFR",null,{"$f":"VLOOKUP($A177,RESISTABLE[],3,FALSE)","v":0},{"$f":"VLOOKUP($A177,RESISTABLE[],5,FALSE)","v":0},null,{"$f":"VLOOKUP($A177,RESISTABLE[],7,FALSE)","v":0}]
[174,{"$f":"VLOOKUP($A178,RESISTABLE[],9,FALSE)","v":0},0,{"$f":"VLOOKUP($A178,RESISTABLE[],2,FALSE)","v":"1K Ω"},"1/2 W MFR",null,{"$f":"VLOOKUP($A178,RESISTABLE[],3,FALSE)","v":0},{"$f":"VLOOKUP($A178,RESISTABLE[],5,FALSE)","v":0},null,{"$f":"VLOOKUP($A178,RESISTABLE[],7,FALSE)","v":0}]
[175,{"$f":"VLOOKUP($A179,RESISTABLE[],9,FALSE)","v":0},0,{"$f":"VLOOKUP($A179,RESISTABLE[],2,FALSE)","v":"1.2K Ω"},"1/2 W MFR",null,{"$f":"VLOOKUP($A179,RESISTABLE[],3,FALSE)","v":0},{"$f":"VLOOKUP($A179,RESISTABLE[],5,FALSE)","v":0},null,{"$f":"VLOOKUP($A179,RESISTABLE[],7,FALSE)","v":0}]
[176,{"$f":"VLOOKUP($A180,RESISTABLE[],9,FALSE)","v":0},0,{"$f":"VLOOKUP($A180,RESISTABLE[],2,FALSE)","v":"1.5K Ω"},"1/2 W MFR",null,{"$f":"VLOOKUP($A180,RESISTABLE[],3,FALSE)","v":0},{"$f":"VLOOKUP($A180,RESISTABLE[],5,FALSE)","v":0},null,{"$f":"VLOOKUP($A180,RESISTABLE[],7,FALSE)","v":0}]
[177,{"$f":"VLOOKUP($A181,RESISTABLE[],9,FALSE)","v":0},0,{"$f":"VLOOKUP($A181,RESISTABLE[],2,FALSE)","v":"1.8K Ω"},"1/2 W MFR",null,{"$f":"VLOOKUP($A181,RESISTABLE[],3,FALSE)","v":0},{"$f":"VLOOKUP($A181,RESISTABLE[],5,FALSE)","v":0},null,{"$f":"VLOOKUP($A181,RESISTABLE[],7,FALSE)","v":0}]
[178,{"$f":"VLOOKUP($A182,RESISTABLE[],9,FALSE)","v":0},0,{"$f":"VLOOKUP($A182,RESISTABLE[],2,FALSE)","v":"2.2K Ω"},"1/2 W MFR",null,{"$f":"VLOOKUP($A182,RESISTABLE[],3,FALSE)","v":0},{"$f":"VLOOKUP($A182,RESISTABLE[],5,FALSE)","v":0},null,{"$f":"VLOOKUP($A182,RESISTABLE[],7,FALSE)","v":0}]
[179,{"$f":"VLOOKUP($A183,RESISTABLE[],9,FALSE)","v":0},0,{"$f":"VLOOKUP($A183,RESISTABLE[],2,FALSE)","v":"2.7K Ω"},"1/2 W MFR",null,{"$f":"VLOOKUP($A183,RESISTABLE[],3,FALSE)","v":0},{"$f":"VLOOKUP($A183,RESISTABLE[],5,FALSE)","v":0},null,{"$f":"VLOOKUP($A183,RESISTABLE[],7,FALSE)","v":0}]
[180,{"$f":"VLOOKUP($A184,RESISTABLE[],9,FALSE)","v":0},0,{"$f":"VLOOKUP($A184,RESISTABLE[],2,FALSE)","v":"3.3K Ω"},"1/2 W MFR",null,{"$f":"VLOOKUP($A184,RESISTABLE[],3,FALSE)","v":0},{"$f":"VLOOKUP($A184,RESISTABLE[],5,FALSE)","v":0},null,{"$f":"VLOOKUP($A184,RESISTABLE[],7,FALSE)","v":0}]
[181,{"$f":"VLOOKUP($A185,RESISTABLE[],9,FALSE)","v":0},0,{"$f":"VLOOKUP($A185,RESISTABLE[],2,FALSE)","v":"3.9K Ω"},"1/2 W MFR",null,{"$f":"VLOOKUP($A185,RESISTABLE[],3,FALSE)","v":0},{"$f":"VLOOKUP($A185,RESISTABLE[],5,FALSE)","v":0},null,{"$f":"VLOOKUP($A185,RESISTABLE[],7,FALSE)","v":0}]
[182,{"$f":"VLOOKUP($A186,RESISTABLE[],9,FALSE)","v":0},0,{"$f":"VLOOKUP($A186,RESISTABLE[],2,FALSE)","v":"4.7K Ω"},"1/2 W MFR",null,{"$f":"VLOOKUP($A186,RESISTABLE[],3,FALSE)","v":0},{"$f":"VLOOKUP($A186,RESISTABLE[],5,FALSE)","v":0},null,{"$f":"VLOOKUP($A186,RESISTABLE[],7,FALSE)","v":0}]
[183,{"$f":"VLOOKUP($A187,RESISTABLE[],9,FALSE)","v":0},0,{"$f":"VLOOKUP($A187,RESISTABLE[],2,FALSE)","v":"5.6K Ω"},"1/2 W MFR",null,{"$f":"VLOOKUP($A187,RESISTABLE[],3,FALSE)","v":0},{"$f":"VLOOKUP($A187,RESISTABLE[],5,FALSE)","v":0},null,{"$f":"VLOOKUP($A187,RESISTABLE[],7,FALSE)","v":0}]
[184,{"$f":"VLOOKUP($A188,RESISTABLE[],9,FALSE)","v":0},0,{"$f":"VLOOKUP($A188,RESISTABLE[],2,FALSE)","v":"6.8K Ω"},"1/2 W MFR",null,{"$f":"VLOOKUP($A188,RESISTABLE[],3,FALSE)","v":0},{"$f":"VLOOKUP($A188,RESISTABLE[],5,FALSE)","v":0},null,{"$f":"VLOOKUP($A188,RESISTABLE[],7,FALSE)","v":0}]
[185,{"$f":"VLOOKUP($A189,RESISTABLE[],9,FALSE)","v":0},0,{"$f":"VLOOKUP($A189,RESISTABLE[],2,FALSE)","v":"8.2K Ω"},"1/2 W MFR",null,{"$f":"VLOOKUP($A189,RESISTABLE[],3,FALSE)","v":0},{"$f":"VLOOKUP($A189,RESISTABLE[],5,FALSE)","v":0},null,{"$f":"VLOOKUP($A189,RESISTABLE[],7,FALSE)","v":0}]
[186,{"$f":"VLOOKUP($A190,RESISTABLE[],9,FALSE)","v":0},0,{"$f":"VLOOKUP($A190,RESISTABLE[],2,FALSE)","v":"10K Ω"},"1/2 W MFR",null,{"$f":"VLOOKUP($A190,RESISTABLE[],3,FALSE)","v":0},{"$f":"VLOOKUP($A190,RESISTABLE[],5,FALSE)","v":0},null,{"$f":"VLOOKUP($A190,RESISTABLE[],7,FALSE)","v":0}]
[187,{"$f":"VLOOKUP($A191,RESISTABLE[],9,FALSE)","v":0},0,{"$f":"VLOOKUP($A191,RESISTABLE[],2,FALSE)","v":"12K Ω"},"1/2 W MFR",null,{"$f":"VLOOKUP($A191,RESISTABLE[],3,FALSE)","v":0},{"$f":"VLOOKUP($A191,RESISTABLE[],5,FALSE)","v":0},null,{"$f":"VLOOKUP($A191,RESISTABLE[],7,FALSE)","v":0}]
[188,{"$f":"VLOOKUP($A192,RESISTABLE[],9,FALSE)","v":0},0,{"$f":"VLOOKUP($A192,RESISTABLE[],2,FALSE)","v":"15K Ω"},"1/2 W MFR",null,{"$f":"VLOOKUP($A192,RESISTABLE[],3,FALSE)","v":0},{"$f":"VLOOKUP($A192,RESISTABLE[],5,FALSE)","v":0},null,{"$f":"VLOOKUP($A192,RESISTABLE[],7,FALSE)","v":0}]
[189,{"$f":"VLOOKUP($A193,RESISTABLE[],9,FALSE)","v":0},0,{"$f":"VLOOKUP($A193,RESISTABLE[],2,FALSE)","v":"18K Ω"},"1/2 W MFR",null,{"$f":"VLOOKUP($A193,RESISTABLE[],3,FALSE)","v":0},{"$f":"VLOOKUP($A193,RESISTABLE[],5,FALSE)","v":0},null,{"$f":"VLOOKUP($A193,RESISTABLE[],7,FALSE)","v":0}]
[190,{"$f":"VLOOKUP($A194,RESISTABLE[],9,FALSE)","v":0},0,{"$f":"VLOOKUP($A194,RESISTABLE[],2,FALSE)","v":"22K Ω"},"1/2 W MFR",null,{"$f":"VLOOKUP($A194,RESISTABLE[],3,FALSE)","v":0},{"$f":"VLOOKUP($A194,RESISTABLE[],5,FALSE)","v":0},null,{"$f":"VLOOKUP($A194,RESISTABLE[],7,FALSE)","v":0}]
[191,{"$f":"VLOOKUP($A195,RESISTABLE[],9,FALSE)","v":0},0,{"$f":"VLOOKUP($A195,RESISTABLE[],2,FALSE)","v":"27K Ω"},"1/2 W MFR",null,{"$f":"VLOOKUP($A195,RESISTABLE[],3,FALSE)","v":0},{"$f":"VLOOKUP($A195,RESISTABLE[],5,FALSE)","v":0},null,{"$f":"VLOOKUP($A195,RESISTABLE[],7,FALSE)","v":0}]
[192,{"$f":"VLOOKUP($A196,RESISTABLE[],9,FALSE)","v":0},0,{"$f":"VLOOKUP($A196,RESISTABLE[],2,FALSE)","v":"33K Ω"},"1/2 W MFR",null,{"$f":"VLOOKUP($A196,RESISTABLE[],3,FALSE)","v":0},{"$f":"VLOOKUP($A196,RESISTABLE[],5,FALSE)","v":0},null,{"$f":"VLOOKUP($A196,RESISTABLE[],7,FALSE)","v":0}]
[193,{"$f":"VLOOKUP($A197,RESISTABLE[],9,FALSE)","v":0},0,{"$f":"VLOOKUP($A197,RESISTABLE[],2,FALSE)","v":"39K Ω"},"1/2 W MFR",null,{"$f":"VLOOKUP($A197,RESISTABLE[],3,FALSE)","v":0},{"$f":"VLOOKUP($A197,RESISTABLE[],5,FALSE)","v":0},null,{"$f":"VLOOKUP($A197,RESISTABLE[],7,FALSE)","v":0}]
[194,{"$f":"VLOOKUP($A198,RESISTABLE[],9,FALSE)","v":0},0,{"$f":"VLOOKUP($A198,RESISTABLE[],2,FALSE)","v":"47K Ω"},"1/2 W MFR",null,{"$f":"VLOOKUP($A198,RESISTABLE[],3,FALSE)","v":0},{"$f":"VLOOKUP($A198,RESISTABLE[],5,FALSE)","v":0},null,{"$f":"VLOOKUP($A198,RESISTABLE[],7,FALSE)","v":0}]
[195,{"$f":"VLOOKUP($A199,RESISTABLE[],9,FALSE)","v":0},0,{"$f":"VLOOKUP($A199,RESISTABLE[],2,FALSE)","v":"51K Ω"},"1/2 W MFR",null,{"$f":"VLOOKUP($A199,RESISTABLE[],3,FALSE)","v":0},{"$f":"VLOOKUP($A199,RESISTABLE[],5,FALSE)","v":0},null,{"$f":"VLOOKUP($A199,RESISTABLE[],7,FALSE)","v":0}]
[196,{"$f":"VLOOKUP($A200,RESISTABLE[],9,FALSE)","v":0},0,{"$f":"VLOOKUP($A200,RESISTABLE[],2,FALSE)","v":"56K Ω"},"1/2 W MFR",null,{"$f":"VLOOKUP($A200,RESISTABLE[],3,FALSE)","v":0},{"$f":"VLOOKUP($A200,RESISTABLE[],5,FALSE)","v":0},null,{"$f":"VLOOKUP($A200,RESISTABLE[],7,FALSE)","v":0}]
[197,{"$f":"VLOOKUP($A201,RESISTABLE[],9,FALSE)","v":0},0,{"$f":"VLOOKUP($A201,RESISTABLE[],2,FALSE)","v":"68K Ω"},"1/2 W MFR",null,{"$f":"VLOOKUP($A201,RESISTABLE[],3,FALSE)","v":0},{"$f":"VLOOKUP($A201,RESISTABLE[],5,FALSE)","v":0},null,{"$f":"VLOOKUP($A201,RESISTABLE[],7,FALSE)","v":0}]
[198,{"$f":"VLOOKUP($A202,RESISTABLE[],9,FALSE)","v":0},0,{"$f":"VLOOKUP($A202,RESISTABLE[],2,FALSE)","v":"82K Ω"},"1/2 W MFR",null,{"$f":"VLOOKUP($A202,RESISTABLE[],3,FALSE)","v":0},{"$f":"VLOOKUP($A202,RESISTABLE[],5,FALSE)","v":0},null,{"$f":"VLOOKUP($A202,RESISTABLE[],7,FALSE)","v":0}]
[199,{"$f":"VLOOKUP($A203,RESISTABLE[],9,FALSE)","v":0},{"$f":"IF(B203>0,A203,0)","v":0},{"$f":"VLOOKUP($A203,RESISTABLE[],2,FALSE)","v":"100K Ω"},"1/2 W MFR",null,{"$f":"VLOOKUP($A203,RESISTABLE[],3,FALSE)","v":0},{"$f":"VLOOKUP($A203,RESISTABLE[],5,FALSE)","v":0},null,{"$f":"VLOOKUP($A203,RESISTABLE[],7,FALSE)","v":0}]
[200,{"$f":"VLOOKUP($A204,RESISTABLE[],9,FALSE)","v":0},0,{"$f":"VLOOKUP($A204,RESISTABLE[],2,FALSE)","v":"120K Ω"},"1/2 W MFR",null,{"$f":"VLOOKUP($A204,RESISTABLE[],3,FALSE)","v":0},{"$f":"VLOOKUP($A204,RESISTABLE[],5,FALSE)","v":0},null,{"$f":"VLOOKUP($A204,RESISTABLE[],7,FALSE)","v":0}]
[201,{"$f":"VLOOKUP($A205,RESISTABLE[],9,FALSE)","v":0},0,{"$f":"VLOOKUP($A205,RESISTABLE[],2,FALSE)","v":"150K Ω"},"1/2 W MFR",null,{"$f":"VLOOKUP($A205,RESISTABLE[],3,FALSE)","v":0},{"$f":"VLOOKUP($A205,RESISTABLE[],5,FALSE)","v":0},null,{"$f":"VLOOKUP($A205,RESISTABLE[],7,FALSE)","v":0}]
[202,{"$f":"VLOOKUP($A206,RESISTABLE[],9,FALSE)","v":0},0,{"$f":"VLOOKUP($A206,RESISTABLE[],2,FALSE)","v":"180K Ω"},"1/2 W MFR",null,{"$f":"VLOOKUP($A206,RESISTABLE[],3,FALSE)","v":0},{"$f":"VLOOKUP($A206,RESISTABLE[],5,FALSE)","v":0},null,{"$f":"VLOOKUP($A206,RESISTABLE[],7,FALSE)","v":0}]
[203,{"$f":"VLOOKUP($A207,RESISTABLE[],9,FALSE)","v":0},0,{"$f":"VLOOKUP($A207,RESISTABLE[],2,FALSE)","v":"220K Ω"},"1/2 W MFR",null,{"$f":"VLOOKUP($A207,RESISTABLE[],3,FALSE)","v":0},{"$f":"VLOOKUP($A207,RESISTABLE[],5,FALSE)","v":0},null,{"$f":"VLOOKUP($A207,RESISTABLE[],7,FALSE)","v":0}]
[204,{"$f":"VLOOKUP($A208,RESISTABLE[],9,FALSE)","v":0},0,{"$f":"VLOOKUP($A208,RESISTABLE[],2,FALSE)","v":"270K Ω"},"1/2 W MFR",null,{"$f":"VLOOKUP($A208,RESISTABLE[],3,FALSE)","v":0},{"$f":"VLOOKUP($A208,RESISTABLE[],5,FALSE)","v":0},null,{"$f":"VLOOKUP($A208,RESISTABLE[],7,FALSE)","v":0}]
[205,{"$f":"VLOOKUP($A209,RESISTABLE[],9,FALSE)","v":0},0,{"$f":"VLOOKUP($A209,RESISTABLE[],2,FALSE)","v":"330K Ω"},"1/2 W MFR",null,{"$f":"VLOOKUP($A209,RESISTABLE[],3,FALSE)","v":0},{"$f":"VLOOKUP($A209,RESISTABLE[],5,FALSE)","v":0},null,{"$f":"VLOOKUP($A209,RESISTABLE[],7,FALSE)","v":0}]
[206,{"$f":"VLOOKUP($A210,RESISTABLE[],9,FALSE)","v":0},0,{"$f":"VLOOKUP($A210,RESISTABLE[],2,FALSE)","v":"390K Ω"},"1/2 W MFR",null,{"$f":"VLOOKUP($A210,RESISTABLE[],3,FALSE)","v":0},{"$f":"VLOOKUP($A210,RESISTABLE[],5,FALSE)","v":0},null,{"$f":"VLOOKUP($A210,RESISTABLE[],7,FALSE)","v":0}]
[207,{"$f":"VLOOKUP($A211,RESISTABLE[],9,FALSE)","v":0},0,{"$f":"VLOOKUP($A211,RESISTABLE[],2,FALSE)","v":"470K Ω"},"1/2 W MFR",null,{"$f":"VLOOKUP($A211,RESISTABLE[],3,FALSE)","v":0},{"$f":"VLOOKUP($A211,RESISTABLE[],5,FALSE)","v":0},null,{"$f":"VLOOKUP($A211,RESISTABLE[],7,FALSE)","v":0}]
[208,{"$f":"VLOOKUP($A212,RESISTABLE[],9,FALSE)","v":0},0,{"$f":"VLOOKUP($A212,RESISTABLE[],2,FALSE)","v":"560K Ω"},"1/2 W MFR",null,{"$f":"VLOOKUP($A212,RESISTABLE[],3,FALSE)","v":0},{"$f":"VLOOKUP($A212,RESISTABLE[],5,FALSE)","v":0},null,{"$f":"VLOOKUP($A212,RESISTABLE[],7,FALSE)","v":0}]
[209,{"$f":"VLOOKUP($A213,RESISTABLE[],9,FALSE)","v":0},0,{"$f":"VLOOKUP($A213,RESISTABLE[],2,FALSE)","v":"680K Ω"},"1/2 W MFR",null,{"$f":"VLOOKUP($A213,RESISTABLE[],3,FALSE)","v":0},{"$f":"VLOOKUP($A213,RESISTABLE[],5,FALSE)","v":0},null,{"$f":"VLOOKUP($A213,RESISTABLE[],7,FALSE)","v":0}]
[210,{"$f":"VLOOKUP($A214,RESISTABLE[],9,FALSE)","v":0},0,{"$f":"VLOOKUP($A214,RESISTABLE[],2,FALSE)","v":"820K Ω"},"1/2 W MFR",null,{"$f":"VLOOKUP($A214,RESISTABLE[],3,FALSE)","v":0},{"$f":"VLOOKUP($A214,RESISTABLE[],5,FALSE)","v":0},null,{"$f":"VLOOKUP($A214,RESISTABLE[],7,FALSE)","v":0}]
[211,{"$f":"VLOOKUP($A215,RESISTABLE[],9,FALSE)","v":0},0,{"$f":"VLOOKUP($A215,RESISTABLE[],2,FALSE)","v":"1M Ω"},"1/2 W MFR",null,{"$f":"VLOOKUP($A215,RESISTABLE[],3,FALSE)","v":0},{"$f":"VLOOKUP($A215,RESISTABLE[],5,FALSE)","v":0},null,{"$f":"VLOOKUP($A215,RESISTABLE[],7,FALSE)","v":0}]
[212,{"$f":"VLOOKUP($A216,RESISTABLE[],9,FALSE)","v":0},0,{"$f":"VLOOKUP($A216,RESISTABLE[],2,FALSE)","v":"1.2M Ω"},"1/2 W MFR",null,{"$f":"VLOOKUP($A216,RESISTABLE[],3,FALSE)","v":0},{"$f":"VLOOKUP($A216,RESISTABLE[],5,FALSE)","v":0},null,{"$f":"VLOOKUP($A216,RESISTABLE[],7,FALSE)","v":0}]
[213,{"$f":"VLOOKUP($A217,RESISTABLE[],9,FALSE)","v":0},0,{"$f":"VLOOKUP($A217,RESISTABLE[],2,FALSE)","v":"2.2M Ω"},"1/2 W MFR",null,{"$f":"VLOOKUP($A217,RESISTABLE[],3,FALSE)","v":0},{"$f":"VLOOKUP($A217,RESISTABLE[],5,FALSE)","v":0},null,{"$f":"VLOOKUP($A217,RESISTABLE[],7,FALSE)","v":0}]
[214,{"$f":"VLOOKUP($A218,RESISTABLE[],9,FALSE)","v":0},0,{"$f":"VLOOKUP($A218,RESISTABLE[],2,FALSE)","v":"2.7M Ω"},"1/2 W MFR",null,{"$f":"VLOOKUP($A218,RESISTABLE[],3,FALSE)","v":0},{"$f":"VLOOKUP($A218,RESISTABLE[],5,FALSE)","v":0},null,{"$f":"VLOOKUP($A218,RESISTABLE[],7,FALSE)","v":0}]
[215,{"$f":"VLOOKUP($A219,RESISTABLE[],9,FALSE)","v":0},0,{"$f":"VLOOKUP($A219,RESISTABLE[],2,FALSE)","v":"3.3M Ω"},"1/2 W MFR",null,{"$f":"VLOOKUP($A219,RESISTABLE[],3,FALSE)","v":0},{"$f":"VLOOKUP($A219,RESISTABLE[],5,FALSE)","v":0},null,{"$f":"VLOOKUP($A219,RESISTABLE[],7,FALSE)","v":0}]
[216,{"$f":"VLOOKUP($A220,RESISTABLE[],9,FALSE)","v":0},0,{"$f":"VLOOKUP($A220,RESISTABLE[],2,FALSE)","v":"3.9M Ω"},"1/2 W MFR",null,{"$f":"VLOOKUP($A220,RESISTABLE[],3,FALSE)","v":0},{"$f":"VLOOKUP($A220,RESISTABLE[],5,FALSE)","v":0},null,{"$f":"VLOOKUP($A220,RESISTABLE[],7,FALSE)","v":0}]
[217,{"$f":"VLOOKUP($A221,RESISTABLE[],9,FALSE)","v":0},0,{"$f":"VLOOKUP($A221,RESISTABLE[],2,FALSE)","v":"4.7M Ω"},"1/2 W MFR",null,{"$f":"VLOOKUP($A221,RESISTABLE[],3,FALSE)","v":0},{"$f":"VLOOKUP($A221,RESISTABLE[],5,FALSE)","v":0},null,{"$f":"VLOOKUP($A221,RESISTABLE[],7,FALSE)","v":0}]
[218,{"$f":"VLOOKUP($A222,RESISTABLE[],9,FALSE)","v":0},0,{"$f":"VLOOKUP($A222,RESISTABLE[],2,FALSE)","v":"5.6M Ω"},"1/2 W MFR",null,{"$f":"VLOOKUP($A222,RESISTABLE[],3,FALSE)","v":0},{"$f":"VLOOKUP($A222,RESISTABLE[],5,FALSE)","v":0},null,{"$f":"VLOOKUP($A222,RESISTABLE[],7,FALSE)","v":0}]
[219,{"$f":"VLOOKUP($A223,RESISTABLE[],9,FALSE)","v":0},0,{"$f":"VLOOKUP($A223,RESISTABLE[],2,FALSE)","v":"6.8M Ω"},"1/2 W MFR",null,{"$f":"VLOOKUP($A223,RESISTABLE[],3,FALSE)","v":0},{"$f":"VLOOKUP($A223,RESISTABLE[],5,FALSE)","v":0},null,{"$f":"VLOOKUP($A223,RESISTABLE[],7,FALSE)","v":0}]
[220,{"$f":"VLOOKUP($A224,RESISTABLE[],9,FALSE)","v":0},0,{"$f":"VLOOKUP($A224,RESISTABLE[],2,FALSE)","v":"8.2M Ω"},"1/2 W MFR",null,{"$f":"VLOOKUP($A224,RESISTABLE[],3,FALSE)","v":0},{"$f":"VLOOKUP($A224,RESISTABLE[],5,FALSE)","v":0},null,{"$f":"VLOOKUP($A224,RESISTABLE[],7,FALSE)","v":0}]
[221,{"$f":"VLOOKUP($A225,RESISTABLE[],9,FALSE)","v":0},0,{"$f":"VLOOKUP($A225,RESISTABLE[],2,FALSE)","v":"10M Ω"},"1/2 W MFR",null,{"$f":"VLOOKUP($A225,RESISTABLE[],3,FALSE)","v":0},{"$f":"VLOOKUP($A225,RESISTABLE[],5,FALSE)","v":0},null,{"$f":"VLOOKUP($A225,RESISTABLE[],7,FALSE)","v":0}]
[222,{"$f":"VLOOKUP($A226,RESISTABLE[],9,FALSE)","v":0},0,{"$f":"VLOOKUP($A226,RESISTABLE[],2,FALSE)","v":"1.2M Ω"},"1 W MFR",null,{"$f":"VLOOKUP($A226,RESISTABLE[],3,FALSE)","v":0},{"$f":"VLOOKUP($A226,RESISTABLE[],5,FALSE)","v":0},null,{"$f":"VLOOKUP($A226,RESISTABLE[],7,FALSE)","v":0}]
[223,{"$f":"VLOOKUP($A227,RESISTABLE[],9,FALSE)","v":0},0,{"$f":"VLOOKUP($A227,RESISTABLE[],2,FALSE)","v":"1.5M Ω"},"1 W MFR",null,{"$f":"VLOOKUP($A227,RESISTABLE[],3,FALSE)","v":0},{"$f":"VLOOKUP($A227,RESISTABLE[],5,FALSE)","v":0},null,{"$f":"VLOOKUP($A227,RESISTABLE[],7,FALSE)","v":0}]
[224,{"$f":"VLOOKUP($A228,RESISTABLE[],9,FALSE)","v":0},0,{"$f":"VLOOKUP($A228,RESISTABLE[],2,FALSE)","v":"2.2M Ω"},"1 W MFR",null,{"$f":"VLOOKUP($A228,RESISTABLE[],3,FALSE)","v":0},{"$f":"VLOOKUP($A228,RESISTABLE[],5,FALSE)","v":0},null,{"$f":"VLOOKUP($A228,RESISTABLE[],7,FALSE)","v":0}]
[225,{"$f":"VLOOKUP($A229,RESISTABLE[],9,FALSE)","v":0},0,{"$f":"VLOOKUP($A229,RESISTABLE[],2,FALSE)","v":"3.3M Ω"},"1 W MFR",null,{"$f":"VLOOKUP($A229,RESISTABLE[],3,FALSE)","v":0},{"$f":"VLOOKUP($A229,RESISTABLE[],5,FALSE)","v":0},null,{"$f":"VLOOKUP($A229,RESISTABLE[],7,FALSE)","v":0}]
[226,{"$f":"VLOOKUP($A230,RESISTABLE[],9,FALSE)","v":0},0,{"$f":"VLOOKUP($A230,RESISTABLE[],2,FALSE)","v":"4.7M Ω"},"1 W MFR",null,{"$f":"VLOOKUP($A230,RESISTABLE[],3,FALSE)","v":0},{"$f":"VLOOKUP($A230,RESISTABLE[],5,FALSE)","v":0},null,{"$f":"VLOOKUP($A230,RESISTABLE[],7,FALSE)","v":0}]
[227,{"$f":"VLOOKUP($A231,RESISTABLE[],9,FALSE)","v":0},0,{"$f":"VLOOKUP($A231,RESISTABLE[],2,FALSE)","v":"6.8M Ω"},"2 W MFR",null,{"$f":"VLOOKUP($A231,RESISTABLE[],3,FALSE)","v":0},{"$f":"VLOOKUP($A231,RESISTABLE[],5,FALSE)","v":0},null,{"$f":"VLOOKUP($A231,RESISTABLE[],7,FALSE)","v":0}]
[228,{"$f":"VLOOKUP($A232,RESISTABLE[],9,FALSE)","v":0},0,{"$f":"VLOOKUP($A232,RESISTABLE[],2,FALSE)","v":" No Longer Available"},"1 W Metal Oxide",null,{"$f":"VLOOKUP($A232,RESISTABLE[],3,FALSE)","v":0},{"$f":"VLOOKUP($A232,RESISTABLE[],5,FALSE)","v":0},null,{"$f":"VLOOKUP($A232,RESISTABLE[],7,FALSE)","v":0}]
[229,{"$f":"VLOOKUP($A233,RESISTABLE[],9,FALSE)","v":0},0,{"$f":"VLOOKUP($A233,RESISTABLE[],2,FALSE)","v":" No Longer Available"},"1 W Metal Oxide",null,{"$f":"VLOOKUP($A233,RESISTABLE[],3,FALSE)","v":0},{"$f":"VLOOKUP($A233,RESISTABLE[],5,FALSE)","v":0},null,{"$f":"VLOOKUP($A233,RESISTABLE[],7,FALSE)","v":0}]
[230,{"$f":"VLOOKUP($A234,RESISTABLE[],9,FALSE)","v":0},0,{"$f":"VLOOKUP($A234,RESISTABLE[],2,FALSE)","v":" No Longer Available"},"1 W Metal Oxide",null,{"$f":"VLOOKUP($A234,RESISTABLE[],3,FALSE)","v":0},{"$f":"VLOOKUP($A234,RESISTABLE[],5,FALSE)","v":0},null,{"$f":"VLOOKUP($A234,RESISTABLE[],7,FALSE)","v":0}]
[231,{"$f":"VLOOKUP($A235,RESISTABLE[],9,FALSE)","v":0},0,{"$f":"VLOOKUP($A235,RESISTABLE[],2,FALSE)","v":" No Longer Available"},"1 W Metal Oxide",null,{"$f":"VLOOKUP($A235,RESISTABLE[],3,FALSE)","v":0},{"$f":"VLOOKUP($A235,RESISTABLE[],5,FALSE)","v":0},null,{"$f":"VLOOKUP($A235,RESISTABLE[],7,FALSE)","v":0}]
[232,{"$f":"VLOOKUP($A236,RESISTABLE[],9,FALSE)","v":0},0,{"$f":"VLOOKUP($A236,RESISTABLE[],2,FALSE)","v":" No Longer Available"},"1 W Metal Oxide",null,{"$f":"VLOOKUP($A236,RESISTABLE[],3,FALSE)","v":0},{"$f":"VLOOKUP($A236,RESISTABLE[],5,FALSE)","v":0},null,{"$f":"VLOOKUP($A236,RESISTABLE[],7,FALSE)","v":0}]
[233,{"$f":"VLOOKUP($A237,RESISTABLE[],9,FALSE)","v":0},0,{"$f":"VLOOKUP($A237,RESISTABLE[],2,FALSE)","v":" No Longer Available"},"1 W Metal Oxide",null,{"$f":"VLOOKUP($A237,RESISTABLE[],3,FALSE)","v":0},{"$f":"VLOOKUP($A237,RESISTABLE[],5,FALSE)","v":0},null,{"$f":"VLOOKUP($A237,RESISTABLE[],7,FALSE)","v":0}]
[234,{"$f":"VLOOKUP($A238,RESISTABLE[],9,FALSE)","v":0},0,{"$f":"VLOOKUP($A238,RESISTABLE[],2,FALSE)","v":" No Longer Available"},"1 W Metal Oxide",null,{"$f":"VLOOKUP($A238,RESISTABLE[],3,FALSE)","v":0},{"$f":"VLOOKUP($A238,RESISTABLE[],5,FALSE)","v":0},null,{"$f":"VLOOKUP($A238,RESISTABLE[],7,FALSE)","v":0}]
[235,{"$f":"VLOOKUP($A239,RESISTABLE[],9,FALSE)","v":0},0,{"$f":"VLOOKUP($A239,RESISTABLE[],2,FALSE)","v":" No Longer Available"},"1 W Metal Oxide",null,{"$f":"VLOOKUP($A239,RESISTABLE[],3,FALSE)","v":0},{"$f":"VLOOKUP($A239,RESISTABLE[],5,FALSE)","v":0},null,{"$f":"VLOOKUP($A239,RESISTABLE[],7,FALSE)","v":0}]
[236,{"$f":"VLOOKUP($A240,RESISTABLE[],9,FALSE)","v":0},0,{"$f":"VLOOKUP($A240,RESISTABLE[],2,FALSE)","v":" No Longer Available"},"1 W Metal Oxide",null,{"$f":"VLOOKUP($A240,RESISTABLE[],3,FALSE)","v":0},{"$f":"VLOOKUP($A240,RESISTABLE[],5,FALSE)","v":0},null,{"$f":"VLOOKUP($A240,RESISTABLE[],7,FALSE)","v":0}]
[237,{"$f":"VLOOKUP($A241,RESISTABLE[],9,FALSE)","v":0},0,{"$f":"VLOOKUP($A241,RESISTABLE[],2,FALSE)","v":" No Longer Available"},"1 W Metal Oxide",null,{"$f":"VLOOKUP($A241,RESISTABLE[],3,FALSE)","v":0},{"$f":"VLOOKUP($A241,RESISTABLE[],5,FALSE)","v":0},null,{"$f":"VLOOKUP($A241,RESISTABLE[],7,FALSE)","v":0}]
[238,{"$f":"VLOOKUP($A242,RESISTABLE[],9,FALSE)","v":0},0,{"$f":"VLOOKUP($A242,RESISTABLE[],2,FALSE)","v":" No Longer Available"},"1 W Metal Oxide",null,{"$f":"VLOOKUP($A242,RESISTABLE[],3,FALSE)","v":0},{"$f":"VLOOKUP($A242,RESISTABLE[],5,FALSE)","v":0},null,{"$f":"VLOOKUP($A242,RESISTABLE[],7,FALSE)","v":0}]
[239,{"$f":"VLOOKUP($A243,RESISTABLE[],9,FALSE)","v":0},0,{"$f":"VLOOKUP($A243,RESISTABLE[],2,FALSE)","v":" No Longer Available"},"1 W Metal Oxide",null,{"$f":"VLOOKUP($A243,RESISTABLE[],3,FALSE)","v":0},{"$f":"VLOOKUP($A243,RESISTABLE[],5,FALSE)","v":0},null,{"$f":"VLOOKUP($A243,RESISTABLE[],7,FALSE)","v":0}]
[240,{"$f":"VLOOKUP($A244,RESISTABLE[],9,FALSE)","v":0},0,{"$f":"VLOOKUP($A244,RESISTABLE[],2,FALSE)","v":" No Longer Available"},"1 W Metal Oxide",null,{"$f":"VLOOKUP($A244,RESISTABLE[],3,FALSE)","v":0},{"$f":"VLOOKUP($A244,RESISTABLE[],5,FALSE)","v":0},null,{"$f":"VLOOKUP($A244,RESISTABLE[],7,FALSE)","v":0}]
[241,{"$f":"VLOOKUP($A245,RESISTABLE[],9,FALSE)","v":0},0,{"$f":"VLOOKUP($A245,RESISTABLE[],2,FALSE)","v":" No Longer Available"},"1 W Metal Oxide",null,{"$f":"VLOOKUP($A245,RESISTABLE[],3,FALSE)","v":0},{"$f":"VLOOKUP($A245,RESISTABLE[],5,FALSE)","v":0},null,{"$f":"VLOOKUP($A245,RESISTABLE[],7,FALSE)","v":0}]
[242,{"$f":"VLOOKUP($A246,RESISTABLE[],9,FALSE)","v":0},0,{"$f":"VLOOKUP($A246,RESISTABLE[],2,FALSE)","v":" No Longer Available"},"1 W Metal Oxide",null,{"$f":"VLOOKUP($A246,RESISTABLE[],3,FALSE)","v":0},{"$f":"VLOOKUP($A246,RESISTABLE[],5,FALSE)","v":0},null,{"$f":"VLOOKUP($A246,RESISTABLE[],7,FALSE)","v":0}]
[243,{"$f":"VLOOKUP($A247,RESISTABLE[],9,FALSE)","v":0},0,{"$f":"VLOOKUP($A247,RESISTABLE[],2,FALSE)","v":" No Longer Available"},"1 W Metal Oxide",null,{"$f":"VLOOKUP($A247,RESISTABLE[],3,FALSE)","v":0},{"$f":"VLOOKUP($A247,RESISTABLE[],5,FALSE)","v":0},null,{"$f":"VLOOKUP($A247,RESISTABLE[],7,FALSE)","v":0}]
[244,{"$f":"VLOOKUP($A248,RESISTABLE[],9,FALSE)","v":0},0,{"$f":"VLOOKUP($A248,RESISTABLE[],2,FALSE)","v":" No Longer Available"},"1 W Metal Oxide",null,{"$f":"VLOOKUP($A248,RESISTABLE[],3,FALSE)","v":0},{"$f":"VLOOKUP($A248,RESISTABLE[],5,FALSE)","v":0},null,{"$f":"VLOOKUP($A248,RESISTABLE[],7,FALSE)","v":0}]
[245,{"$f":"VLOOKUP($A249,RESISTABLE[],9,FALSE)","v":0},0,{"$f":"VLOOKUP($A249,RESISTABLE[],2,FALSE)","v":" No Longer Available"},"1 W Metal Oxide",null,{"$f":"VLOOKUP($A249,RESISTABLE[],3,FALSE)","v":0},{"$f":"VLOOKUP($A249,RESISTABLE[],5,FALSE)","v":0},null,{"$f":"VLOOKUP($A249,RESISTABLE[],7,FALSE)","v":0}]
[246,{"$f":"VLOOKUP($A250,RESISTABLE[],9,FALSE)","v":0},0,{"$f":"VLOOKUP($A250,RESISTABLE[],2,FALSE)","v":" No Longer Available"},"1 W Metal Oxide",null,{"$f":"VLOOKUP($A250,RESISTABLE[],3,FALSE)","v":0},{"$f":"VLOOKUP($A250,RESISTABLE[],5,FALSE)","v":0},null,{"$f":"VLOOKUP($A250,RESISTABLE[],7,FALSE)","v":0}]
[247,{"$f":"VLOOKUP($A251,RESISTABLE[],9,FALSE)","v":0},0,{"$f":"VLOOKUP($A251,RESISTABLE[],2,FALSE)","v":" No Longer Available"},"1 W Metal Oxide",null,{"$f":"VLOOKUP($A251,RESISTABLE[],3,FALSE)","v":0},{"$f":"VLOOKUP($A251,RESISTABLE[],5,FALSE)","v":0},null,{"$f":"VLOOKUP($A251,RESISTABLE[],7,FALSE)","v":0}]
[248,{"$f":"VLOOKUP($A252,RESISTABLE[],9,FALSE)","v":0},0,{"$f":"VLOOKUP($A252,RESISTABLE[],2,FALSE)","v":" No Longer Available"},"1 W Metal Oxide",null,{"$f":"VLOOKUP($A252,RESISTABLE[],3,FALSE)","v":0},{"$f":"VLOOKUP($A252,RESISTABLE[],5,FALSE)","v":0},null,{"$f":"VLOOKUP($A252,RESISTABLE[],7,FALSE)","v":0}]
[249,{"$f":"VLOOKUP($A253,RESISTABLE[],9,FALSE)","v":0},0,{"$f":"VLOOKUP($A253,RESISTABLE[],2,FALSE)","v":" No Longer Available"},"1 W Metal Oxide",null,{"$f":"VLOOKUP($A253,RESISTABLE[],3,FALSE)","v":0},{"$f":"VLOOKUP($A253,RESISTABLE[],5,FALSE)","v":0},null,{"$f":"VLOOKUP($A253,RESISTABLE[],7,FALSE)","v":0}]
[250,{"$f":"VLOOKUP($A254,RESISTABLE[],9,FALSE)","v":0},0,{"$f":"VLOOKUP($A254,RESISTABLE[],2,FALSE)","v":" No Longer Available"},"1 W Metal Oxide",null,{"$f":"VLOOKUP($A254,RESISTABLE[],3,FALSE)","v":0},{"$f":"VLOOKUP($A254,RESISTABLE[],5,FALSE)","v":0},null,{"$f":"VLOOKUP($A254,RESISTABLE[],7,FALSE)","v":0}]
[251,{"$f":"VLOOKUP($A255,RESISTABLE[],9,FALSE)","v":0},0,{"$f":"VLOOKUP($A255,RESISTABLE[],2,FALSE)","v":" No Longer Available"},"1 W Metal Oxide",null,{"$f":"VLOOKUP($A255,RESISTABLE[],3,FALSE)","v":0},{"$f":"VLOOKUP($A255,RESISTABLE[],5,FALSE)","v":0},null,{"$f":"VLOOKUP($A255,RESISTABLE[],7,FALSE)","v":0}]
[252,{"$f":"VLOOKUP($A256,RESISTABLE[],9,FALSE)","v":0},0,{"$f":"VLOOKUP($A256,RESISTABLE[],2,FALSE)","v":" No Longer Available"},"1 W Metal Oxide",null,{"$f":"VLOOKUP($A256,RESISTABLE[],3,FALSE)","v":0},{"$f":"VLOOKUP($A256,RESISTABLE[],5,FALSE)","v":0},null,{"$f":"VLOOKUP($A256,RESISTABLE[],7,FALSE)","v":0}]
[253,{"$f":"VLOOKUP($A257,RESISTABLE[],9,FALSE)","v":0},0,{"$f":"VLOOKUP($A257,RESISTABLE[],2,FALSE)","v":" No Longer Available"},"1 W Metal Oxide",null,{"$f":"VLOOKUP($A257,RESISTABLE[],3,FALSE)","v":0},{"$f":"VLOOKUP($A257,RESISTABLE[],5,FALSE)","v":0},null,{"$f":"VLOOKUP($A257,RESISTABLE[],7,FALSE)","v":0}]
[254,{"$f":"VLOOKUP($A258,RESISTABLE[],9,FALSE)","v":0},0,{"$f":"VLOOKUP($A258,RESISTABLE[],2,FALSE)","v":" No Longer Available"},"1 W Metal Oxide",null,{"$f":"VLOOKUP($A258,RESISTABLE[],3,FALSE)","v":0},{"$f":"VLOOKUP($A258,RESISTABLE[],5,FALSE)","v":0},null,{"$f":"VLOOKUP($A258,RESISTABLE[],7,FALSE)","v":0}]
[255,{"$f":"VLOOKUP($A259,RESISTABLE[],9,FALSE)","v":0},0,{"$f":"VLOOKUP($A259,RESISTABLE[],2,FALSE)","v":" No Longer Available"},"1 W Metal Oxide",null,{"$f":"VLOOKUP($A259,RESISTABLE[],3,FALSE)","v":0},{"$f":"VLOOKUP($A259,RESISTABLE[],5,FALSE)","v":0},null,{"$f":"VLOOKUP($A259,RESISTABLE[],7,FALSE)","v":0}]
[256,{"$f":"VLOOKUP($A260,RESISTABLE[],9,FALSE)","v":0},0,{"$f":"VLOOKUP($A260,RESISTABLE[],2,FALSE)","v":" No Longer Available"},"1 W Metal Oxide",null,{"$f":"VLOOKUP($A260,RESISTABLE[],3,FALSE)","v":0},{"$f":"VLOOKUP($A260,RESISTABLE[],5,FALSE)","v":0},null,{"$f":"VLOOKUP($A260,RESISTABLE[],7,FALSE)","v":0}]
[257,{"$f":"VLOOKUP($A261,RESISTABLE[],9,FALSE)","v":0},0,{"$f":"VLOOKUP($A261,RESISTABLE[],2,FALSE)","v":" No Longer Available"},"1 W Metal Oxide",null,{"$f":"VLOOKUP($A261,RESISTABLE[],3,FALSE)","v":0},{"$f":"VLOOKUP($A261,RESISTABLE[],5,FALSE)","v":0},null,{"$f":"VLOOKUP($A261,RESISTABLE[],7,FALSE)","v":0}]
[258,{"$f":"VLOOKUP($A262,RESISTABLE[],9,FALSE)","v":0},0,{"$f":"VLOOKUP($A262,RESISTABLE[],2,FALSE)","v":" No Longer Available"},"1 W Metal Oxide",null,{"$f":"VLOOKUP($A262,RESISTABLE[],3,FALSE)","v":0},{"$f":"VLOOKUP($A262,RESISTABLE[],5,FALSE)","v":0},null,{"$f":"VLOOKUP($A262,RESISTABLE[],7,FALSE)","v":0}]
[259,{"$f":"VLOOKUP($A263,RESISTABLE[],9,FALSE)","v":0},0,{"$f":"VLOOKUP($A263,RESISTABLE[],2,FALSE)","v":" No Longer Available"},"1 W Metal Oxide",null,{"$f":"VLOOKUP($A263,RESISTABLE[],3,FALSE)","v":0},{"$f":"VLOOKUP($A263,RESISTABLE[],5,FALSE)","v":0},null,{"$f":"VLOOKUP($A263,RESISTABLE[],7,FALSE)","v":0}]
[260,{"$f":"VLOOKUP($A264,RESISTABLE[],9,FALSE)","v":0},0,{"$f":"VLOOKUP($A264,RESISTABLE[],2,FALSE)","v":" No Longer Available"},"1 W Metal Oxide",null,{"$f":"VLOOKUP($A264,RESISTABLE[],3,FALSE)","v":0},{"$f":"VLOOKUP($A264,RESISTABLE[],5,FALSE)","v":0},null,{"$f":"VLOOKUP($A264,RESISTABLE[],7,FALSE)","v":0}]
[261,{"$f":"VLOOKUP($A265,RESISTABLE[],9,FALSE)","v":0},0,{"$f":"VLOOKUP($A265,RESISTABLE[],2,FALSE)","v":" No Longer Available"},"1 W Metal Oxide",null,{"$f":"VLOOKUP($A265,RESISTABLE[],3,FALSE)","v":0},{"$f":"VLOOKUP($A265,RESISTABLE[],5,FALSE)","v":0},null,{"$f":"VLOOKUP($A265,RESISTABLE[],7,FALSE)","v":0}]
[262,{"$f":"VLOOKUP($A266,RESISTABLE[],9,FALSE)","v":0},0,{"$f":"VLOOKUP($A266,RESISTABLE[],2,FALSE)","v":" No Longer Available"},"1 W Metal Oxide",null,{"$f":"VLOOKUP($A266,RESISTABLE[],3,FALSE)","v":0},{"$f":"VLOOKUP($A266,RESISTABLE[],5,FALSE)","v":0},null,{"$f":"VLOOKUP($A266,RESISTABLE[],7,FALSE)","v":0}]
[263,{"$f":"VLOOKUP($A267,RESISTABLE[],9,FALSE)","v":0},{"$f":"IF(B267>0,A267,0)","v":0},{"$f":"VLOOKUP($A267,RESISTABLE[],2,FALSE)","v":" No Longer Available"},"1 W Metal Oxide",null,{"$f":"VLOOKUP($A267,RESISTABLE[],3,FALSE)","v":0},{"$f":"VLOOKUP($A267,RESISTABLE[],5,FALSE)","v":0},null,{"$f":"VLOOKUP($A267,RESISTABLE[],7,FALSE)","v":0}]
[264,{"$f":"VLOOKUP($A268,RESISTABLE[],9,FALSE)","v":0},0,{"$f":"VLOOKUP($A268,RESISTABLE[],2,FALSE)","v":" No Longer Available"},"1 W Metal Oxide",null,{"$f":"VLOOKUP($A268,RESISTABLE[],3,FALSE)","v":0},{"$f":"VLOOKUP($A268,RESISTABLE[],5,FALSE)","v":0},null,{"$f":"VLOOKUP($A268,RESISTABLE[],7,FALSE)","v":0}]
[265,{"$f":"VLOOKUP($A269,RESISTABLE[],9,FALSE)","v":0},0,{"$f":"VLOOKUP($A269,RESISTABLE[],2,FALSE)","v":" No Longer Available"},"1 W Metal Oxide",null,{"$f":"VLOOKUP($A269,RESISTABLE[],3,FALSE)","v":0},{"$f":"VLOOKUP($A269,RESISTABLE[],5,FALSE)","v":0},null,{"$f":"VLOOKUP($A269,RESISTABLE[],7,FALSE)","v":0}]
[266,{"$f":"VLOOKUP($A270,RESISTABLE[],9,FALSE)","v":0},0,{"$f":"VLOOKUP($A270,RESISTABLE[],2,FALSE)","v":" No Longer Available"},"1 W Metal Oxide",null,{"$f":"VLOOKUP($A270,RESISTABLE[],3,FALSE)","v":0},{"$f":"VLOOKUP($A270,RESISTABLE[],5,FALSE)","v":0},null,{"$f":"VLOOKUP($A270,RESISTABLE[],7,FALSE)","v":0}]
[267,{"$f":"VLOOKUP($A271,RESISTABLE[],9,FALSE)","v":0},0,{"$f":"VLOOKUP($A271,RESISTABLE[],2,FALSE)","v":" No Longer Available"},"1 W Metal Oxide",null,{"$f":"VLOOKUP($A271,RESISTABLE[],3,FALSE)","v":0},{"$f":"VLOOKUP($A271,RESISTABLE[],5,FALSE)","v":0},null,{"$f":"VLOOKUP($A271,RESISTABLE[],7,FALSE)","v":0}]
[268,{"$f":"VLOOKUP($A272,RESISTABLE[],9,FALSE)","v":0},0,{"$f":"VLOOKUP($A272,RESISTABLE[],2,FALSE)","v":" No Longer Available"},"1 W Metal Oxide",null,{"$f":"VLOOKUP($A272,RESISTABLE[],3,FALSE)","v":0},{"$f":"VLOOKUP($A272,RESISTABLE[],5,FALSE)","v":0},null,{"$f":"VLOOKUP($A272,RESISTABLE[],7,FALSE)","v":0}]
[269,{"$f":"VLOOKUP($A273,RESISTABLE[],9,FALSE)","v":0},0,{"$f":"VLOOKUP($A273,RESISTABLE[],2,FALSE)","v":" No Longer Available"},"1 W Metal Oxide",null,{"$f":"VLOOKUP($A273,RESISTABLE[],3,FALSE)","v":0},{"$f":"VLOOKUP($A273,RESISTABLE[],5,FALSE)","v":0},null,{"$f":"VLOOKUP($A273,RESISTABLE[],7,FALSE)","v":0}]
[270,{"$f":"VLOOKUP($A274,RESISTABLE[],9,FALSE)","v":0},0,{"$f":"VLOOKUP($A274,RESISTABLE[],2,FALSE)","v":" No Longer Available"},"1 W Metal Oxide",null,{"$f":"VLOOKUP($A274,RESISTABLE[],3,FALSE)","v":0},{"$f":"VLOOKUP($A274,RESISTABLE[],5,FALSE)","v":0},null,{"$f":"VLOOKUP($A274,RESISTABLE[],7,FALSE)","v":0}]
[271,{"$f":"VLOOKUP($A275,RESISTABLE[],9,FALSE)","v":0},0,{"$f":"VLOOKUP($A275,RESISTABLE[],2,FALSE)","v":" No Longer Available"},"1 W Metal Oxide",null,{"$f":"VLOOKUP($A275,RESISTABLE[],3,FALSE)","v":0},{"$f":"VLOOKUP($A275,RESISTABLE[],5,FALSE)","v":0},null,{"$f":"VLOOKUP($A275,RESISTABLE[],7,FALSE)","v":0}]
[272,{"$f":"VLOOKUP($A276,RESISTABLE[],9,FALSE)","v":0},0,{"$f":"VLOOKUP($A276,RESISTABLE[],2,FALSE)","v":" No Longer Available"},"1 W Metal Oxide",null,{"$f":"VLOOKUP($A276,RESISTABLE[],3,FALSE)","v":0},{"$f":"VLOOKUP($A276,RESISTABLE[],5,FALSE)","v":0},null,{"$f":"VLOOKUP($A276,RESISTABLE[],7,FALSE)","v":0}]
[273,{"$f":"VLOOKUP($A277,RESISTABLE[],9,FALSE)","v":0},0,{"$f":"VLOOKUP($A277,RESISTABLE[],2,FALSE)","v":" No Longer Available"},"1 W Metal Oxide",null,{"$f":"VLOOKUP($A277,RESISTABLE[],3,FALSE)","v":0},{"$f":"VLOOKUP($A277,RESISTABLE[],5,FALSE)","v":0},null,{"$f":"VLOOKUP($A277,RESISTABLE[],7,FALSE)","v":0}]
[274,{"$f":"VLOOKUP($A278,RESISTABLE[],9,FALSE)","v":0},0,{"$f":"VLOOKUP($A278,RESISTABLE[],2,FALSE)","v":" No Longer Available"},"1 W Metal Oxide",null,{"$f":"VLOOKUP($A278,RESISTABLE[],3,FALSE)","v":0},{"$f":"VLOOKUP($A278,RESISTABLE[],5,FALSE)","v":0},null,{"$f":"VLOOKUP($A278,RESISTABLE[],7,FALSE)","v":0}]
[275,{"$f":"VLOOKUP($A279,RESISTABLE[],9,FALSE)","v":0},0,{"$f":"VLOOKUP($A279,RESISTABLE[],2,FALSE)","v":" No Longer Available"},"1 W Metal Oxide",null,{"$f":"VLOOKUP($A279,RESISTABLE[],3,FALSE)","v":0},{"$f":"VLOOKUP($A279,RESISTABLE[],5,FALSE)","v":0},null,{"$f":"VLOOKUP($A279,RESISTABLE[],7,FALSE)","v":0}]
[276,{"$f":"VLOOKUP($A280,RESISTABLE[],9,FALSE)","v":0},0,{"$f":"VLOOKUP($A280,RESISTABLE[],2,FALSE)","v":" No Longer Available"},"1 W Metal Oxide",null,{"$f":"VLOOKUP($A280,RESISTABLE[],3,FALSE)","v":0},{"$f":"VLOOKUP($A280,RESISTABLE[],5,FALSE)","v":0},null,{"$f":"VLOOKUP($A280,RESISTABLE[],7,FALSE)","v":0}]
[277,{"$f":"VLOOKUP($A281,RESISTABLE[],9,FALSE)","v":0},0,{"$f":"VLOOKUP($A281,RESISTABLE[],2,FALSE)","v":" No Longer Available"},"1 W Metal Oxide",null,{"$f":"VLOOKUP($A281,RESISTABLE[],3,FALSE)","v":0},{"$f":"VLOOKUP($A281,RESISTABLE[],5,FALSE)","v":0},null,{"$f":"VLOOKUP($A281,RESISTABLE[],7,FALSE)","v":0}]
[278,{"$f":"VLOOKUP($A282,RESISTABLE[],9,FALSE)","v":0},0,{"$f":"VLOOKUP($A282,RESISTABLE[],2,FALSE)","v":" No Longer Available"},"1 W Metal Oxide",null,{"$f":"VLOOKUP($A282,RESISTABLE[],3,FALSE)","v":0},{"$f":"VLOOKUP($A282,RESISTABLE[],5,FALSE)","v":0},null,{"$f":"VLOOKUP($A282,RESISTABLE[],7,FALSE)","v":0}]
[279,{"$f":"VLOOKUP($A283,RESISTABLE[],9,FALSE)","v":0},0,{"$f":"VLOOKUP($A283,RESISTABLE[],2,FALSE)","v":" No Longer Available"},"1 W Metal Oxide",null,{"$f":"VLOOKUP($A283,RESISTABLE[],3,FALSE)","v":0},{"$f":"VLOOKUP($A283,RESISTABLE[],5,FALSE)","v":0},null,{"$f":"VLOOKUP($A283,RESISTABLE[],7,FALSE)","v":0}]
[280,{"$f":"VLOOKUP($A284,RESISTABLE[],9,FALSE)","v":0},0,{"$f":"VLOOKUP($A284,RESISTABLE[],2,FALSE)","v":" No Longer Available"},"1 W Metal Oxide",null,{"$f":"VLOOKUP($A284,RESISTABLE[],3,FALSE)","v":0},{"$f":"VLOOKUP($A284,RESISTABLE[],5,FALSE)","v":0},null,{"$f":"VLOOKUP($A284,RESISTABLE[],7,FALSE)","v":0}]
[281,{"$f":"VLOOKUP($A285,RESISTABLE[],9,FALSE)","v":0},0,{"$f":"VLOOKUP($A285,RESISTABLE[],2,FALSE)","v":" No Longer Available"},"1 W Metal Oxide",null,{"$f":"VLOOKUP($A285,RESISTABLE[],3,FALSE)","v":0},{"$f":"VLOOKUP($A285,RESISTABLE[],5,FALSE)","v":0},null,{"$f":"VLOOKUP($A285,RESISTABLE[],7,FALSE)","v":0}]
[282,{"$f":"VLOOKUP($A286,RESISTABLE[],9,FALSE)","v":0},0,{"$f":"VLOOKUP($A286,RESISTABLE[],2,FALSE)","v":" No Longer Available"},"1 W Metal Oxide",null,{"$f":"VLOOKUP($A286,RESISTABLE[],3,FALSE)","v":0},{"$f":"VLOOKUP($A286,RESISTABLE[],5,FALSE)","v":0},null,{"$f":"VLOOKUP($A286,RESISTABLE[],7,FALSE)","v":0}]
[283,{"$f":"VLOOKUP($A287,RESISTABLE[],9,FALSE)","v":0},0,{"$f":"VLOOKUP($A287,RESISTABLE[],2,FALSE)","v":" No Longer Available"},"1 W Metal Oxide",null,{"$f":"VLOOKUP($A287,RESISTABLE[],3,FALSE)","v":0},{"$f":"VLOOKUP($A287,RESISTABLE[],5,FALSE)","v":0},null,{"$f":"VLOOKUP($A287,RESISTABLE[],7,FALSE)","v":0}]
[284,{"$f":"VLOOKUP($A288,RESISTABLE[],9,FALSE)","v":0},0,{"$f":"VLOOKUP($A288,RESISTABLE[],2,FALSE)","v":" No Longer Available"},"1 W Metal Oxide",null,{"$f":"VLOOKUP($A288,RESISTABLE[],3,FALSE)","v":0},{"$f":"VLOOKUP($A288,RESISTABLE[],5,FALSE)","v":0},null,{"$f":"VLOOKUP($A288,RESISTABLE[],7,FALSE)","v":0}]
[285,{"$f":"VLOOKUP($A289,RESISTABLE[],9,FALSE)","v":0},0,{"$f":"VLOOKUP($A289,RESISTABLE[],2,FALSE)","v":" No Longer Available"},"1 W Metal Oxide",null,{"$f":"VLOOKUP($A289,RESISTABLE[],3,FALSE)","v":0},{"$f":"VLOOKUP($A289,RESISTABLE[],5,FALSE)","v":0},null,{"$f":"VLOOKUP($A289,RESISTABLE[],7,FALSE)","v":0}]
[286,{"$f":"VLOOKUP($A290,RESISTABLE[],9,FALSE)","v":0},0,{"$f":"VLOOKUP($A290,RESISTABLE[],2,FALSE)","v":" No Longer Available"},"1 W Metal Oxide",null,{"$f":"VLOOKUP($A290,RESISTABLE[],3,FALSE)","v":0},{"$f":"VLOOKUP($A290,RESISTABLE[],5,FALSE)","v":0},null,{"$f":"VLOOKUP($A290,RESISTABLE[],7,FALSE)","v":0}]
[287,{"$f":"VLOOKUP($A291,RESISTABLE[],9,FALSE)","v":0},0,{"$f":"VLOOKUP($A291,RESISTABLE[],2,FALSE)","v":" No Longer Available"},"1 W Metal Oxide",null,{"$f":"VLOOKUP($A291,RESISTABLE[],3,FALSE)","v":0},{"$f":"VLOOKUP($A291,RESISTABLE[],5,FALSE)","v":0},null,{"$f":"VLOOKUP($A291,RESISTABLE[],7,FALSE)","v":0}]
[288,{"$f":"VLOOKUP($A292,RESISTABLE[],9,FALSE)","v":0},0,{"$f":"VLOOKUP($A292,RESISTABLE[],2,FALSE)","v":" No Longer Available"},"1 W Metal Oxide",null,{"$f":"VLOOKUP($A292,RESISTABLE[],3,FALSE)","v":0},{"$f":"VLOOKUP($A292,RESISTABLE[],5,FALSE)","v":0},null,{"$f":"VLOOKUP($A292,RESISTABLE[],7,FALSE)","v":0}]
[289,{"$f":"VLOOKUP($A293,RESISTABLE[],9,FALSE)","v":0},0,{"$f":"VLOOKUP($A293,RESISTABLE[],2,FALSE)","v":" No Longer Available"},"1 W Metal Oxide",null,{"$f":"VLOOKUP($A293,RESISTABLE[],3,FALSE)","v":0},{"$f":"VLOOKUP($A293,RESISTABLE[],5,FALSE)","v":0},null,{"$f":"VLOOKUP($A293,RESISTABLE[],7,FALSE)","v":0}]
[290,{"$f":"VLOOKUP($A294,RESISTABLE[],9,FALSE)","v":0},0,{"$f":"VLOOKUP($A294,RESISTABLE[],2,FALSE)","v":" No Longer Available"},"1 W Metal Oxide",null,{"$f":"VLOOKUP($A294,RESISTABLE[],3,FALSE)","v":0},{"$f":"VLOOKUP($A294,RESISTABLE[],5,FALSE)","v":0},null,{"$f":"VLOOKUP($A294,RESISTABLE[],7,FALSE)","v":0}]
[291,{"$f":"VLOOKUP($A295,RESISTABLE[],9,FALSE)","v":0},0,{"$f":"VLOOKUP($A295,RESISTABLE[],2,FALSE)","v":" No Longer Available"},"1 W Metal Oxide",null,{"$f":"VLOOKUP($A295,RESISTABLE[],3,FALSE)","v":0},{"$f":"VLOOKUP($A295,RESISTABLE[],5,FALSE)","v":0},null,{"$f":"VLOOKUP($A295,RESISTABLE[],7,FALSE)","v":0}]
[292,{"$f":"VLOOKUP($A296,RESISTABLE[],9,FALSE)","v":0},0,{"$f":"VLOOKUP($A296,RESISTABLE[],2,FALSE)","v":" No Longer Available"},"1 W Metal Oxide",null,{"$f":"VLOOKUP($A296,RESISTABLE[],3,FALSE)","v":0},{"$f":"VLOOKUP($A296,RESISTABLE[],5,FALSE)","v":0},null,{"$f":"VLOOKUP($A296,RESISTABLE[],7,FALSE)","v":0}]
[293,{"$f":"VLOOKUP($A297,RESISTABLE[],9,FALSE)","v":0},0,{"$f":"VLOOKUP($A297,RESISTABLE[],2,FALSE)","v":" No Longer Available"},"1 W Metal Oxide",null,{"$f":"VLOOKUP($A297,RESISTABLE[],3,FALSE)","v":0},{"$f":"VLOOKUP($A297,RESISTABLE[],5,FALSE)","v":0},null,{"$f":"VLOOKUP($A297,RESISTABLE[],7,FALSE)","v":0}]
[294,{"$f":"VLOOKUP($A298,RESISTABLE[],9,FALSE)","v":0},0,{"$f":"VLOOKUP($A298,RESISTABLE[],2,FALSE)","v":" No Longer Available"},"1 W Metal Oxide",null,{"$f":"VLOOKUP($A298,RESISTABLE[],3,FALSE)","v":0},{"$f":"VLOOKUP($A298,RESISTABLE[],5,FALSE)","v":0},null,{"$f":"VLOOKUP($A298,RESISTABLE[],7,FALSE)","v":0}]
[295,{"$f":"VLOOKUP($A299,RESISTABLE[],9,FALSE)","v":0},0,{"$f":"VLOOKUP($A299,RESISTABLE[],2,FALSE)","v":" No Longer Available"},"1 W Metal Oxide",null,{"$f":"VLOOKUP($A299,RESISTABLE[],3,FALSE)","v":0},{"$f":"VLOOKUP($A299,RESISTABLE[],5,FALSE)","v":0},null,{"$f":"VLOOKUP($A299,RESISTABLE[],7,FALSE)","v":0}]
[296,{"$f":"VLOOKUP($A300,RESISTABLE[],9,FALSE)","v":0},0,{"$f":"VLOOKUP($A300,RESISTABLE[],2,FALSE)","v":" No Longer Available"},"1 W Metal Oxide",null,{"$f":"VLOOKUP($A300,RESISTABLE[],3,FALSE)","v":0},{"$f":"VLOOKUP($A300,RESISTABLE[],5,FALSE)","v":0},null,{"$f":"VLOOKUP($A300,RESISTABLE[],7,FALSE)","v":0}]
[297,{"$f":"VLOOKUP($A301,RESISTABLE[],9,FALSE)","v":0},0,{"$f":"VLOOKUP($A301,RESISTABLE[],2,FALSE)","v":"2.2 Ω"},"2 W MFR",null,{"$f":"VLOOKUP($A301,RESISTABLE[],3,FALSE)","v":0},{"$f":"VLOOKUP($A301,RESISTABLE[],5,FALSE)","v":0},null,{"$f":"VLOOKUP($A301,RESISTABLE[],7,FALSE)","v":0}]
[298,{"$f":"VLOOKUP($A302,RESISTABLE[],9,FALSE)","v":0},0,{"$f":"VLOOKUP($A302,RESISTABLE[],2,FALSE)","v":"3.3 Ω"},"2 W MFR",null,{"$f":"VLOOKUP($A302,RESISTABLE[],3,FALSE)","v":0},{"$f":"VLOOKUP($A302,RESISTABLE[],5,FALSE)","v":0},null,{"$f":"VLOOKUP($A302,RESISTABLE[],7,FALSE)","v":0}]
[299,{"$f":"VLOOKUP($A303,RESISTABLE[],9,FALSE)","v":0},0,{"$f":"VLOOKUP($A303,RESISTABLE[],2,FALSE)","v":"4.7 Ω"},"2 W MFR",null,{"$f":"VLOOKUP($A303,RESISTABLE[],3,FALSE)","v":0},{"$f":"VLOOKUP($A303,RESISTABLE[],5,FALSE)","v":0},null,{"$f":"VLOOKUP($A303,RESISTABLE[],7,FALSE)","v":0}]
[300,{"$f":"VLOOKUP($A304,RESISTABLE[],9,FALSE)","v":0},0,{"$f":"VLOOKUP($A304,RESISTABLE[],2,FALSE)","v":"5.6 Ω"},"2 W MFR",null,{"$f":"VLOOKUP($A304,RESISTABLE[],3,FALSE)","v":0},{"$f":"VLOOKUP($A304,RESISTABLE[],5,FALSE)","v":0},null,{"$f":"VLOOKUP($A304,RESISTABLE[],7,FALSE)","v":0}]
[301,{"$f":"VLOOKUP($A305,RESISTABLE[],9,FALSE)","v":0},0,{"$f":"VLOOKUP($A305,RESISTABLE[],2,FALSE)","v":"6.8 Ω"},"2 W MFR",null,{"$f":"VLOOKUP($A305,RESISTABLE[],3,FALSE)","v":0},{"$f":"VLOOKUP($A305,RESISTABLE[],5,FALSE)","v":0},null,{"$f":"VLOOKUP($A305,RESISTABLE[],7,FALSE)","v":0}]
[302,{"$f":"VLOOKUP($A306,RESISTABLE[],9,FALSE)","v":0},0,{"$f":"VLOOKUP($A306,RESISTABLE[],2,FALSE)","v":"8.2 Ω"},"2 W MFR",null,{"$f":"VLOOKUP($A306,RESISTABLE[],3,FALSE)","v":0},{"$f":"VLOOKUP($A306,RESISTABLE[],5,FALSE)","v":0},null,{"$f":"VLOOKUP($A306,RESISTABLE[],7,FALSE)","v":0}]
[303,{"$f":"VLOOKUP($A307,RESISTABLE[],9,FALSE)","v":0},0,{"$f":"VLOOKUP($A307,RESISTABLE[],2,FALSE)","v":"10 Ω"},"2 W MFR",null,{"$f":"VLOOKUP($A307,RESISTABLE[],3,FALSE)","v":0},{"$f":"VLOOKUP($A307,RESISTABLE[],5,FALSE)","v":0},null,{"$f":"VLOOKUP($A307,RESISTABLE[],7,FALSE)","v":0}]
[304,{"$f":"VLOOKUP($A308,RESISTABLE[],9,FALSE)","v":0},0,{"$f":"VLOOKUP($A308,RESISTABLE[],2,FALSE)","v":"12 Ω"},"2 W MFR",null,{"$f":"VLOOKUP($A308,RESISTABLE[],3,FALSE)","v":0},{"$f":"VLOOKUP($A308,RESISTABLE[],5,FALSE)","v":0},null,{"$f":"VLOOKUP($A308,RESISTABLE[],7,FALSE)","v":0}]
[305,{"$f":"VLOOKUP($A309,RESISTABLE[],9,FALSE)","v":0},0,{"$f":"VLOOKUP($A309,RESISTABLE[],2,FALSE)","v":"15 Ω"},"2 W MFR",null,{"$f":"VLOOKUP($A309,RESISTABLE[],3,FALSE)","v":0},{"$f":"VLOOKUP($A309,RESISTABLE[],5,FALSE)","v":0},null,{"$f":"VLOOKUP($A309,RESISTABLE[],7,FALSE)","v":0}]
[306,{"$f":"VLOOKUP($A310,RESISTABLE[],9,FALSE)","v":0},0,{"$f":"VLOOKUP($A310,RESISTABLE[],2,FALSE)","v":"18 Ω"},"2 W MFR",null,{"$f":"VLOOKUP($A310,RESISTABLE[],3,FALSE)","v":0},{"$f":"VLOOKUP($A310,RESISTABLE[],5,FALSE)","v":0},null,{"$f":"VLOOKUP($A310,RESISTABLE[],7,FALSE)","v":0}]
[307,{"$f":"VLOOKUP($A311,RESISTABLE[],9,FALSE)","v":0},0,{"$f":"VLOOKUP($A311,RESISTABLE[],2,FALSE)","v":"22 Ω"},"2 W MFR",null,{"$f":"VLOOKUP($A311,RESISTABLE[],3,FALSE)","v":0},{"$f":"VLOOKUP($A311,RESISTABLE[],5,FALSE)","v":0},null,{"$f":"VLOOKUP($A311,RESISTABLE[],7,FALSE)","v":0}]
[308,{"$f":"VLOOKUP($A312,RESISTABLE[],9,FALSE)","v":0},0,{"$f":"VLOOKUP($A312,RESISTABLE[],2,FALSE)","v":"27 Ω"},"2 W MFR",null,{"$f":"VLOOKUP($A312,RESISTABLE[],3,FALSE)","v":0},{"$f":"VLOOKUP($A312,RESISTABLE[],5,FALSE)","v":0},null,{"$f":"VLOOKUP($A312,RESISTABLE[],7,FALSE)","v":0}]
[309,{"$f":"VLOOKUP($A313,RESISTABLE[],9,FALSE)","v":0},0,{"$f":"VLOOKUP($A313,RESISTABLE[],2,FALSE)","v":"33 Ω"},"2 W MFR",null,{"$f":"VLOOKUP($A313,RESISTABLE[],3,FALSE)","v":0},{"$f":"VLOOKUP($A313,RESISTABLE[],5,FALSE)","v":0},null,{"$f":"VLOOKUP($A313,RESISTABLE[],7,FALSE)","v":0}]
[310,{"$f":"VLOOKUP($A314,RESISTABLE[],9,FALSE)","v":0},0,{"$f":"VLOOKUP($A314,RESISTABLE[],2,FALSE)","v":"39 Ω"},"2 W MFR",null,{"$f":"VLOOKUP($A314,RESISTABLE[],3,FALSE)","v":0},{"$f":"VLOOKUP($A314,RESISTABLE[],5,FALSE)","v":0},null,{"$f":"VLOOKUP($A314,RESISTABLE[],7,FALSE)","v":0}]
[311,{"$f":"VLOOKUP($A315,RESISTABLE[],9,FALSE)","v":0},0,{"$f":"VLOOKUP($A315,RESISTABLE[],2,FALSE)","v":"47 Ω"},"2 W MFR",null,{"$f":"VLOOKUP($A315,RESISTABLE[],3,FALSE)","v":0},{"$f":"VLOOKUP($A315,RESISTABLE[],5,FALSE)","v":0},null,{"$f":"VLOOKUP($A315,RESISTABLE[],7,FALSE)","v":0}]
[312,{"$f":"VLOOKUP($A316,RESISTABLE[],9,FALSE)","v":0},0,{"$f":"VLOOKUP($A316,RESISTABLE[],2,FALSE)","v":"56 Ω"},"2 W MFR",null,{"$f":"VLOOKUP($A316,RESISTABLE[],3,FALSE)","v":0},{"$f":"VLOOKUP($A316,RESISTABLE[],5,FALSE)","v":0},null,{"$f":"VLOOKUP($A316,RESISTABLE[],7,FALSE)","v":0}]
[313,{"$f":"VLOOKUP($A317,RESISTABLE[],9,FALSE)","v":0},0,{"$f":"VLOOKUP($A317,RESISTABLE[],2,FALSE)","v":"68 Ω"},"2 W MFR",null,{"$f":"VLOOKUP($A317,RESISTABLE[],3,FALSE)","v":0},{"$f":"VLOOKUP($A317,RESISTABLE[],5,FALSE)","v":0},null,{"$f":"VLOOKUP($A317,RESISTABLE[],7,FALSE)","v":0}]
[314,{"$f":"VLOOKUP($A318,RESISTABLE[],9,FALSE)","v":0},0,{"$f":"VLOOKUP($A318,RESISTABLE[],2,FALSE)","v":"82 Ω"},"2 W MFR",null,{"$f":"VLOOKUP($A318,RESISTABLE[],3,FALSE)","v":0},{"$f":"VLOOKUP($A318,RESISTABLE[],5,FALSE)","v":0},null,{"$f":"VLOOKUP($A318,RESISTABLE[],7,FALSE)","v":0}]
[315,{"$f":"VLOOKUP($A319,RESISTABLE[],9,FALSE)","v":0},0,{"$f":"VLOOKUP($A319,RESISTABLE[],2,FALSE)","v":"100 Ω"},"2 W MFR",null,{"$f":"VLOOKUP($A319,RESISTABLE[],3,FALSE)","v":0},{"$f":"VLOOKUP($A319,RESISTABLE[],5,FALSE)","v":0},null,{"$f":"VLOOKUP($A319,RESISTABLE[],7,FALSE)","v":0}]
[316,{"$f":"VLOOKUP($A320,RESISTABLE[],9,FALSE)","v":0},0,{"$f":"VLOOKUP($A320,RESISTABLE[],2,FALSE)","v":"120 Ω"},"2 W MFR",null,{"$f":"VLOOKUP($A320,RESISTABLE[],3,FALSE)","v":0},{"$f":"VLOOKUP($A320,RESISTABLE[],5,FALSE)","v":0},null,{"$f":"VLOOKUP($A320,RESISTABLE[],7,FALSE)","v":0}]
[317,{"$f":"VLOOKUP($A321,RESISTABLE[],9,FALSE)","v":0},0,{"$f":"VLOOKUP($A321,RESISTABLE[],2,FALSE)","v":"150 Ω"},"2 W MFR",null,{"$f":"VLOOKUP($A321,RESISTABLE[],3,FALSE)","v":0},{"$f":"VLOOKUP($A321,RESISTABLE[],5,FALSE)","v":0},null,{"$f":"VLOOKUP($A321,RESISTABLE[],7,FALSE)","v":0}]
[318,{"$f":"VLOOKUP($A322,RESISTABLE[],9,FALSE)","v":0},0,{"$f":"VLOOKUP($A322,RESISTABLE[],2,FALSE)","v":"180 Ω"},"2 W MFR",null,{"$f":"VLOOKUP($A322,RESISTABLE[],3,FALSE)","v":0},{"$f":"VLOOKUP($A322,RESISTABLE[],5,FALSE)","v":0},null,{"$f":"VLOOKUP($A322,RESISTABLE[],7,FALSE)","v":0}]
[319,{"$f":"VLOOKUP($A323,RESISTABLE[],9,FALSE)","v":0},0,{"$f":"VLOOKUP($A323,RESISTABLE[],2,FALSE)","v":"220 Ω"},"2 W MFR",null,{"$f":"VLOOKUP($A323,RESISTABLE[],3,FALSE)","v":0},{"$f":"VLOOKUP($A323,RESISTABLE[],5,FALSE)","v":0},null,{"$f":"VLOOKUP($A323,RESISTABLE[],7,FALSE)","v":0}]
[320,{"$f":"VLOOKUP($A324,RESISTABLE[],9,FALSE)","v":0},0,{"$f":"VLOOKUP($A324,RESISTABLE[],2,FALSE)","v":"270 Ω"},"2 W MFR",null,{"$f":"VLOOKUP($A324,RESISTABLE[],3,FALSE)","v":0},{"$f":"VLOOKUP($A324,RESISTABLE[],5,FALSE)","v":0},null,{"$f":"VLOOKUP($A324,RESISTABLE[],7,FALSE)","v":0}]
[321,{"$f":"VLOOKUP($A325,RESISTABLE[],9,FALSE)","v":0},0,{"$f":"VLOOKUP($A325,RESISTABLE[],2,FALSE)","v":"330 Ω"},"2 W MFR",null,{"$f":"VLOOKUP($A325,RESISTABLE[],3,FALSE)","v":0},{"$f":"VLOOKUP($A325,RESISTABLE[],5,FALSE)","v":0},null,{"$f":"VLOOKUP($A325,RESISTABLE[],7,FALSE)","v":0}]
[322,{"$f":"VLOOKUP($A326,RESISTABLE[],9,FALSE)","v":0},0,{"$f":"VLOOKUP($A326,RESISTABLE[],2,FALSE)","v":"390 Ω"},"2 W MFR",null,{"$f":"VLOOKUP($A326,RESISTABLE[],3,FALSE)","v":0},{"$f":"VLOOKUP($A326,RESISTABLE[],5,FALSE)","v":0},null,{"$f":"VLOOKUP($A326,RESISTABLE[],7,FALSE)","v":0}]
[323,{"$f":"VLOOKUP($A327,RESISTABLE[],9,FALSE)","v":0},0,{"$f":"VLOOKUP($A327,RESISTABLE[],2,FALSE)","v":"470 Ω"},"2 W MFR",null,{"$f":"VLOOKUP($A327,RESISTABLE[],3,FALSE)","v":0},{"$f":"VLOOKUP($A327,RESISTABLE[],5,FALSE)","v":0},null,{"$f":"VLOOKUP($A327,RESISTABLE[],7,FALSE)","v":0}]
[324,{"$f":"VLOOKUP($A328,RESISTABLE[],9,FALSE)","v":0},0,{"$f":"VLOOKUP($A328,RESISTABLE[],2,FALSE)","v":"560 Ω"},"2 W MFR",null,{"$f":"VLOOKUP($A328,RESISTABLE[],3,FALSE)","v":0},{"$f":"VLOOKUP($A328,RESISTABLE[],5,FALSE)","v":0},null,{"$f":"VLOOKUP($A328,RESISTABLE[],7,FALSE)","v":0}]
[325,{"$f":"VLOOKUP($A329,RESISTABLE[],9,FALSE)","v":0},0,{"$f":"VLOOKUP($A329,RESISTABLE[],2,FALSE)","v":"680 Ω"},"2 W MFR",null,{"$f":"VLOOKUP($A329,RESISTABLE[],3,FALSE)","v":0},{"$f":"VLOOKUP($A329,RESISTABLE[],5,FALSE)","v":0},null,{"$f":"VLOOKUP($A329,RESISTABLE[],7,FALSE)","v":0}]
[326,{"$f":"VLOOKUP($A330,RESISTABLE[],9,FALSE)","v":0},0,{"$f":"VLOOKUP($A330,RESISTABLE[],2,FALSE)","v":"820 Ω"},"2 W MFR",null,{"$f":"VLOOKUP($A330,RESISTABLE[],3,FALSE)","v":0},{"$f":"VLOOKUP($A330,RESISTABLE[],5,FALSE)","v":0},null,{"$f":"VLOOKUP($A330,RESISTABLE[],7,FALSE)","v":0}]
[327,{"$f":"VLOOKUP($A331,RESISTABLE[],9,FALSE)","v":0},{"$f":"IF(B331>0,A331,0)","v":0},{"$f":"VLOOKUP($A331,RESISTABLE[],2,FALSE)","v":"1K Ω"},"2 W MFR",null,{"$f":"VLOOKUP($A331,RESISTABLE[],3,FALSE)","v":0},{"$f":"VLOOKUP($A331,RESISTABLE[],5,FALSE)","v":0},null,{"$f":"VLOOKUP($A331,RESISTABLE[],7,FALSE)","v":0}]
[328,{"$f":"VLOOKUP($A332,RESISTABLE[],9,FALSE)","v":0},0,{"$f":"VLOOKUP($A332,RESISTABLE[],2,FALSE)","v":"1.2K Ω"},"2 W MFR",null,{"$f":"VLOOKUP($A332,RESISTABLE[],3,FALSE)","v":0},{"$f":"VLOOKUP($A332,RESISTABLE[],5,FALSE)","v":0},null,{"$f":"VLOOKUP($A332,RESISTABLE[],7,FALSE)","v":0}]
[329,{"$f":"VLOOKUP($A333,RESISTABLE[],9,FALSE)","v":0},0,{"$f":"VLOOKUP($A333,RESISTABLE[],2,FALSE)","v":"1.5K Ω"},"2 W MFR",null,{"$f":"VLOOKUP($A333,RESISTABLE[],3,FALSE)","v":0},{"$f":"VLOOKUP($A333,RESISTABLE[],5,FALSE)","v":0},null,{"$f":"VLOOKUP($A333,RESISTABLE[],7,FALSE)","v":0}]
[330,{"$f":"VLOOKUP($A334,RESISTABLE[],9,FALSE)","v":0},0,{"$f":"VLOOKUP($A334,RESISTABLE[],2,FALSE)","v":"1.8K Ω"},"2 W MFR",null,{"$f":"VLOOKUP($A334,RESISTABLE[],3,FALSE)","v":0},{"$f":"VLOOKUP($A334,RESISTABLE[],5,FALSE)","v":0},null,{"$f":"VLOOKUP($A334,RESISTABLE[],7,FALSE)","v":0}]
[331,{"$f":"VLOOKUP($A335,RESISTABLE[],9,FALSE)","v":0},0,{"$f":"VLOOKUP($A335,RESISTABLE[],2,FALSE)","v":"2.2K Ω"},"2 W MFR",null,{"$f":"VLOOKUP($A335,RESISTABLE[],3,FALSE)","v":0},{"$f":"VLOOKUP($A335,RESISTABLE[],5,FALSE)","v":0},null,{"$f":"VLOOKUP($A335,RESISTABLE[],7,FALSE)","v":0}]
[332,{"$f":"VLOOKUP($A336,RESISTABLE[],9,FALSE)","v":0},0,{"$f":"VLOOKUP($A336,RESISTABLE[],2,FALSE)","v":"2.7K Ω"},"2 W MFR",null,{"$f":"VLOOKUP($A336,RESISTABLE[],3,FALSE)","v":0},{"$f":"VLOOKUP($A336,RESISTABLE[],5,FALSE)","v":0},null,{"$f":"VLOOKUP($A336,RESISTABLE[],7,FALSE)","v":0}]
[333,{"$f":"VLOOKUP($A337,RESISTABLE[],9,FALSE)","v":0},0,{"$f":"VLOOKUP($A337,RESISTABLE[],2,FALSE)","v":"3.3K Ω"},"2 W MFR",null,{"$f":"VLOOKUP($A337,RESISTABLE[],3,FALSE)","v":0},{"$f":"VLOOKUP($A337,RESISTABLE[],5,FALSE)","v":0},null,{"$f":"VLOOKUP($A337,RESISTABLE[],7,FALSE)","v":0}]
[334,{"$f":"VLOOKUP($A338,RESISTABLE[],9,FALSE)","v":0},0,{"$f":"VLOOKUP($A338,RESISTABLE[],2,FALSE)","v":"3.9K Ω"},"2 W MFR",null,{"$f":"VLOOKUP($A338,RESISTABLE[],3,FALSE)","v":0},{"$f":"VLOOKUP($A338,RESISTABLE[],5,FALSE)","v":0},null,{"$f":"VLOOKUP($A338,RESISTABLE[],7,FALSE)","v":0}]
[335,{"$f":"VLOOKUP($A339,RESISTABLE[],9,FALSE)","v":0},0,{"$f":"VLOOKUP($A339,RESISTABLE[],2,FALSE)","v":"4.7K Ω"},"2 W MFR",null,{"$f":"VLOOKUP($A339,RESISTABLE[],3,FALSE)","v":0},{"$f":"VLOOKUP($A339,RESISTABLE[],5,FALSE)","v":0},null,{"$f":"VLOOKUP($A339,RESISTABLE[],7,FALSE)","v":0}]
[336,{"$f":"VLOOKUP($A340,RESISTABLE[],9,FALSE)","v":0},0,{"$f":"VLOOKUP($A340,RESISTABLE[],2,FALSE)","v":"5.6K Ω"},"2 W MFR",null,{"$f":"VLOOKUP($A340,RESISTABLE[],3,FALSE)","v":0},{"$f":"VLOOKUP($A340,RESISTABLE[],5,FALSE)","v":0},null,{"$f":"VLOOKUP($A340,RESISTABLE[],7,FALSE)","v":0}]
[337,{"$f":"VLOOKUP($A341,RESISTABLE[],9,FALSE)","v":0},0,{"$f":"VLOOKUP($A341,RESISTABLE[],2,FALSE)","v":"6.8K Ω"},"2 W MFR",null,{"$f":"VLOOKUP($A341,RESISTABLE[],3,FALSE)","v":0},{"$f":"VLOOKUP($A341,RESISTABLE[],5,FALSE)","v":0},null,{"$f":"VLOOKUP($A341,RESISTABLE[],7,FALSE)","v":0}]
[338,{"$f":"VLOOKUP($A342,RESISTABLE[],9,FALSE)","v":0},0,{"$f":"VLOOKUP($A342,RESISTABLE[],2,FALSE)","v":"8.2K Ω"},"2 W MFR",null,{"$f":"VLOOKUP($A342,RESISTABLE[],3,FALSE)","v":0},{"$f":"VLOOKUP($A342,RESISTABLE[],5,FALSE)","v":0},null,{"$f":"VLOOKUP($A342,RESISTABLE[],7,FALSE)","v":0}]
[339,{"$f":"VLOOKUP($A343,RESISTABLE[],9,FALSE)","v":0},0,{"$f":"VLOOKUP($A343,RESISTABLE[],2,FALSE)","v":"10K Ω"},"2 W MFR",null,{"$f":"VLOOKUP($A343,RESISTABLE[],3,FALSE)","v":0},{"$f":"VLOOKUP($A343,RESISTABLE[],5,FALSE)","v":0},null,{"$f":"VLOOKUP($A343,RESISTABLE[],7,FALSE)","v":0}]
[340,{"$f":"VLOOKUP($A344,RESISTABLE[],9,FALSE)","v":0},0,{"$f":"VLOOKUP($A344,RESISTABLE[],2,FALSE)","v":"12K Ω"},"2 W MFR",null,{"$f":"VLOOKUP($A344,RESISTABLE[],3,FALSE)","v":0},{"$f":"VLOOKUP($A344,RESISTABLE[],5,FALSE)","v":0},null,{"$f":"VLOOKUP($A344,RESISTABLE[],7,FALSE)","v":0}]
[341,{"$f":"VLOOKUP($A345,RESISTABLE[],9,FALSE)","v":0},0,{"$f":"VLOOKUP($A345,RESISTABLE[],2,FALSE)","v":"15K Ω"},"2 W MFR",null,{"$f":"VLOOKUP($A345,RESISTABLE[],3,FALSE)","v":0},{"$f":"VLOOKUP($A345,RESISTABLE[],5,FALSE)","v":0},null,{"$f":"VLOOKUP($A345,RESISTABLE[],7,FALSE)","v":0}]
[342,{"$f":"VLOOKUP($A346,RESISTABLE[],9,FALSE)","v":0},0,{"$f":"VLOOKUP($A346,RESISTABLE[],2,FALSE)","v":"18K Ω"},"2 W MFR",null,{"$f":"VLOOKUP($A346,RESISTABLE[],3,FALSE)","v":0},{"$f":"VLOOKUP($A346,RESISTABLE[],5,FALSE)","v":0},null,{"$f":"VLOOKUP($A346,RESISTABLE[],7,FALSE)","v":0}]
[343,{"$f":"VLOOKUP($A347,RESISTABLE[],9,FALSE)","v":0},0,{"$f":"VLOOKUP($A347,RESISTABLE[],2,FALSE)","v":"22K Ω"},"2 W MFR",null,{"$f":"VLOOKUP($A347,RESISTABLE[],3,FALSE)","v":0},{"$f":"VLOOKUP($A347,RESISTABLE[],5,FALSE)","v":0},null,{"$f":"VLOOKUP($A347,RESISTABLE[],7,FALSE)","v":0}]
[344,{"$f":"VLOOKUP($A348,RESISTABLE[],9,FALSE)","v":0},0,{"$f":"VLOOKUP($A348,RESISTABLE[],2,FALSE)","v":"27K Ω"},"2 W MFR",null,{"$f":"VLOOKUP($A348,RESISTABLE[],3,FALSE)","v":0},{"$f":"VLOOKUP($A348,RESISTABLE[],5,FALSE)","v":0},null,{"$f":"VLOOKUP($A348,RESISTABLE[],7,FALSE)","v":0}]
[345,{"$f":"VLOOKUP($A349,RESISTABLE[],9,FALSE)","v":0},0,{"$f":"VLOOKUP($A349,RESISTABLE[],2,FALSE)","v":"33K Ω"},"2 W MFR",null,{"$f":"VLOOKUP($A349,RESISTABLE[],3,FALSE)","v":0},{"$f":"VLOOKUP($A349,RESISTABLE[],5,FALSE)","v":0},null,{"$f":"VLOOKUP($A349,RESISTABLE[],7,FALSE)","v":0}]
[346,{"$f":"VLOOKUP($A350,RESISTABLE[],9,FALSE)","v":0},0,{"$f":"VLOOKUP($A350,RESISTABLE[],2,FALSE)","v":"39K Ω"},"2 W MFR",null,{"$f":"VLOOKUP($A350,RESISTABLE[],3,FALSE)","v":0},{"$f":"VLOOKUP($A350,RESISTABLE[],5,FALSE)","v":0},null,{"$f":"VLOOKUP($A350,RESISTABLE[],7,FALSE)","v":0}]
[347,{"$f":"VLOOKUP($A351,RESISTABLE[],9,FALSE)","v":0},0,{"$f":"VLOOKUP($A351,RESISTABLE[],2,FALSE)","v":"47K Ω"},"2 W MFR",null,{"$f":"VLOOKUP($A351,RESISTABLE[],3,FALSE)","v":0},{"$f":"VLOOKUP($A351,RESISTABLE[],5,FALSE)","v":0},null,{"$f":"VLOOKUP($A351,RESISTABLE[],7,FALSE)","v":0}]
[348,{"$f":"VLOOKUP($A352,RESISTABLE[],9,FALSE)","v":0},0,{"$f":"VLOOKUP($A352,RESISTABLE[],2,FALSE)","v":"51K Ω"},"2 W MFR",null,{"$f":"VLOOKUP($A352,RESISTABLE[],3,FALSE)","v":0},{"$f":"VLOOKUP($A352,RESISTABLE[],5,FALSE)","v":0},null,{"$f":"VLOOKUP($A352,RESISTABLE[],7,FALSE)","v":0}]
[349,{"$f":"VLOOKUP($A353,RESISTABLE[],9,FALSE)","v":0},0,{"$f":"VLOOKUP($A353,RESISTABLE[],2,FALSE)","v":"56K Ω"},"2 W MFR",null,{"$f":"VLOOKUP($A353,RESISTABLE[],3,FALSE)","v":0},{"$f":"VLOOKUP($A353,RESISTABLE[],5,FALSE)","v":0},null,{"$f":"VLOOKUP($A353,RESISTABLE[],7,FALSE)","v":0}]
[350,{"$f":"VLOOKUP($A354,RESISTABLE[],9,FALSE)","v":0},0,{"$f":"VLOOKUP($A354,RESISTABLE[],2,FALSE)","v":"68K Ω"},"2 W MFR",null,{"$f":"VLOOKUP($A354,RESISTABLE[],3,FALSE)","v":0},{"$f":"VLOOKUP($A354,RESISTABLE[],5,FALSE)","v":0},null,{"$f":"VLOOKUP($A354,RESISTABLE[],7,FALSE)","v":0}]
[351,{"$f":"VLOOKUP($A355,RESISTABLE[],9,FALSE)","v":0},0,{"$f":"VLOOKUP($A355,RESISTABLE[],2,FALSE)","v":"82K Ω"},"2 W MFR",null,{"$f":"VLOOKUP($A355,RESISTABLE[],3,FALSE)","v":0},{"$f":"VLOOKUP($A355,RESISTABLE[],5,FALSE)","v":0},null,{"$f":"VLOOKUP($A355,RESISTABLE[],7,FALSE)","v":0}]
[352,{"$f":"VLOOKUP($A356,RESISTABLE[],9,FALSE)","v":0},0,{"$f":"VLOOKUP($A356,RESISTABLE[],2,FALSE)","v":"100K Ω"},"2 W MFR",null,{"$f":"VLOOKUP($A356,RESISTABLE[],3,FALSE)","v":0},{"$f":"VLOOKUP($A356,RESISTABLE[],5,FALSE)","v":0},null,{"$f":"VLOOKUP($A356,RESISTABLE[],7,FALSE)","v":0}]
[353,{"$f":"VLOOKUP($A357,RESISTABLE[],9,FALSE)","v":0},0,{"$f":"VLOOKUP($A357,RESISTABLE[],2,FALSE)","v":"120K Ω"},"2 W MFR",null,{"$f":"VLOOKUP($A357,RESISTABLE[],3,FALSE)","v":0},{"$f":"VLOOKUP($A357,RESISTABLE[],5,FALSE)","v":0},null,{"$f":"VLOOKUP($A357,RESISTABLE[],7,FALSE)","v":0}]
[354,{"$f":"VLOOKUP($A358,RESISTABLE[],9,FALSE)","v":0},0,{"$f":"VLOOKUP($A358,RESISTABLE[],2,FALSE)","v":"150K Ω"},"2 W MFR",null,{"$f":"VLOOKUP($A358,RESISTABLE[],3,FALSE)","v":0},{"$f":"VLOOKUP($A358,RESISTABLE[],5,FALSE)","v":0},null,{"$f":"VLOOKUP($A358,RESISTABLE[],7,FALSE)","v":0}]
[355,{"$f":"VLOOKUP($A359,RESISTABLE[],9,FALSE)","v":0},0,{"$f":"VLOOKUP($A359,RESISTABLE[],2,FALSE)","v":"180K Ω"},"2 W MFR",null,{"$f":"VLOOKUP($A359,RESISTABLE[],3,FALSE)","v":0},{"$f":"VLOOKUP($A359,RESISTABLE[],5,FALSE)","v":0},null,{"$f":"VLOOKUP($A359,RESISTABLE[],7,FALSE)","v":0}]
[356,{"$f":"VLOOKUP($A360,RESISTABLE[],9,FALSE)","v":0},0,{"$f":"VLOOKUP($A360,RESISTABLE[],2,FALSE)","v":"220K Ω"},"2 W MFR",null,{"$f":"VLOOKUP($A360,RESISTABLE[],3,FALSE)","v":0},{"$f":"VLOOKUP($A360,RESISTABLE[],5,FALSE)","v":0},null,{"$f":"VLOOKUP($A360,RESISTABLE[],7,FALSE)","v":0}]
[357,{"$f":"VLOOKUP($A361,RESISTABLE[],9,FALSE)","v":0},0,{"$f":"VLOOKUP($A361,RESISTABLE[],2,FALSE)","v":"270K Ω"},"2 W MFR",null,{"$f":"VLOOKUP($A361,RESISTABLE[],3,FALSE)","v":0},{"$f":"VLOOKUP($A361,RESISTABLE[],5,FALSE)","v":0},null,{"$f":"VLOOKUP($A361,RESISTABLE[],7,FALSE)","v":0}]
[358,{"$f":"VLOOKUP($A362,RESISTABLE[],9,FALSE)","v":0},0,{"$f":"VLOOKUP($A362,RESISTABLE[],2,FALSE)","v":"330K Ω"},"2 W MFR",null,{"$f":"VLOOKUP($A362,RESISTABLE[],3,FALSE)","v":0},{"$f":"VLOOKUP($A362,RESISTABLE[],5,FALSE)","v":0},null,{"$f":"VLOOKUP($A362,RESISTABLE[],7,FALSE)","v":0}]
[359,{"$f":"VLOOKUP($A363,RESISTABLE[],9,FALSE)","v":0},0,{"$f":"VLOOKUP($A363,RESISTABLE[],2,FALSE)","v":"390K Ω"},"2 W MFR",null,{"$f":"VLOOKUP($A363,RESISTABLE[],3,FALSE)","v":0},{"$f":"VLOOKUP($A363,RESISTABLE[],5,FALSE)","v":0},null,{"$f":"VLOOKUP($A363,RESISTABLE[],7,FALSE)","v":0}]
[360,{"$f":"VLOOKUP($A364,RESISTABLE[],9,FALSE)","v":0},0,{"$f":"VLOOKUP($A364,RESISTABLE[],2,FALSE)","v":"470K Ω"},"2 W MFR",null,{"$f":"VLOOKUP($A364,RESISTABLE[],3,FALSE)","v":0},{"$f":"VLOOKUP($A364,RESISTABLE[],5,FALSE)","v":0},null,{"$f":"VLOOKUP($A364,RESISTABLE[],7,FALSE)","v":0}]
[361,{"$f":"VLOOKUP($A365,RESISTABLE[],9,FALSE)","v":0},0,{"$f":"VLOOKUP($A365,RESISTABLE[],2,FALSE)","v":"560K Ω"},"2 W MFR",null,{"$f":"VLOOKUP($A365,RESISTABLE[],3,FALSE)","v":0},{"$f":"VLOOKUP($A365,RESISTABLE[],5,FALSE)","v":0},null,{"$f":"VLOOKUP($A365,RESISTABLE[],7,FALSE)","v":0}]
[362,{"$f":"VLOOKUP($A366,RESISTABLE[],9,FALSE)","v":0},0,{"$f":"VLOOKUP($A366,RESISTABLE[],2,FALSE)","v":"680K Ω"},"2 W MFR",null,{"$f":"VLOOKUP($A366,RESISTABLE[],3,FALSE)","v":0},{"$f":"VLOOKUP($A366,RESISTABLE[],5,FALSE)","v":0},null,{"$f":"VLOOKUP($A366,RESISTABLE[],7,FALSE)","v":0}]
[363,{"$f":"VLOOKUP($A367,RESISTABLE[],9,FALSE)","v":0},0,{"$f":"VLOOKUP($A367,RESISTABLE[],2,FALSE)","v":"820K Ω"},"2 W MFR",null,{"$f":"VLOOKUP($A367,RESISTABLE[],3,FALSE)","v":0},{"$f":"VLOOKUP($A367,RESISTABLE[],5,FALSE)","v":0},null,{"$f":"VLOOKUP($A367,RESISTABLE[],7,FALSE)","v":0}]
[364,{"$f":"VLOOKUP($A368,RESISTABLE[],9,FALSE)","v":0},0,{"$f":"VLOOKUP($A368,RESISTABLE[],2,FALSE)","v":"1M Ω"},"2 W MFR",null,{"$f":"VLOOKUP($A368,RESISTABLE[],3,FALSE)","v":0},{"$f":"VLOOKUP($A368,RESISTABLE[],5,FALSE)","v":0},null,{"$f":"VLOOKUP($A368,RESISTABLE[],7,FALSE)","v":0}]
[365,{"$f":"VLOOKUP($A369,RESISTABLE[],9,FALSE)","v":0},0,{"$f":"VLOOKUP($A369,RESISTABLE[],2,FALSE)","v":"1.2M Ω"},"2 W MFR",null,{"$f":"VLOOKUP($A369,RESISTABLE[],3,FALSE)","v":0},{"$f":"VLOOKUP($A369,RESISTABLE[],5,FALSE)","v":0},null,{"$f":"VLOOKUP($A369,RESISTABLE[],7,FALSE)","v":0}]
[366,{"$f":"VLOOKUP($A370,OTHERTABLE[],7,FALSE)","v":0},0,{"$f":"VLOOKUP($A370,OTHERTABLE[],2,FALSE)","v":"Red "},"Stranded 600v 20 AWG",null,null,null,null,null,null,null,null,null,null,{"$f":"VLOOKUP($A370,OTHERTABLE[],3,FALSE)","v":0},{"$f":"VLOOKUP($A370,OTHERTABLE[],5,FALSE)","v":0}]
[367,{"$f":"VLOOKUP($A371,OTHERTABLE[],7,FALSE)","v":0},0,{"$f":"VLOOKUP($A371,OTHERTABLE[],2,FALSE)","v":"Black"},"Stranded 600v 20 AWG",null,null,null,null,null,null,null,null,null,null,{"$f":"VLOOKUP($A371,OTHERTABLE[],3,FALSE)","v":0},{"$f":"VLOOKUP($A371,OTHERTABLE[],5,FALSE)","v":0}]
[368,{"$f":"VLOOKUP($A372,OTHERTABLE[],7,FALSE)","v":0},0,{"$f":"VLOOKUP($A372,OTHERTABLE[],2,FALSE)","v":"Green"},"Stranded 600v 20 AWG",null,null,null,null,null,null,null,null,null,null,{"$f":"VLOOKUP($A372,OTHERTABLE[],3,FALSE)","v":0},{"$f":"VLOOKUP($A372,OTHERTABLE[],5,FALSE)","v":0}]
[369,{"$f":"VLOOKUP($A373,OTHERTABLE[],7,FALSE)","v":0},0,{"$f":"VLOOKUP($A373,OTHERTABLE[],2,FALSE)","v":"White"},"Stranded 600v 20 AWG",null,null,null,null,null,null,null,null,null,null,{"$f":"VLOOKUP($A373,OTHERTABLE[],3,FALSE)","v":0},{"$f":"VLOOKUP($A373,OTHERTABLE[],5,FALSE)","v":0}]
[370,{"$f":"VLOOKUP($A374,OTHERTABLE[],7,FALSE)","v":0},0,{"$f":"VLOOKUP($A374,OTHERTABLE[],2,FALSE)","v":"Brown"},"Stranded 300v 20 AWG",null,null,null,null,null,null,null,null,null,null,{"$f":"VLOOKUP($A374,OTHERTABLE[],3,FALSE)","v":0},{"$f":"VLOOKUP($A374,OTHERTABLE[],5,FALSE)","v":0}]
[371,{"$f":"VLOOKUP($A375,OTHERTABLE[],7,FALSE)","v":0},0,{"$f":"VLOOKUP($A375,OTHERTABLE[],2,FALSE)","v":"Yellow"},"Stranded 300v 20 AWG",null,null,null,null,null,null,null,null,null,null,{"$f":"VLOOKUP($A375,OTHERTABLE[],3,FALSE)","v":0},{"$f":"VLOOKUP($A375,OTHERTABLE[],5,FALSE)","v":0}]
[372,{"$f":"VLOOKUP($A376,OTHERTABLE[],7,FALSE)","v":0},0,{"$f":"VLOOKUP($A376,OTHERTABLE[],2,FALSE)","v":"Red"},"Stranded 300v 20 AWG",null,null,null,null,null,null,null,null,null,null,{"$f":"VLOOKUP($A376,OTHERTABLE[],3,FALSE)","v":0},{"$f":"VLOOKUP($A376,OTHERTABLE[],5,FALSE)","v":0}]
[373,{"$f":"VLOOKUP($A377,OTHERTABLE[],7,FALSE)","v":0},0,{"$f":"VLOOKUP($A377,OTHERTABLE[],2,FALSE)","v":"Black"},"Stranded 300v 20 AWG",null,null,null,null,null,null,null,null,null,null,{"$f":"VLOOKUP($A377,OTHERTABLE[],3,FALSE)","v":0},{"$f":"VLOOKUP($A377,OTHERTABLE[],5,FALSE)","v":0}]
[374,{"$f":"VLOOKUP($A378,OTHERTABLE[],7,FALSE)","v":0},0,{"$f":"VLOOKUP($A378,OTHERTABLE[],2,FALSE)","v":"Red 22 AWG"},"Solid 600v",null,null,null,null,null,null,null,null,null,null,{"$f":"VLOOKUP($A378,OTHERTABLE[],3,FALSE)","v":0},{"$f":"VLOOKUP($A378,OTHERTABLE[],5,FALSE)","v":0}]
[375,{"$f":"VLOOKUP($A379,OTHERTABLE[],7,FALSE)","v":0},0,{"$f":"VLOOKUP($A379,OTHERTABLE[],2,FALSE)","v":"Black 22 AWG"},"Solid 600v",null,null,null,null,null,null,null,null,null,null,{"$f":"VLOOKUP($A379,OTHERTABLE[],3,FALSE)","v":0},{"$f":"VLOOKUP($A379,OTHERTABLE[],5,FALSE)","v":0}]
[376,{"$f":"VLOOKUP($A380,OTHERTABLE[],7,FALSE)","v":0},0,{"$f":"VLOOKUP($A380,OTHERTABLE[],2,FALSE)","v":"Red 20 AWG"},"Solid 600v",null,null,null,null,null,null,null,null,null,null,{"$f":"VLOOKUP($A380,OTHERTABLE[],3,FALSE)","v":0},{"$f":"VLOOKUP($A380,OTHERTABLE[],5,FALSE)","v":0}]
[377,{"$f":"VLOOKUP($A381,OTHERTABLE[],7,FALSE)","v":0},0,{"$f":"VLOOKUP($A381,OTHERTABLE[],2,FALSE)","v":"Black 20 AWG"},"Solid 600v",null,null,null,null,null,null,null,null,null,null,{"$f":"VLOOKUP($A381,OTHERTABLE[],3,FALSE)","v":0},{"$f":"VLOOKUP($A381,OTHERTABLE[],5,FALSE)","v":0}]
[378,{"$f":"VLOOKUP($A382,OTHERTABLE[],7,FALSE)","v":0},0,{"$f":"VLOOKUP($A382,OTHERTABLE[],2,FALSE)","v":"Red 22 AWG"},"Solid 300v",null,null,null,null,null,null,null,null,null,null,{"$f":"VLOOKUP($A382,OTHERTABLE[],3,FALSE)","v":0},{"$f":"VLOOKUP($A382,OTHERTABLE[],5,FALSE)","v":0}]
[379,{"$f":"VLOOKUP($A383,OTHERTABLE[],7,FALSE)","v":0},0,{"$f":"VLOOKUP($A383,OTHERTABLE[],2,FALSE)","v":"Black 22 AWG"},"Solid 300v",null,null,null,null,null,null,null,null,null,null,{"$f":"VLOOKUP($A383,OTHERTABLE[],3,FALSE)","v":0},{"$f":"VLOOKUP($A383,OTHERTABLE[],5,FALSE)","v":0}]
[380,{"$f":"VLOOKUP($A384,OTHERTABLE[],6,FALSE)","v":0},0,{"$f":"VLOOKUP($A384,OTHERTABLE[],2,FALSE)","v":"300V Teflon 18 gauge"},"Spaghetti Tubing",null,null,null,null,null,null,{"$f":"VLOOKUP($A384,OTHERTABLE[],3,FALSE)","v":0}]
[381,{"$f":"VLOOKUP($A385,OTHERTABLE[],6,FALSE)","v":0},0,{"$f":"VLOOKUP($A385,OTHERTABLE[],2,FALSE)","v":"300V Black PVC 17 gauge"},"Spaghetti Tubing",null,null,null,null,null,null,{"$f":"VLOOKUP($A385,OTHERTABLE[],3,FALSE)","v":0}]
[382,{"$f":"VLOOKUP($A386,OTHERTABLE[],6,FALSE)","v":0},0,{"$f":"VLOOKUP($A386,OTHERTABLE[],2,FALSE)","v":"300V White PVC 16 gauge"},"Spaghetti Tubing",null,null,null,null,null,null,{"$f":"VLOOKUP($A386,OTHERTABLE[],3,FALSE)","v":0}]
[383,{"$f":"VLOOKUP($A387,OTHERTABLE[],6,FALSE)","v":0},0,{"$f":"VLOOKUP($A387,OTHERTABLE[],2,FALSE)","v":"300V Red PVC 18 gauge"},"Spaghetti Tubing",null,null,null,null,null,null,{"$f":"VLOOKUP($A387,OTHERTABLE[],3,FALSE)","v":0}]
[384,{"$f":"VLOOKUP($A388,OTHERTABLE[],7,FALSE)","v":0},0,{"$f":"VLOOKUP($A388,OTHERTABLE[],2,FALSE)","v":"0.028\" diameter"},"Dial Cord",null,null,null,null,null,null,null,null,{"$f":"VLOOKUP($A388,OTHERTABLE[],3,FALSE)","v":0},{"$f":"VLOOKUP($A388,OTHERTABLE[],5,FALSE)","v":0}]
[385,{"$f":"VLOOKUP($A389,OTHERTABLE[],7,FALSE)","v":0},0,{"$f":"VLOOKUP($A389,OTHERTABLE[],2,FALSE)","v":"0.040\" diameter"},"Dial Cord",null,null,null,null,null,null,null,null,{"$f":"VLOOKUP($A389,OTHERTABLE[],3,FALSE)","v":0},{"$f":"VLOOKUP($A389,OTHERTABLE[],5,FALSE)","v":0}]
[386,{"$f":"VLOOKUP($A390,OTHERTABLE[],7,FALSE)","v":0},0,{"$f":"VLOOKUP($A390,OTHERTABLE[],2,FALSE)","v":"0.062\" diameter"},"Dial Cord",null,null,null,null,null,null,null,null,{"$f":"VLOOKUP($A390,OTHERTABLE[],3,FALSE)","v":0},{"$f":"VLOOKUP($A390,OTHERTABLE[],5,FALSE)","v":0}]
[387,{"$f":"VLOOKUP($A391,OTHERTABLE[],7,FALSE)","v":0},0,{"$f":"VLOOKUP($A391,OTHERTABLE[],2,FALSE)","v":"Brown"},"Line Cord",null,null,{"$f":"VLOOKUP($A391,OTHERTABLE[],3,FALSE)","v":0},null,{"$f":"VLOOKUP($A391,OTHERTABLE[],5,FALSE)","v":0}]
[388,{"$f":"VLOOKUP($A392,OTHERTABLE[],7,FALSE)","v":0},0,{"$f":"VLOOKUP($A392,OTHERTABLE[],2,FALSE)","v":"Black"},"Line Cord",null,null,{"$f":"VLOOKUP($A392,OTHERTABLE[],3,FALSE)","v":0},null,{"$f":"VLOOKUP($A392,OTHERTABLE[],5,FALSE)","v":0}]
[389,{"$f":"VLOOKUP($A393,OTHERTABLE[],7,FALSE)","v":0},0,{"$f":"VLOOKUP($A393,OTHERTABLE[],2,FALSE)","v":"1N4007  1000V  1A"},"Diode",{"$f":"VLOOKUP($A393,OTHERTABLE[],3,FALSE)","v":0},{"$f":"VLOOKUP($A393,OTHERTABLE[],5,FALSE)","v":0}]
[390,{"$f":"VLOOKUP($A394,OTHERTABLE[],7,FALSE)","v":0},0,{"$f":"VLOOKUP($A394,OTHERTABLE[],2,FALSE)","v":"UF4007  1000V  1A  Fast"},"Diode",{"$f":"VLOOKUP($A394,OTHERTABLE[],3,FALSE)","v":0},{"$f":"VLOOKUP($A394,OTHERTABLE[],5,FALSE)","v":0}]
[391,{"$f":"VLOOKUP($A395,OTHERTABLE[],7,FALSE)","v":0},{"$f":"IF(B395>0,A395,0)","v":0},{"$f":"VLOOKUP($A395,OTHERTABLE[],2,FALSE)","v":"1N5408  1000V  3A"},"Diode",{"$f":"VLOOKUP($A395,OTHERTABLE[],3,FALSE)","v":0},{"$f":"VLOOKUP($A395,OTHERTABLE[],5,FALSE)","v":0}]
[392,{"$f":"VLOOKUP($A396,OTHERTABLE[],7,FALSE)","v":0},0,{"$f":"VLOOKUP($A396,OTHERTABLE[],2,FALSE)","v":"1N914"},"Diode",{"$f":"VLOOKUP($A396,OTHERTABLE[],3,FALSE)","v":0},{"$f":"VLOOKUP($A396,OTHERTABLE[],5,FALSE)","v":0}]
[393,{"$f":"VLOOKUP($A397,OTHERTABLE[],7,FALSE)","v":0},0,{"$f":"VLOOKUP($A397,OTHERTABLE[],2,FALSE)","v":"#44  6.3V Bayonet 250 mA"},"Bulb",null,null,{"$f":"VLOOKUP($A397,OTHERTABLE[],3,FALSE)","v":0}]
[394,{"$f":"VLOOKUP($A398,OTHERTABLE[],7,FALSE)","v":0},0,{"$f":"VLOOKUP($A398,OTHERTABLE[],2,FALSE)","v":"#46  6.3V Screw 250 mA"},"Bulb",null,null,{"$f":"VLOOKUP($A398,OTHERTABLE[],3,FALSE)","v":0}]
[395,{"$f":"VLOOKUP($A399,OTHERTABLE[],7,FALSE)","v":0},0,{"$f":"VLOOKUP($A399,OTHERTABLE[],2,FALSE)","v":"#47  6.3V Bayonet 150 mA"},"Bulb",null,null,{"$f":"VLOOKUP($A399,OTHERTABLE[],3,FALSE)","v":0}]
[396,{"$f":"VLOOKUP($A400,OTHERTABLE[],7,FALSE)","v":0},0,{"$f":"VLOOKUP($A400,OTHERTABLE[],2,FALSE)","v":0},"Bulb",null,null,{"$f":"VLOOKUP($A400,OTHERTABLE[],3,FALSE)","v":0}]
[397,{"$f":"VLOOKUP($A401,OTHERTABLE[],7,FALSE)","v":0},0,{"$f":"VLOOKUP($A401,OTHERTABLE[],2,FALSE)","v":"w/ Resistor"},"NE-2 Neon Bulb",null,null,null,null,{"$f":"VLOOKUP($A401,OTHERTABLE[],3,FALSE)","v":0}]
[398,{"$f":"VLOOKUP($A402,OTHERTABLE[],7,FALSE)","v":0},0,{"$f":"VLOOKUP($A402,OTHERTABLE[],2,FALSE)","v":"w/o Resistor"},"NE-2 Neon Bulb",null,null,null,null,{"$f":"VLOOKUP($A402,OTHERTABLE[],3,FALSE)","v":0}]
[399,{"$f":"VLOOKUP($A403,OTHERTABLE[],7,FALSE)","v":0},0,{"$f":"VLOOKUP($A403,OTHERTABLE[],2,FALSE)","v":"Type A"},"Bayonet Socket",null,null,null,null,{"$f":"VLOOKUP($A403,OTHERTABLE[],3,FALSE)","v":0}]
[400,{"$f":"VLOOKUP($A404,OTHERTABLE[],7,FALSE)","v":0},0,{"$f":"VLOOKUP($A404,OTHERTABLE[],2,FALSE)","v":"Type B"},"Bayonet Socket",null,null,null,null,{"$f":"VLOOKUP($A404,OTHERTABLE[],3,FALSE)","v":0}]
[401,{"$f":"VLOOKUP($A405,OTHERTABLE[],7,FALSE)","v":0},0,{"$f":"VLOOKUP($A405,OTHERTABLE[],2,FALSE)","v":"Type C"},"Bayonet Socket",null,null,null,null,{"$f":"VLOOKUP($A405,OTHERTABLE[],3,FALSE)","v":0}]
[402,{"$f":"VLOOKUP($A406,OTHERTABLE[],7,FALSE)","v":0},0,{"$f":"VLOOKUP($A406,OTHERTABLE[],2,FALSE)","v":"Type D"},"Bayonet Socket",null,null,null,null,{"$f":"VLOOKUP($A406,OTHERTABLE[],3,FALSE)","v":0}]
[403,{"$f":"VLOOKUP($A407,OTHERTABLE[],7,FALSE)","v":0},0,{"$f":"VLOOKUP($A407,OTHERTABLE[],2,FALSE)","v":"Type E"},"Bayonet Socket",null,null,null,null,{"$f":"VLOOKUP($A407,OTHERTABLE[],3,FALSE)","v":0}]
[404,{"$f":"VLOOKUP($A408,OTHERTABLE[],7,FALSE)","v":0},0,{"$f":"VLOOKUP($A408,OTHERTABLE[],2,FALSE)","v":"A - One Hole Mount"},"Terminal Strip",null,null,null,null,{"$f":"VLOOKUP($A408,OTHERTABLE[],5,FALSE)","v":0}]
[405,{"$f":"VLOOKUP($A409,OTHERTABLE[],7,FALSE)","v":0},0,{"$f":"VLOOKUP($A409,OTHERTABLE[],2,FALSE)","v":"B - 2 Terminal 2 Hole Mount"},"Terminal Strip",null,null,null,null,{"$f":"VLOOKUP($A409,OTHERTABLE[],5,FALSE)","v":0}]
[406,{"$f":"VLOOKUP($A410,OTHERTABLE[],7,FALSE)","v":0},0,{"$f":"VLOOKUP($A410,OTHERTABLE[],2,FALSE)","v":"C - 3 Terminal One Hole Mount"},"Terminal Strip",null,null,null,null,{"$f":"VLOOKUP($A410,OTHERTABLE[],5,FALSE)","v":0}]
[407,{"$f":"VLOOKUP($A411,OTHERTABLE[],7,FALSE)","v":0},0,{"$f":"VLOOKUP($A411,OTHERTABLE[],2,FALSE)","v":"D - Out of Stock"},"Terminal Strip",null,null,null,null,{"$f":"VLOOKUP($A411,OTHERTABLE[],5,FALSE)","v":0}]
[408,{"$f":"VLOOKUP($A412,OTHERTABLE[],7,FALSE)","v":0},0,{"$f":"VLOOKUP($A412,OTHERTABLE[],2,FALSE)","v":"E - Out of Stock"},"Terminal Strip",null,null,null,null,{"$f":"VLOOKUP($A412,OTHERTABLE[],5,FALSE)","v":0}]
[409,{"$f":"VLOOKUP($A413,OTHERTABLE[],7,FALSE)","v":0},0,{"$f":"VLOOKUP($A413,OTHERTABLE[],2,FALSE)","v":"A - Panel Mount"},"Fuse Holder",null,null,null,null,{"$f":"VLOOKUP($A413,OTHERTABLE[],3,FALSE)","v":0}]
[410,{"$f":"VLOOKUP($A414,OTHERTABLE[],7,FALSE)","v":0},0,{"$f":"VLOOKUP($A414,OTHERTABLE[],2,FALSE)","v":"B - Base Mount"},"Fuse Holder",null,null,null,null,{"$f":"VLOOKUP($A414,OTHERTABLE[],3,FALSE)","v":0}]
[411,{"$f":"VLOOKUP($A415,OTHERTABLE[],7,FALSE)","v":0},0,{"$f":"VLOOKUP($A415,OTHERTABLE[],2,FALSE)","v":"C - In Line"},"Fuse Holder",null,null,null,null,{"$f":"VLOOKUP($A415,OTHERTABLE[],3,FALSE)","v":0}]
[412,{"$f":"VLOOKUP($A416,OTHERTABLE[],7,FALSE)","v":0},0,{"$f":"VLOOKUP($A416,OTHERTABLE[],2,FALSE)","v":"D - In Line -Out of Stock"},"Fuse Holder",null,null,null,null,{"$f":"VLOOKUP($A416,OTHERTABLE[],3,FALSE)","v":0}]
[413,{"$f":"VLOOKUP($A417,OTHERTABLE[],7,FALSE)","v":0},0,{"$f":"VLOOKUP($A417,OTHERTABLE[],2,FALSE)","v":"E - Panel Mount"},"Fuse Holder",null,null,null,null,{"$f":"VLOOKUP($A417,OTHERTABLE[],3,FALSE)","v":0}]
[414,{"$f":"VLOOKUP($A418,OTHERTABLE[],7,FALSE)","v":0},0,{"$f":"VLOOKUP($A418,OTHERTABLE[],2,FALSE)","v":"1 Amp"},"Fuse for A, B & C",null,null,null,null,{"$f":"VLOOKUP($A418,OTHERTABLE[],3,FALSE)","v":0}]
[415,{"$f":"VLOOKUP($A419,OTHERTABLE[],7,FALSE)","v":0},0,{"$f":"VLOOKUP($A419,OTHERTABLE[],2,FALSE)","v":"2 Amps"},"Fuse for A, B & C",null,null,null,null,{"$f":"VLOOKUP($A419,OTHERTABLE[],3,FALSE)","v":0}]
[416,{"$f":"VLOOKUP($A420,OTHERTABLE[],7,FALSE)","v":0},0,{"$f":"VLOOKUP($A420,OTHERTABLE[],2,FALSE)","v":"1 Amp"},"Fuse for 5x20mm D & E",null,null,null,null,{"$f":"VLOOKUP($A420,OTHERTABLE[],3,FALSE)","v":0}]
[417,{"$f":"VLOOKUP($A421,OTHERTABLE[],7,FALSE)","v":0},0,{"$f":"VLOOKUP($A421,OTHERTABLE[],2,FALSE)","v":"1.5 Amp"},"Fuse for 5x20mm D & E",null,null,null,null,{"$f":"VLOOKUP($A421,OTHERTABLE[],3,FALSE)","v":0}]
[418,{"$f":"VLOOKUP($A422,OTHERTABLE[],7,FALSE)","v":0},0,{"$f":"VLOOKUP($A422,OTHERTABLE[],2,FALSE)","v":"2 Amps"},"Fuse for 5x20mm D & E",null,null,null,null,{"$f":"VLOOKUP($A422,OTHERTABLE[],3,FALSE)","v":0}]
[419,{"$f":"VLOOKUP($A423,OTHERTABLE[],7,FALSE)","v":0},0,{"$f":"VLOOKUP($A423,OTHERTABLE[],2,FALSE)","v":".5A"},"Mini Glass Pigtail Fuse",null,null,null,null,{"$f":"VLOOKUP($A423,OTHERTABLE[],3,FALSE)","v":0}]
[420,{"$f":"VLOOKUP($A424,OTHERTABLE[],7,FALSE)","v":0},0,{"$f":"VLOOKUP($A424,OTHERTABLE[],2,FALSE)","v":"1A"},"Mini Glass Pigtail Fuse",null,null,null,null,{"$f":"VLOOKUP($A424,OTHERTABLE[],3,FALSE)","v":0}]
[421,{"$f":"VLOOKUP($A425,OTHERTABLE[],7,FALSE)","v":0},0,{"$f":"VLOOKUP($A425,OTHERTABLE[],2,FALSE)","v":"1.5A"},"Mini Glass Pigtail Fuse",null,null,null,null,{"$f":"VLOOKUP($A425,OTHERTABLE[],3,FALSE)","v":0}]
[422,{"$f":"VLOOKUP($A426,OTHERTABLE[],7,FALSE)","v":0},0,{"$f":"VLOOKUP($A426,OTHERTABLE[],2,FALSE)","v":"2A"},"Mini Glass Pigtail Fuse",null,null,null,null,{"$f":"VLOOKUP($A426,OTHERTABLE[],3,FALSE)","v":0}]
[423,{"$f":"VLOOKUP($A427,OTHERTABLE[],7,FALSE)","v":0},0,{"$f":"VLOOKUP($A427,OTHERTABLE[],2,FALSE)","v":0},"Heat Shrink Asst.",null,null,null,null,{"$f":"VLOOKUP($A427,OTHERTABLE[],7,FALSE)","v":0}]
[424,{"$f":"VLOOKUP($A428,OTHERTABLE[],9,FALSE)","v":0},0,{"$f":"VLOOKUP($A428,OTHERTABLE[],2,FALSE)","v":0},"Heat Shrink Asst.",null,null,null,null,{"$f":"VLOOKUP($A428,OTHERTABLE[],7,FALSE)","v":0}]
[425,{"$f":"VLOOKUP($A429,OTHERTABLE[],9,FALSE)","v":0},0,{"$f":"VLOOKUP($A429,OTHERTABLE[],2,FALSE)","v":".084\" Thin Wall"},"Cut to Length",null,null,null,null,null,null,null,null,null,null,null,null,{"$f":"VLOOKUP($A429,OTHERTABLE[],7,FALSE)","v":0}]
[426,{"$f":"VLOOKUP($A430,OTHERTABLE[],9,FALSE)","v":0},0,{"$f":"VLOOKUP($A430,OTHERTABLE[],2,FALSE)","v":"1/8\" "},"Cut to Length",null,null,null,null,null,null,null,null,null,null,null,null,{"$f":"VLOOKUP($A430,OTHERTABLE[],7,FALSE)","v":0}]
[427,{"$f":"VLOOKUP($A431,OTHERTABLE[],9,FALSE)","v":0},0,{"$f":"VLOOKUP($A431,OTHERTABLE[],2,FALSE)","v":"3/16\""},"Cut to Length",null,null,null,null,null,null,null,null,null,null,null,null,{"$f":"VLOOKUP($A431,OTHERTABLE[],7,FALSE)","v":0}]
[428,{"$f":"VLOOKUP($A432,OTHERTABLE[],9,FALSE)","v":0},0,{"$f":"VLOOKUP($A432,OTHERTABLE[],2,FALSE)","v":"1/4\""},"Cut to Length",null,null,null,null,null,null,null,null,null,null,null,null,{"$f":"VLOOKUP($A432,OTHERTABLE[],7,FALSE)","v":0}]
[429,{"$f":"VLOOKUP($A433,OTHERTABLE[],9,FALSE)","v":0},0,{"$f":"VLOOKUP($A433,OTHERTABLE[],2,FALSE)","v":"3/8\""},"Cut to Length",null,null,null,null,null,null,null,null,null,null,null,null,{"$f":"VLOOKUP($A433,OTHERTABLE[],7,FALSE)","v":0}]
[430,{"$f":"VLOOKUP($A434,OTHERTABLE[],9,FALSE)","v":0},0,{"$f":"VLOOKUP($A434,OTHERTABLE[],2,FALSE)","v":"Weller WL30 30 Watt Soldering Iron"},"Soldering Iron",null,null,null,null,{"$f":"VLOOKUP($A434,OTHERTABLE[],7,FALSE)","v":0}]
[431,{"$f":"VLOOKUP($A435,OTHERTABLE[],9,FALSE)","v":0},0,{"$f":"VLOOKUP($A435,OTHERTABLE[],2,FALSE)","v":0},"Soldering Iron",null,null,null,null,{"$f":"VLOOKUP($A435,OTHERTABLE[],7,FALSE)","v":0}]
[432,{"$f":"VLOOKUP($A436,OTHERTABLE[],9,FALSE)","v":0},0,{"$f":"VLOOKUP($A436,OTHERTABLE[],2,FALSE)","v":0},"Jumper Wire",null,null,null,null,{"$f":"VLOOKUP($A436,OTHERTABLE[],7,FALSE)","v":0}]
[433,{"$f":"VLOOKUP($A437,OTHERTABLE[],9,FALSE)","v":0},0,{"$f":"VLOOKUP($A437,OTHERTABLE[],2,FALSE)","v":0},"Multi-Meter",null,null,null,null,{"$f":"VLOOKUP($A437,OTHERTABLE[],7,FALSE)","v":0}]
[434,{"$f":"VLOOKUP($A438,OTHERTABLE[],9,FALSE)","v":0},0,{"$f":"VLOOKUP($A438,OTHERTABLE[],2,FALSE)","v":"(A)Small "},"Rubber Feet",null,null,null,null,{"$f":"VLOOKUP($A438,OTHERTABLE[],7,FALSE)","v":0}]
[435,{"$f":"VLOOKUP($A439,OTHERTABLE[],9,FALSE)","v":0},0,{"$f":"VLOOKUP($A439,OTHERTABLE[],2,FALSE)","v":"(B)Medium"},"Rubber Feet",null,null,null,null,{"$f":"VLOOKUP($A439,OTHERTABLE[],7,FALSE)","v":0}]
[436,{"$f":"VLOOKUP($A440,OTHERTABLE[],9,FALSE)","v":0},0,{"$f":"VLOOKUP($A440,OTHERTABLE[],2,FALSE)","v":"(C)Large"},"Rubber Feet",null,null,null,null,{"$f":"VLOOKUP($A440,OTHERTABLE[],7,FALSE)","v":0}]
[437,{"$f":"VLOOKUP($A441,OTHERTABLE[],9,FALSE)","v":0},0,{"$f":"VLOOKUP($A441,OTHERTABLE[],2,FALSE)","v":"Dim Bulb Tester with 3 way Bulb"},"Dim Bulb Tester",null,null,null,null,{"$f":"VLOOKUP($A441,OTHERTABLE[],7,FALSE)","v":0}]
[438,{"$f":"VLOOKUP($A442,OTHERTABLE[],9,FALSE)","v":0},0,{"$f":"VLOOKUP($A442,OTHERTABLE[],2,FALSE)","v":"Dim Bulb Tester with 3 way Bulb & Digital AC Meter"},"Dim Bulb Tester/meter",null,null,null,null,{"$f":"VLOOKUP($A442,OTHERTABLE[],7,FALSE)","v":0}]
[439,{"$f":"VLOOKUP($A443,OTHERTABLE[],9,FALSE)","v":0},0,{"$f":"VLOOKUP($A443,OTHERTABLE[],2,FALSE)","v":"Mini Flush Cut Diagonal Cutters - OUT OF STOCK"},"Cutters",null,null,null,null,{"$f":"VLOOKUP($A443,OTHERTABLE[],7,FALSE)","v":0}]
[440,{"$f":"VLOOKUP($A444,OTHERTABLE[],9,FALSE)","v":0},0,{"$f":"VLOOKUP($A444,OTHERTABLE[],2,FALSE)","v":"Chicken Head Knob"},"Knobs",null,null,null,null,{"$f":"VLOOKUP($A444,OTHERTABLE[],7,FALSE)","v":0}]
[441,{"$f":"VLOOKUP($A445,OTHERTABLE[],9,FALSE)","v":0},0,{"$f":"VLOOKUP($A445,OTHERTABLE[],2,FALSE)","v":"Round Mini Knob"},"Knobs",null,null,null,null,{"$f":"VLOOKUP($A445,OTHERTABLE[],7,FALSE)","v":0}]
[442,{"$f":"VLOOKUP($A446,OTHERTABLE[],9,FALSE)","v":0},0,{"$f":"VLOOKUP($A446,OTHERTABLE[],2,FALSE)","v":"Large Round Knob"},"Knobs",null,null,null,null,{"$f":"VLOOKUP($A446,OTHERTABLE[],7,FALSE)","v":0}]
[443,{"$f":"VLOOKUP($A447,OTHERTABLE[],9,FALSE)","v":0},0,{"$f":"VLOOKUP($A447,OTHERTABLE[],2,FALSE)","v":"BNC Connector"},"Connectors",null,null,null,null,{"$f":"VLOOKUP($A447,OTHERTABLE[],7,FALSE)","v":0}]
[444,{"$f":"VLOOKUP($A448,OTHERTABLE[],9,FALSE)","v":0},{"$f":"IF(B448>0,A448,0)","v":0},{"$f":"VLOOKUP($A448,OTHERTABLE[],2,FALSE)","v":"Fahnestock Clips"},"Connectors",null,null,{"$f":"VLOOKUP($A448,OTHERTABLE[],3,FALSE)","v":0},{"$f":"VLOOKUP($A448,OTHERTABLE[],5,FALSE)","v":0},{"$f":"VLOOKUP($A448,OTHERTABLE[],7,FALSE)","v":0}]